Workbook

Sheet Início
H6: 1. APERTE NO BOTÃO HABILITAR EDIÇÃO
H7: 2. APERTE NO BOTÃO HABILITAR CONTEÚDO

Sheet Semana Atual
I5: ='Função Excel'!$C$9 -> Versão 2.1 - DEMO
B6: Ganhos, custos e despesas | C6: Seg | D6: Ter | E6: Qua | F6: Qui | G6: Sex | H6: Sáb | I6: Dom | J6: Total
C7: 2015-02-10 | D7: =C7+1 -> 2015-02-11 | E7: =D7+1 -> 2015-02-12 | F7: 2015-02-13 | G7: 2015-02-14 | H7: 2015-02-15 | I7: 2015-02-16
B8: Ganhos do dia | C8: =SUM(C9:C11) -> 0 | D8: =SUM(D9:D11) -> 0 | E8: 0 | F8: 0 | G8: 0 | H8: 0 | I8: 0 | J8: =SUM(C8:I8) -> 0
B9: ="- "&Configurações!$E$13 -> - Uber | J9: =SUM(C9:I9) -> 0 | K9: ="Ganhos do dia "&B9 -> Ganhos do dia - Uber
B10: ="- "&Configurações!$E$14 -> - App 2 | C10: Não disponível para versão DEMO | J10: 0 | K10: ="Ganhos do dia "&B10 -> Ganhos do dia - App 2
B11: ="- "&Configurações!$E$15 -> - App 3 | C11: Não disponível para versão DEMO | J11: 0 | K11: Ganhos do dia - App 3
B12: Bônus/Incentivo | C12: =SUM(C13:C15) -> 0 | D12: =SUM(D13:D15) -> 0 | E12: 0 | F12: 0 | G12: 0 | H12: 0 | I12: 0 | J12: =SUM(C12:I12) -> 0
B13: ="- "&Configurações!$E$13 -> - Uber | J13: =SUM(C13:I13) -> 0 | K13: ="Bônus/Incentivo "&B13 -> Bônus/Incentivo - Uber
B14: ="- "&Configurações!$E$14 -> - App 2 | C14: Não disponível para versão DEMO | J14: 0 | K14: ="Bônus/Incentivo "&B14 -> Bônus/Incentivo - App 2
B15: ="- "&Configurações!$E$15 -> - App 3 | C15: Não disponível para versão DEMO | J15: 0 | K15: Bônus/Incentivo - App 3
B16: Outros Incentivos | J16: =SUM(C16:I16) -> 0
B17: TOTAL DE GANHOS | C17: =SUM(C12,C8,C16) -> 0 | D17: =SUM(D12,D8,D16) -> 0 | E17: 0 | F17: 0 | G17: 0 | H17: 0 | I17: 0 | J17: 0
B18: Quilômetros rodados | J18: =SUM(C18:I18) -> 0
B19: Tempo online | C19: =SUM(C20:C22) -> 0 | D19: 0 | E19: 0 | F19: 0 | G19: 0 | H19: 0 | I19: =SUM(I20:I22) -> 0 | J19: 0
B20: ="- "&Configurações!$E$13 -> - Uber | J20: 0 | K20: ="Tempo Online "&B20 -> Tempo Online - Uber
B21: ="- "&Configurações!$E$14 -> - App 2 | C21: Não disponível para versão DEMO | J21: 0 | K21: ="Tempo Online "&B21 -> Tempo Online - App 2
B22: ="- "&Configurações!$E$15 -> - App 3 | C22: Não disponível para versão DEMO | J22: 0 | K22: Tempo Online - App 3
B23: Nº de viagens | C23: =SUM(C24:C26) -> 0 | D23: =SUM(D24:D26) -> 0 | E23: 0 | F23: 0 | G23: 0 | H23: 0 | I23: 0 | J23: 0
B24: ="- "&Configurações!$E$13 -> - Uber | J24: 0 | K24: ="Nº de Viagens "&B24 -> Nº de Viagens - Uber
B25: ="- "&Configurações!$E$14 -> - App 2 | C25: Não disponível para versão DEMO | J25: 0 | K25: ="Nº de Viagens "&B25 -> Nº de Viagens - App 2
B26: ="- "&Configurações!$E$15 -> - App 3 | C26: Não disponível para versão DEMO | J26: 0 | K26: Nº de Viagens - App 3
B27: Custos com combustível | C27: =IFERROR(C18/Configurações!$C$9*Configurações!$C$10,0) -> 0 | D27: =IFERROR(D18/Configurações!$C$9*Configurações!$C$10,0) -> 0 | E27: =IFERROR(E18/Configurações!$C$9*Configurações!$C$10,0) -> 0 | F27: =IFERROR(F18/Configurações!$C$9*Configurações!$C$10,0) -> 0 | G27: =IFERROR(G18/Configurações!$C$9*Configurações!$C$10,0) -> 0 | H27: =IFERROR(H18/Configurações!$C$9*Configurações!$C$10,0) -> 0 | I27: =IFERROR(I18/Configurações!$C$9*Configurações!$C$10,0) -> 0 | J27: =SUM(C27:I27) -> 0
B28: Custos com água | J28: 0
B29: Custos com bala | J29: 0
B30: Outros custos | J30: 0
B31: TOTAL DE CUSTOS | C31: =SUM(C27:C30) -> 0 | D31: =SUM(D27:D30) -> 0 | E31: 0 | F31: 0 | G31: 0 | H31: 0 | I31: 0 | J31: 0
B32: Gastos com alimentação | J32: 0
B33: Estacionamento | C33: Não disponível para versão DEMO | J33: =SUM(C33:I33) -> 0
B34: Lavagem | C34: Não disponível para versão DEMO | J34: =SUM(C34:I34) -> 0
B35: Multa | C35: Não disponível para versão DEMO | J35: =SUM(C35:I35) -> 0
B36: Pedágio | C36: Não disponível para versão DEMO | J36: =SUM(C36:I36) -> 0
B37: Outras despesas | J37: 0
B38: TOTAL DE DESPESAS | C38: =SUM(C32:C37) -> 0 | D38: =SUM(D32:D37) -> 0 | E38: 0 | F38: 0 | G38: 0 | H38: 0 | I38: 0 | J38: 0
B39: Resultado Bruto | C39: =C17-SUM(C31,C38) -> 0 | D39: =D17-SUM(D31,D38) -> 0 | E39: 0 | F39: 0 | G39: 0 | H39: 0 | I39: 0 | J39: 0
B41: Provisões | C41: Seg | D41: Ter | E41: Qua | F41: Qui | G41: Sex | H41: Sáb | I41: Dom | J41: Total
C42: =C7 -> 2015-02-10 | D42: =C42+1 -> 2015-02-11 | E42: =D42+1 -> 2015-02-12 | F42: 2015-02-13 | G42: 2015-02-14 | H42: 2015-02-15 | I42: 2015-02-16
B43: Depreciação do Veículo | C43: =IFERROR(Configurações!$C$11*Configurações!$C$13/365*IF(Configurações!$C$7<>"Carro próprio",0,1),0) -> 6.246575342 | D43: =IFERROR(Configurações!$C$11*Configurações!$C$13/365*IF(Configurações!$C$7<>"Carro próprio",0,1),0) -> 6.246575342 | E43: =IFERROR(Configurações!$C$11*Configurações!$C$13/365*IF(Configurações!$C$7<>"Carro próprio",0,1),0) -> 6.246575342 | F43: =IFERROR(Configurações!$C$11*Configurações!$C$13/365*IF(Configurações!$C$7<>"Carro próprio",0,1),0) -> 6.246575342 | G43: =IFERROR(Configurações!$C$11*Configurações!$C$13/365*IF(Configurações!$C$7<>"Carro próprio",0,1),0) -> 6.246575342 | H43: =IFERROR(Configurações!$C$11*Configurações!$C$13/365*IF(Configurações!$C$7<>"Carro próprio",0,1),0) -> 6.246575342 | I43: =IFERROR(Configurações!$C$11*Configurações!$C$13/365*IF(Configurações!$C$7<>"Carro próprio",0,1),0) -> 6.246575342 | J43: =SUM(C43:I43) -> 43.7260274
B44: Seguro Anual | C44: =IFERROR(Configurações!$C$12/365*IF(Configurações!$C$7<>"Carro próprio",0,1),0) -> 0 | D44: =IFERROR(Configurações!$C$12/365*IF(Configurações!$C$7<>"Carro próprio",0,1),0) -> 0 | E44: =IFERROR(Configurações!$C$12/365*IF(Configurações!$C$7<>"Carro próprio",0,1),0) -> 0 | F44: =IFERROR(Configurações!$C$12/365*IF(Configurações!$C$7<>"Carro próprio",0,1),0) -> 0 | G44: =IFERROR(Configurações!$C$12/365*IF(Configurações!$C$7<>"Carro próprio",0,1),0) -> 0 | H44: =IFERROR(Configurações!$C$12/365*IF(Configurações!$C$7<>"Carro próprio",0,1),0) -> 0 | I44: =IFERROR(Configurações!$C$12/365*IF(Configurações!$C$7<>"Carro próprio",0,1),0) -> 0 | J44: 0
B45: Prestação do Veículo | C45: =IFERROR(Configurações!$C$14/30*IF(Configurações!$C$7<>"Carro próprio",0,1),0) -> 26.2 | D45: =IFERROR(Configurações!$C$14/30*IF(Configurações!$C$7<>"Carro próprio",0,1),0) -> 26.2 | E45: =IFERROR(Configurações!$C$14/30*IF(Configurações!$C$7<>"Carro próprio",0,1),0) -> 26.2 | F45: =IFERROR(Configurações!$C$14/30*IF(Configurações!$C$7<>"Carro próprio",0,1),0) -> 26.2 | G45: =IFERROR(Configurações!$C$14/30*IF(Configurações!$C$7<>"Carro próprio",0,1),0) -> 26.2 | H45: =IFERROR(Configurações!$C$14/30*IF(Configurações!$C$7<>"Carro próprio",0,1),0) -> 26.2 | I45: =IFERROR(Configurações!$C$14/30*IF(Configurações!$C$7<>"Carro próprio",0,1),0) -> 26.2 | J45: 183.4
B46: Troca de pneu | C46: =IFERROR((C18/Configurações!$C$16*Configurações!$C$15)*4*IF(Configurações!$C$7<>"Carro próprio",0,1),0) -> 0 | D46: =IFERROR((D18/Configurações!$C$16*Configurações!$C$15)*4*IF(Configurações!$C$7<>"Carro próprio",0,1),0) -> 0 | E46: =IFERROR((E18/Configurações!$C$16*Configurações!$C$15)*4*IF(Configurações!$C$7<>"Carro próprio",0,1),0) -> 0 | F46: =IFERROR((F18/Configurações!$C$16*Configurações!$C$15)*4*IF(Configurações!$C$7<>"Carro próprio",0,1),0) -> 0 | G46: =IFERROR((G18/Configurações!$C$16*Configurações!$C$15)*4*IF(Configurações!$C$7<>"Carro próprio",0,1),0) -> 0 | H46: =IFERROR((H18/Configurações!$C$16*Configurações!$C$15)*4*IF(Configurações!$C$7<>"Carro próprio",0,1),0) -> 0 | I46: =IFERROR((I18/Configurações!$C$16*Configurações!$C$15)*4*IF(Configurações!$C$7<>"Carro próprio",0,1),0) -> 0 | J46: =SUM(C46:I46) -> 0
B47: Troca de óleo | C47: =IFERROR(C18/Configurações!$C$18*Configurações!$C$17*IF(Configurações!$C$7<>"Carro próprio",0,1),0) -> 0 | D47: =IFERROR(D18/Configurações!$C$18*Configurações!$C$17*IF(Configurações!$C$7<>"Carro próprio",0,1),0) -> 0 | E47: =IFERROR(E18/Configurações!$C$18*Configurações!$C$17*IF(Configurações!$C$7<>"Carro próprio",0,1),0) -> 0 | F47: =IFERROR(F18/Configurações!$C$18*Configurações!$C$17*IF(Configurações!$C$7<>"Carro próprio",0,1),0) -> 0 | G47: =IFERROR(G18/Configurações!$C$18*Configurações!$C$17*IF(Configurações!$C$7<>"Carro próprio",0,1),0) -> 0 | H47: =IFERROR(H18/Configurações!$C$18*Configurações!$C$17*IF(Configurações!$C$7<>"Carro próprio",0,1),0) -> 0 | I47: =IFERROR(I18/Configurações!$C$18*Configurações!$C$17*IF(Configurações!$C$7<>"Carro próprio",0,1),0) -> 0 | J47: =SUM(C47:I47) -> 0
B48: Outras despesas anuais | C48: =IFERROR(Configurações!$C$19/365*IF(Configurações!$C$7<>"Carro próprio",0,1),0) -> 3.287671233 | D48: =IFERROR(Configurações!$C$19/365*IF(Configurações!$C$7<>"Carro próprio",0,1),0) -> 3.287671233 | E48: =IFERROR(Configurações!$C$19/365*IF(Configurações!$C$7<>"Carro próprio",0,1),0) -> 3.287671233 | F48: =IFERROR(Configurações!$C$19/365*IF(Configurações!$C$7<>"Carro próprio",0,1),0) -> 3.287671233 | G48: =IFERROR(Configurações!$C$19/365*IF(Configurações!$C$7<>"Carro próprio",0,1),0) -> 3.287671233 | H48: =IFERROR(Configurações!$C$19/365*IF(Configurações!$C$7<>"Carro próprio",0,1),0) -> 3.287671233 | I48: =IFERROR(Configurações!$C$19/365*IF(Configurações!$C$7<>"Carro próprio",0,1),0) -> 3.287671233 | J48: =SUM(C48:I48) -> 23.01369863
B49: Aluguel | C49: =IFERROR(IF(Configurações!$C$7="Carro próprio",0,IF(Configurações!$C$7="Aluguel Diário",IF(Auxiliar!$A$3=TRUE,Configurações!$C$8*IF('Semana Atual'!C$18=0,0,1),Configurações!$C$8),IF(Configurações!$C$7="Aluguel Semanal",Configurações!$C$8/7,IF(Configurações!$C$7="Aluguel Mensal",Configurações!$C$8/30,Configurações!$C$8*C$18)))),0) -> 0 | D49: =IFERROR(IF(Configurações!$C$7="Carro próprio",0,IF(Configurações!$C$7="Aluguel Diário",IF(Auxiliar!$A$3=TRUE,Configurações!$C$8*IF('Semana Atual'!D$18=0,0,1),Configurações!$C$8),IF(Configurações!$C$7="Aluguel Semanal",Configurações!$C$8/7,IF(Configurações!$C$7="Aluguel Mensal",Configurações!$C$8/30,Configurações!$C$8*D$18)))),0) -> 0 | E49: =IFERROR(IF(Configurações!$C$7="Carro próprio",0,IF(Configurações!$C$7="Aluguel Diário",IF(Auxiliar!$A$3=TRUE,Configurações!$C$8*IF('Semana Atual'!E$18=0,0,1),Configurações!$C$8),IF(Configurações!$C$7="Aluguel Semanal",Configurações!$C$8/7,IF(Configurações!$C$7="Aluguel Mensal",Configurações!$C$8/30,Configurações!$C$8*E$18)))),0) -> 0 | F49: =IFERROR(IF(Configurações!$C$7="Carro próprio",0,IF(Configurações!$C$7="Aluguel Diário",IF(Auxiliar!$A$3=TRUE,Configurações!$C$8*IF('Semana Atual'!F$18=0,0,1),Configurações!$C$8),IF(Configurações!$C$7="Aluguel Semanal",Configurações!$C$8/7,IF(Configurações!$C$7="Aluguel Mensal",Configurações!$C$8/30,Configurações!$C$8*F$18)))),0) -> 0 | G49: =IFERROR(IF(Configurações!$C$7="Carro próprio",0,IF(Configurações!$C$7="Aluguel Diário",IF(Auxiliar!$A$3=TRUE,Configurações!$C$8*IF('Semana Atual'!G$18=0,0,1),Configurações!$C$8),IF(Configurações!$C$7="Aluguel Semanal",Configurações!$C$8/7,IF(Configurações!$C$7="Aluguel Mensal",Configurações!$C$8/30,Configurações!$C$8*G$18)))),0) -> 0 | H49: =IFERROR(IF(Configurações!$C$7="Carro próprio",0,IF(Configurações!$C$7="Aluguel Diário",IF(Auxiliar!$A$3=TRUE,Configurações!$C$8*IF('Semana Atual'!H$18=0,0,1),Configurações!$C$8),IF(Configurações!$C$7="Aluguel Semanal",Configurações!$C$8/7,IF(Configurações!$C$7="Aluguel Mensal",Configurações!$C$8/30,Configurações!$C$8*H$18)))),0) -> 0 | I49: =IFERROR(IF(Configurações!$C$7="Carro próprio",0,IF(Configurações!$C$7="Aluguel Diário",IF(Auxiliar!$A$3=TRUE,Configurações!$C$8*IF('Semana Atual'!I$18=0,0,1),Configurações!$C$8),IF(Configurações!$C$7="Aluguel Semanal",Configurações!$C$8/7,IF(Configurações!$C$7="Aluguel Mensal",Configurações!$C$8/30,Configurações!$C$8*I$18)))),0) -> 0 | J49: =SUM(C49:I49) -> 0
B50: Custo com provisões | C50: =SUM(C43:C49) -> 35.73424658 | D50: 35.73424658 | E50: 35.73424658 | F50: 35.73424658 | G50: 35.73424658 | H50: 35.73424658 | I50: 35.73424658 | J50: =SUM(C50:I50) -> 250.139726
B52: Resultado Líquido | C52: =C39-C50 -> -35.73424658 | D52: -35.73424658 | E52: -35.73424658 | F52: -35.73424658 | G52: -35.73424658 | H52: -35.73424658 | I52: -35.73424658 | J52: -250.139726
B54: Análise dos dados da semana | C54: Seg | D54: Ter | E54: Qua | F54: Qui | G54: Sex | H54: Sáb | I54: Dom | J54: Média
C55: =C7 -> 2015-02-10 | D55: =C55+1 -> 2015-02-11 | E55: =D55+1 -> 2015-02-12 | F55: 2015-02-13 | G55: 2015-02-14 | H55: 2015-02-15 | I55: 2015-02-16
B56: Viagem / Tempo online | C56: =IFERROR(C23/(C19*24),0) -> 0 | D56: 0 | E56: 0 | F56: 0 | G56: 0 | H56: 0 | I56: 0 | J56: 0
B57: ="- "&Configurações!$E$13 -> - Uber | C57: 0 | D57: 0 | E57: 0 | F57: 0 | G57: 0 | H57: 0 | I57: 0 | J57: 0
B58: ="- "&Configurações!$E$14 -> - App 2 | C58: 0 | D58: 0 | E58: 0 | F58: 0 | G58: 0 | H58: 0 | I58: 0 | J58: 0
B59: ="- "&Configurações!$E$15 -> - App 3 | C59: 0 | D59: 0 | E59: 0 | F59: 0 | G59: 0 | H59: 0 | I59: 0 | J59: 0
B60: Viagem / Km rodados | C60: =IFERROR(C23/C$18,0) -> 0 | D60: 0 | E60: 0 | F60: 0 | G60: 0 | H60: 0 | I60: 0 | J60: 0
B61: ="- "&Configurações!$E$13 -> - Uber | C61: 0 | D61: 0 | E61: 0 | F61: 0 | G61: 0 | H61: 0 | I61: 0 | J61: 0
B62: ="- "&Configurações!$E$14 -> - App 2 | C62: 0 | D62: 0 | E62: 0 | F62: 0 | G62: 0 | H62: 0 | I62: 0 | J62: 0
B63: ="- "&Configurações!$E$15 -> - App 3 | C63: 0 | D63: 0 | E63: 0 | F63: 0 | G63: 0 | H63: 0 | I63: 0 | J63: 0
B64: Receitas / Tempo online | C64: =IFERROR(C8/(C19*24),0) -> 0 | D64: 0 | E64: 0 | F64: 0 | G64: 0 | H64: 0 | I64: 0 | J64: 0
B65: ="- "&Configurações!$E$13 -> - Uber | C65: 0 | D65: 0 | E65: 0 | F65: 0 | G65: 0 | H65: 0 | I65: 0 | J65: 0
B66: ="- "&Configurações!$E$14 -> - App 2 | C66: 0 | D66: 0 | E66: 0 | F66: 0 | G66: 0 | H66: 0 | I66: 0 | J66: 0
B67: ="- "&Configurações!$E$15 -> - App 3 | C67: 0 | D67: 0 | E67: 0 | F67: 0 | G67: 0 | H67: 0 | I67: 0 | J67: 0
B68: Receitas / Km rodados | C68: =IFERROR(C8/C$18,0) -> 0 | D68: 0 | E68: 0 | F68: 0 | G68: 0 | H68: 0 | I68: 0 | J68: 0
B69: ="- "&Configurações!$E$13 -> - Uber | C69: =IFERROR(C9/C$18,0) -> 0 | D69: 0 | E69: 0 | F69: 0 | G69: 0 | H69: 0 | I69: 0 | J69: 0
B70: ="- "&Configurações!$E$14 -> - App 2 | C70: =IFERROR(C10/C$18,0) -> 0 | D70: 0 | E70: 0 | F70: 0 | G70: 0 | H70: 0 | I70: 0 | J70: 0
B71: ="- "&Configurações!$E$15 -> - App 3 | C71: =IFERROR(C11/C$18,0) -> 0 | D71: 0 | E71: 0 | F71: 0 | G71: 0 | H71: 0 | I71: 0 | J71: 0
B72: Receitas / Viagem | C72: =IFERROR(C8/C23,0) -> 0 | D72: 0 | E72: 0 | F72: 0 | G72: 0 | H72: 0 | I72: 0 | J72: 0
B73: ="- "&Configurações!$E$13 -> - Uber | C73: 0 | D73: 0 | E73: 0 | F73: 0 | G73: 0 | H73: 0 | I73: 0 | J73: 0
B74: ="- "&Configurações!$E$14 -> - App 2 | C74: 0 | D74: 0 | E74: 0 | F74: 0 | G74: 0 | H74: 0 | I74: 0 | J74: 0
B75: ="- "&Configurações!$E$15 -> - App 3 | C75: 0 | D75: 0 | E75: 0 | F75: 0 | G75: 0 | H75: 0 | I75: 0 | J75: 0
B76: Gastos / Tempo online | C76: =IFERROR(SUM(C$38,C$31)/(C19*24),0) -> 0 | D76: 0 | E76: 0 | F76: 0 | G76: 0 | H76: 0 | I76: 0 | J76: 0
B77: ="- "&Configurações!$E$13 -> - Uber | C77: 0 | D77: 0 | E77: 0 | F77: 0 | G77: 0 | H77: 0 | I77: 0 | J77: 0
B78: ="- "&Configurações!$E$14 -> - App 2 | C78: 0 | D78: 0 | E78: 0 | F78: 0 | G78: 0 | H78: 0 | I78: 0 | J78: 0
B79: ="- "&Configurações!$E$15 -> - App 3 | C79: 0 | D79: 0 | E79: 0 | F79: 0 | G79: 0 | H79: 0 | I79: 0 | J79: 0
B80: Gastos / Km rodados | C80: =IFERROR(SUM(C$38,C$31)/C18,0) -> 0 | D80: 0 | E80: 0 | F80: 0 | G80: 0 | H80: 0 | I80: 0 | J80: 0
B81: ="- "&Configurações!$E$13 -> - Uber | C81: 0 | D81: 0 | E81: 0 | F81: 0 | G81: 0 | H81: 0 | I81: 0 | J81: 0
B82: ="- "&Configurações!$E$14 -> - App 2 | C82: 0 | D82: 0 | E82: 0 | F82: 0 | G82: 0 | H82: 0 | I82: 0 | J82: 0
B83: ="- "&Configurações!$E$15 -> - App 3 | C83: 0 | D83: 0 | E83: 0 | F83: 0 | G83: 0 | H83: 0 | I83: 0 | J83: 0
B84: Gastos / Viagem | C84: =IFERROR(SUM(C$38,C$31)/C23,0) -> 0 | D84: 0 | E84: 0 | F84: 0 | G84: 0 | H84: 0 | I84: 0 | J84: 0
B85: ="- "&Configurações!$E$13 -> - Uber | C85: 0 | D85: 0 | E85: 0 | F85: 0 | G85: 0 | H85: 0 | I85: 0 | J85: 0
B86: ="- "&Configurações!$E$14 -> - App 2 | C86: 0 | D86: 0 | E86: 0 | F86: 0 | G86: 0 | H86: 0 | I86: 0 | J86: 0
B87: ="- "&Configurações!$E$15 -> - App 3 | C87: 0 | D87: 0 | E87: 0 | F87: 0 | G87: 0 | H87: 0 | I87: 0 | J87: 0
B88: Resultado L. / Tempo online | C88: =IFERROR(C$52/(C19*24),0) -> 0 | D88: 0 | E88: 0 | F88: 0 | G88: 0 | H88: 0 | I88: 0 | J88: 0
B89: ="- "&Configurações!$E$13 -> - Uber | C89: 0 | D89: 0 | E89: 0 | F89: 0 | G89: 0 | H89: 0 | I89: 0 | J89: 0
B90: ="- "&Configurações!$E$14 -> - App 2 | C90: 0 | D90: 0 | E90: 0 | F90: 0 | G90: 0 | H90: 0 | I90: 0 | J90: 0
B91: ="- "&Configurações!$E$15 -> - App 3 | C91: 0 | D91: 0 | E91: 0 | F91: 0 | G91: 0 | H91: 0 | I91: 0 | J91: 0
B92: Resultado L. / Km rodados | C92: =IFERROR(C$52/C18,0) -> 0 | D92: =IFERROR(D$52/D18,0) -> 0 | E92: 0 | F92: 0 | G92: 0 | H92: 0 | I92: 0 | J92: 0
B93: ="- "&Configurações!$E$13 -> - Uber | C93: =IFERROR(C$52/C19,0) -> 0 | D93: 0 | E93: 0 | F93: 0 | G93: 0 | H93: 0 | I93: 0 | J93: 0
B94: ="- "&Configurações!$E$14 -> - App 2 | C94: =IFERROR(C$52/C20,0) -> 0 | D94: 0 | E94: 0 | F94: 0 | G94: 0 | H94: 0 | I94: 0 | J94: 0
B95: ="- "&Configurações!$E$15 -> - App 3 | C95: =IFERROR(C$52/C21,0) -> 0 | D95: 0 | E95: 0 | F95: 0 | G95: 0 | H95: 0 | I95: 0 | J95: 0
B96: Resultado L. / Viagem | C96: =IFERROR(C$52/C23,0) -> 0 | D96: =IFERROR(D$52/D23,0) -> 0 | E96: 0 | F96: 0 | G96: 0 | H96: 0 | I96: 0 | J96: 0
B97: ="- "&Configurações!$E$13 -> - Uber | C97: =IFERROR(C$52/C24,0) -> 0 | D97: 0 | E97: 0 | F97: 0 | G97: 0 | H97: 0 | I97: 0 | J97: 0
B98: ="- "&Configurações!$E$14 -> - App 2 | C98: =IFERROR(C$52/C25,0) -> 0 | D98: 0 | E98: 0 | F98: 0 | G98: 0 | H98: 0 | I98: 0 | J98: 0
B99: ="- "&Configurações!$E$15 -> - App 3 | C99: =IFERROR(C$52/C26,0) -> 0 | D99: 0 | E99: 0 | F99: 0 | G99: 0 | H99: 0 | I99: 0 | J99: 0
B115: ="Semana Atual x Semana Passada ("&LEFT(0&DAY(Auxiliar!A7),2)&"/"&LEFT(0&MONTH(Auxiliar!A7),2)&")" -> Semana Atual x Semana Passada (04/02) | C115: Seg | D115: Ter | E115: Qua | F115: Qui | G115: Sex | H115: Sáb | I115: Dom | J115: Total
B117: Ganhos do dia | C117: =SUM(C118:C120) ->  | D117: =SUM(D118:D120) -> 0 | E117: 0 | F117: 0 | G117: 0 | H117: 0 | I117: 0 | J117: =SUM(C117:I117) -> 
B118: ="- "&Configurações!$E$13 -> - Uber | C118: =C9-SUMIFS('Banco de Dados'!C:C,'Banco de Dados'!$A:$A,Auxiliar!$A$7,'Banco de Dados'!$K:$K,$B$117&" "&$B118) -> 0 | D118: =D9-SUMIFS('Banco de Dados'!D:D,'Banco de Dados'!$A:$A,Auxiliar!$A$7,'Banco de Dados'!$K:$K,$B$117&" "&$B118) -> 0 | E118: =E9-SUMIFS('Banco de Dados'!E:E,'Banco de Dados'!$A:$A,Auxiliar!$A$7,'Banco de Dados'!$K:$K,$B$117&" "&$B118) -> 0 | F118: =F9-SUMIFS('Banco de Dados'!F:F,'Banco de Dados'!$A:$A,Auxiliar!$A$7,'Banco de Dados'!$K:$K,$B$117&" "&$B118) -> 0 | G118: =G9-SUMIFS('Banco de Dados'!G:G,'Banco de Dados'!$A:$A,Auxiliar!$A$7,'Banco de Dados'!$K:$K,$B$117&" "&$B118) -> 0 | H118: =H9-SUMIFS('Banco de Dados'!H:H,'Banco de Dados'!$A:$A,Auxiliar!$A$7,'Banco de Dados'!$K:$K,$B$117&" "&$B118) -> 0 | I118: =I9-SUMIFS('Banco de Dados'!I:I,'Banco de Dados'!$A:$A,Auxiliar!$A$7,'Banco de Dados'!$K:$K,$B$117&" "&$B118) -> 0 | J118: =SUM(C118:I118) -> 0
B119: ="- "&Configurações!$E$14 -> - App 2 | C119: =C10-SUMIFS('Banco de Dados'!C:C,'Banco de Dados'!$A:$A,Auxiliar!$A$7,'Banco de Dados'!$K:$K,$B$117&" "&$B119) ->  | D119: =D10-SUMIFS('Banco de Dados'!D:D,'Banco de Dados'!$A:$A,Auxiliar!$A$7,'Banco de Dados'!$K:$K,$B$117&" "&$B119) -> 0 | E119: =E10-SUMIFS('Banco de Dados'!E:E,'Banco de Dados'!$A:$A,Auxiliar!$A$7,'Banco de Dados'!$K:$K,$B$117&" "&$B119) -> 0 | F119: =F10-SUMIFS('Banco de Dados'!F:F,'Banco de Dados'!$A:$A,Auxiliar!$A$7,'Banco de Dados'!$K:$K,$B$117&" "&$B119) -> 0 | G119: =G10-SUMIFS('Banco de Dados'!G:G,'Banco de Dados'!$A:$A,Auxiliar!$A$7,'Banco de Dados'!$K:$K,$B$117&" "&$B119) -> 0 | H119: =H10-SUMIFS('Banco de Dados'!H:H,'Banco de Dados'!$A:$A,Auxiliar!$A$7,'Banco de Dados'!$K:$K,$B$117&" "&$B119) -> 0 | I119: =I10-SUMIFS('Banco de Dados'!I:I,'Banco de Dados'!$A:$A,Auxiliar!$A$7,'Banco de Dados'!$K:$K,$B$117&" "&$B119) -> 0 | J119: =SUM(C119:I119) -> 
B120: ="- "&Configurações!$E$15 -> - App 3 | C120: =C11-SUMIFS('Banco de Dados'!C:C,'Banco de Dados'!$A:$A,Auxiliar!$A$7,'Banco de Dados'!$K:$K,$B$117&" "&$B120) ->  | D120: =D11-SUMIFS('Banco de Dados'!D:D,'Banco de Dados'!$A:$A,Auxiliar!$A$7,'Banco de Dados'!$K:$K,$B$117&" "&$B120) -> 0 | E120: =E11-SUMIFS('Banco de Dados'!E:E,'Banco de Dados'!$A:$A,Auxiliar!$A$7,'Banco de Dados'!$K:$K,$B$117&" "&$B120) -> 0 | F120: =F11-SUMIFS('Banco de Dados'!F:F,'Banco de Dados'!$A:$A,Auxiliar!$A$7,'Banco de Dados'!$K:$K,$B$117&" "&$B120) -> 0 | G120: =G11-SUMIFS('Banco de Dados'!G:G,'Banco de Dados'!$A:$A,Auxiliar!$A$7,'Banco de Dados'!$K:$K,$B$117&" "&$B120) -> 0 | H120: =H11-SUMIFS('Banco de Dados'!H:H,'Banco de Dados'!$A:$A,Auxiliar!$A$7,'Banco de Dados'!$K:$K,$B$117&" "&$B120) -> 0 | I120: =I11-SUMIFS('Banco de Dados'!I:I,'Banco de Dados'!$A:$A,Auxiliar!$A$7,'Banco de Dados'!$K:$K,$B$117&" "&$B120) -> 0
B121: Bônus/Incentivo | C121: =SUM(C122:C124) ->  | D121: =SUM(D122:D124) -> 0 | E121: 0 | F121: 0 | G121: 0 | H121: 0 | I121: 0
B122: ="- "&Configurações!$E$13 -> - Uber | C122: =C13-SUMIFS('Banco de Dados'!C:C,'Banco de Dados'!$A:$A,Auxiliar!$A$7,'Banco de Dados'!$K:$K,$B$121&" "&$B122) -> 0 | D122: =D13-SUMIFS('Banco de Dados'!D:D,'Banco de Dados'!$A:$A,Auxiliar!$A$7,'Banco de Dados'!$K:$K,$B$121&" "&$B122) -> 0 | E122: =E13-SUMIFS('Banco de Dados'!E:E,'Banco de Dados'!$A:$A,Auxiliar!$A$7,'Banco de Dados'!$K:$K,$B$121&" "&$B122) -> 0 | F122: =F13-SUMIFS('Banco de Dados'!F:F,'Banco de Dados'!$A:$A,Auxiliar!$A$7,'Banco de Dados'!$K:$K,$B$121&" "&$B122) -> 0 | G122: =G13-SUMIFS('Banco de Dados'!G:G,'Banco de Dados'!$A:$A,Auxiliar!$A$7,'Banco de Dados'!$K:$K,$B$121&" "&$B122) -> 0 | H122: =H13-SUMIFS('Banco de Dados'!H:H,'Banco de Dados'!$A:$A,Auxiliar!$A$7,'Banco de Dados'!$K:$K,$B$121&" "&$B122) -> 0 | I122: =I13-SUMIFS('Banco de Dados'!I:I,'Banco de Dados'!$A:$A,Auxiliar!$A$7,'Banco de Dados'!$K:$K,$B$121&" "&$B122) -> 0 | J122: 0
B123: ="- "&Configurações!$E$14 -> - App 2 | C123: =C14-SUMIFS('Banco de Dados'!C:C,'Banco de Dados'!$A:$A,Auxiliar!$A$7,'Banco de Dados'!$K:$K,$B$121&" "&$B123) ->  | D123: =D14-SUMIFS('Banco de Dados'!D:D,'Banco de Dados'!$A:$A,Auxiliar!$A$7,'Banco de Dados'!$K:$K,$B$121&" "&$B123) -> 0 | E123: =E14-SUMIFS('Banco de Dados'!E:E,'Banco de Dados'!$A:$A,Auxiliar!$A$7,'Banco de Dados'!$K:$K,$B$121&" "&$B123) -> 0 | F123: =F14-SUMIFS('Banco de Dados'!F:F,'Banco de Dados'!$A:$A,Auxiliar!$A$7,'Banco de Dados'!$K:$K,$B$121&" "&$B123) -> 0 | G123: =G14-SUMIFS('Banco de Dados'!G:G,'Banco de Dados'!$A:$A,Auxiliar!$A$7,'Banco de Dados'!$K:$K,$B$121&" "&$B123) -> 0 | H123: =H14-SUMIFS('Banco de Dados'!H:H,'Banco de Dados'!$A:$A,Auxiliar!$A$7,'Banco de Dados'!$K:$K,$B$121&" "&$B123) -> 0 | I123: =I14-SUMIFS('Banco de Dados'!I:I,'Banco de Dados'!$A:$A,Auxiliar!$A$7,'Banco de Dados'!$K:$K,$B$121&" "&$B123) -> 0
B124: ="- "&Configurações!$E$15 -> - App 3 | C124: =C15-SUMIFS('Banco de Dados'!C:C,'Banco de Dados'!$A:$A,Auxiliar!$A$7,'Banco de Dados'!$K:$K,$B$121&" "&$B124) ->  | D124: =D15-SUMIFS('Banco de Dados'!D:D,'Banco de Dados'!$A:$A,Auxiliar!$A$7,'Banco de Dados'!$K:$K,$B$121&" "&$B124) -> 0 | E124: =E15-SUMIFS('Banco de Dados'!E:E,'Banco de Dados'!$A:$A,Auxiliar!$A$7,'Banco de Dados'!$K:$K,$B$121&" "&$B124) -> 0 | F124: =F15-SUMIFS('Banco de Dados'!F:F,'Banco de Dados'!$A:$A,Auxiliar!$A$7,'Banco de Dados'!$K:$K,$B$121&" "&$B124) -> 0 | G124: =G15-SUMIFS('Banco de Dados'!G:G,'Banco de Dados'!$A:$A,Auxiliar!$A$7,'Banco de Dados'!$K:$K,$B$121&" "&$B124) -> 0 | H124: =H15-SUMIFS('Banco de Dados'!H:H,'Banco de Dados'!$A:$A,Auxiliar!$A$7,'Banco de Dados'!$K:$K,$B$121&" "&$B124) -> 0 | I124: =I15-SUMIFS('Banco de Dados'!I:I,'Banco de Dados'!$A:$A,Auxiliar!$A$7,'Banco de Dados'!$K:$K,$B$121&" "&$B124) -> 0
B125: Outros Incentivos | C125: =ROUND(C16-SUMIFS('Banco de Dados'!C:C,'Banco de Dados'!$A:$A,Auxiliar!$A$7,'Banco de Dados'!$B:$B,$B125),2) -> 0 | D125: =ROUND(D16-SUMIFS('Banco de Dados'!D:D,'Banco de Dados'!$A:$A,Auxiliar!$A$7,'Banco de Dados'!$B:$B,$B125),2) -> 0 | E125: =ROUND(E16-SUMIFS('Banco de Dados'!E:E,'Banco de Dados'!$A:$A,Auxiliar!$A$7,'Banco de Dados'!$B:$B,$B125),2) -> 0 | F125: =ROUND(F16-SUMIFS('Banco de Dados'!F:F,'Banco de Dados'!$A:$A,Auxiliar!$A$7,'Banco de Dados'!$B:$B,$B125),2) -> 0 | G125: =ROUND(G16-SUMIFS('Banco de Dados'!G:G,'Banco de Dados'!$A:$A,Auxiliar!$A$7,'Banco de Dados'!$B:$B,$B125),2) -> 0 | H125: =ROUND(H16-SUMIFS('Banco de Dados'!H:H,'Banco de Dados'!$A:$A,Auxiliar!$A$7,'Banco de Dados'!$B:$B,$B125),2) -> 0 | I125: =ROUND(I16-SUMIFS('Banco de Dados'!I:I,'Banco de Dados'!$A:$A,Auxiliar!$A$7,'Banco de Dados'!$B:$B,$B125),2) -> 0 | J125: 0
B126: TOTAL DE GANHOS | C126: =SUM(C125,C121,C117) ->  | D126: =SUM(D125,D121,D117) -> 0 | E126: =SUM(E125,E121,E117) -> 0 | F126: =SUM(F125,F121,F117) -> 0 | G126: =SUM(G125,G121,G117) -> 0 | H126: =SUM(H125,H121,H117) -> 0 | I126: =SUM(I125,I121,I117) -> 0
B127: Quilometros rodados | C127: =C18-SUMIFS('Banco de Dados'!C:C,'Banco de Dados'!$A:$A,Auxiliar!$A$7,'Banco de Dados'!$B:$B,$B127) -> 0 | D127: =D18-SUMIFS('Banco de Dados'!D:D,'Banco de Dados'!$A:$A,Auxiliar!$A$7,'Banco de Dados'!$B:$B,$B127) -> 0 | E127: =E18-SUMIFS('Banco de Dados'!E:E,'Banco de Dados'!$A:$A,Auxiliar!$A$7,'Banco de Dados'!$B:$B,$B127) -> 0 | F127: =F18-SUMIFS('Banco de Dados'!F:F,'Banco de Dados'!$A:$A,Auxiliar!$A$7,'Banco de Dados'!$B:$B,$B127) -> 0 | G127: =G18-SUMIFS('Banco de Dados'!G:G,'Banco de Dados'!$A:$A,Auxiliar!$A$7,'Banco de Dados'!$B:$B,$B127) -> 0 | H127: =H18-SUMIFS('Banco de Dados'!H:H,'Banco de Dados'!$A:$A,Auxiliar!$A$7,'Banco de Dados'!$B:$B,$B127) -> 0 | I127: =I18-SUMIFS('Banco de Dados'!I:I,'Banco de Dados'!$A:$A,Auxiliar!$A$7,'Banco de Dados'!$B:$B,$B127) -> 0 | J127: 0
B128: Tempo online | C128: =SUM(C129:C131) ->  | D128: =SUM(D129:D131) -> 0 | E128: 0 | F128: 0 | G128: 0 | H128: 0 | I128: 0
B129: ="- "&Configurações!$E$13 -> - Uber | C129: =C20-SUMIFS('Banco de Dados'!C:C,'Banco de Dados'!$A:$A,Auxiliar!$A$7,'Banco de Dados'!$K:$K,$B$128&" "&$B129) -> 0 | D129: =D20-SUMIFS('Banco de Dados'!D:D,'Banco de Dados'!$A:$A,Auxiliar!$A$7,'Banco de Dados'!$K:$K,$B$128&" "&$B129) -> 0 | E129: =E20-SUMIFS('Banco de Dados'!E:E,'Banco de Dados'!$A:$A,Auxiliar!$A$7,'Banco de Dados'!$K:$K,$B$128&" "&$B129) -> 0 | F129: =F20-SUMIFS('Banco de Dados'!F:F,'Banco de Dados'!$A:$A,Auxiliar!$A$7,'Banco de Dados'!$K:$K,$B$128&" "&$B129) -> 0 | G129: =G20-SUMIFS('Banco de Dados'!G:G,'Banco de Dados'!$A:$A,Auxiliar!$A$7,'Banco de Dados'!$K:$K,$B$128&" "&$B129) -> 0 | H129: =H20-SUMIFS('Banco de Dados'!H:H,'Banco de Dados'!$A:$A,Auxiliar!$A$7,'Banco de Dados'!$K:$K,$B$128&" "&$B129) -> 0 | I129: =I20-SUMIFS('Banco de Dados'!I:I,'Banco de Dados'!$A:$A,Auxiliar!$A$7,'Banco de Dados'!$K:$K,$B$128&" "&$B129) -> 0 | J129: 0
B130: ="- "&Configurações!$E$14 -> - App 2 | C130: =C21-SUMIFS('Banco de Dados'!C:C,'Banco de Dados'!$A:$A,Auxiliar!$A$7,'Banco de Dados'!$K:$K,$B$128&" "&$B130) ->  | D130: =D21-SUMIFS('Banco de Dados'!D:D,'Banco de Dados'!$A:$A,Auxiliar!$A$7,'Banco de Dados'!$K:$K,$B$128&" "&$B130) -> 0 | E130: =E21-SUMIFS('Banco de Dados'!E:E,'Banco de Dados'!$A:$A,Auxiliar!$A$7,'Banco de Dados'!$K:$K,$B$128&" "&$B130) -> 0 | F130: =F21-SUMIFS('Banco de Dados'!F:F,'Banco de Dados'!$A:$A,Auxiliar!$A$7,'Banco de Dados'!$K:$K,$B$128&" "&$B130) -> 0 | G130: =G21-SUMIFS('Banco de Dados'!G:G,'Banco de Dados'!$A:$A,Auxiliar!$A$7,'Banco de Dados'!$K:$K,$B$128&" "&$B130) -> 0 | H130: =H21-SUMIFS('Banco de Dados'!H:H,'Banco de Dados'!$A:$A,Auxiliar!$A$7,'Banco de Dados'!$K:$K,$B$128&" "&$B130) -> 0 | I130: =I21-SUMIFS('Banco de Dados'!I:I,'Banco de Dados'!$A:$A,Auxiliar!$A$7,'Banco de Dados'!$K:$K,$B$128&" "&$B130) -> 0
B131: ="- "&Configurações!$E$15 -> - App 3 | C131: =C22-SUMIFS('Banco de Dados'!C:C,'Banco de Dados'!$A:$A,Auxiliar!$A$7,'Banco de Dados'!$K:$K,$B$128&" "&$B131) ->  | D131: =D22-SUMIFS('Banco de Dados'!D:D,'Banco de Dados'!$A:$A,Auxiliar!$A$7,'Banco de Dados'!$K:$K,$B$128&" "&$B131) -> 0 | E131: =E22-SUMIFS('Banco de Dados'!E:E,'Banco de Dados'!$A:$A,Auxiliar!$A$7,'Banco de Dados'!$K:$K,$B$128&" "&$B131) -> 0 | F131: =F22-SUMIFS('Banco de Dados'!F:F,'Banco de Dados'!$A:$A,Auxiliar!$A$7,'Banco de Dados'!$K:$K,$B$128&" "&$B131) -> 0 | G131: =G22-SUMIFS('Banco de Dados'!G:G,'Banco de Dados'!$A:$A,Auxiliar!$A$7,'Banco de Dados'!$K:$K,$B$128&" "&$B131) -> 0 | H131: =H22-SUMIFS('Banco de Dados'!H:H,'Banco de Dados'!$A:$A,Auxiliar!$A$7,'Banco de Dados'!$K:$K,$B$128&" "&$B131) -> 0 | I131: =I22-SUMIFS('Banco de Dados'!I:I,'Banco de Dados'!$A:$A,Auxiliar!$A$7,'Banco de Dados'!$K:$K,$B$128&" "&$B131) -> 0
B132: Nº de viagens | C132: =SUM(C133:C135) ->  | D132: =SUM(D133:D135) -> 0 | E132: 0 | F132: 0 | G132: 0 | H132: 0 | I132: 0
B133: ="- "&Configurações!$E$13 -> - Uber | C133: =C24-SUMIFS('Banco de Dados'!C:C,'Banco de Dados'!$A:$A,Auxiliar!$A$7,'Banco de Dados'!$K:$K,$B$132&" "&$B133) -> 0 | D133: =D24-SUMIFS('Banco de Dados'!D:D,'Banco de Dados'!$A:$A,Auxiliar!$A$7,'Banco de Dados'!$K:$K,$B$132&" "&$B133) -> 0 | E133: =E24-SUMIFS('Banco de Dados'!E:E,'Banco de Dados'!$A:$A,Auxiliar!$A$7,'Banco de Dados'!$K:$K,$B$132&" "&$B133) -> 0 | F133: =F24-SUMIFS('Banco de Dados'!F:F,'Banco de Dados'!$A:$A,Auxiliar!$A$7,'Banco de Dados'!$K:$K,$B$132&" "&$B133) -> 0 | G133: =G24-SUMIFS('Banco de Dados'!G:G,'Banco de Dados'!$A:$A,Auxiliar!$A$7,'Banco de Dados'!$K:$K,$B$132&" "&$B133) -> 0 | H133: =H24-SUMIFS('Banco de Dados'!H:H,'Banco de Dados'!$A:$A,Auxiliar!$A$7,'Banco de Dados'!$K:$K,$B$132&" "&$B133) -> 0 | I133: =I24-SUMIFS('Banco de Dados'!I:I,'Banco de Dados'!$A:$A,Auxiliar!$A$7,'Banco de Dados'!$K:$K,$B$132&" "&$B133) -> 0 | J133: 0
B134: ="- "&Configurações!$E$14 -> - App 2 | C134: =C25-SUMIFS('Banco de Dados'!C:C,'Banco de Dados'!$A:$A,Auxiliar!$A$7,'Banco de Dados'!$K:$K,$B$132&" "&$B134) ->  | D134: =D25-SUMIFS('Banco de Dados'!D:D,'Banco de Dados'!$A:$A,Auxiliar!$A$7,'Banco de Dados'!$K:$K,$B$132&" "&$B134) -> 0 | E134: =E25-SUMIFS('Banco de Dados'!E:E,'Banco de Dados'!$A:$A,Auxiliar!$A$7,'Banco de Dados'!$K:$K,$B$132&" "&$B134) -> 0 | F134: =F25-SUMIFS('Banco de Dados'!F:F,'Banco de Dados'!$A:$A,Auxiliar!$A$7,'Banco de Dados'!$K:$K,$B$132&" "&$B134) -> 0 | G134: =G25-SUMIFS('Banco de Dados'!G:G,'Banco de Dados'!$A:$A,Auxiliar!$A$7,'Banco de Dados'!$K:$K,$B$132&" "&$B134) -> 0 | H134: =H25-SUMIFS('Banco de Dados'!H:H,'Banco de Dados'!$A:$A,Auxiliar!$A$7,'Banco de Dados'!$K:$K,$B$132&" "&$B134) -> 0 | I134: =I25-SUMIFS('Banco de Dados'!I:I,'Banco de Dados'!$A:$A,Auxiliar!$A$7,'Banco de Dados'!$K:$K,$B$132&" "&$B134) -> 0
B135: ="- "&Configurações!$E$15 -> - App 3 | C135: =C26-SUMIFS('Banco de Dados'!C:C,'Banco de Dados'!$A:$A,Auxiliar!$A$7,'Banco de Dados'!$K:$K,$B$132&" "&$B135) ->  | D135: =D26-SUMIFS('Banco de Dados'!D:D,'Banco de Dados'!$A:$A,Auxiliar!$A$7,'Banco de Dados'!$K:$K,$B$132&" "&$B135) -> 0 | E135: =E26-SUMIFS('Banco de Dados'!E:E,'Banco de Dados'!$A:$A,Auxiliar!$A$7,'Banco de Dados'!$K:$K,$B$132&" "&$B135) -> 0 | F135: =F26-SUMIFS('Banco de Dados'!F:F,'Banco de Dados'!$A:$A,Auxiliar!$A$7,'Banco de Dados'!$K:$K,$B$132&" "&$B135) -> 0 | G135: =G26-SUMIFS('Banco de Dados'!G:G,'Banco de Dados'!$A:$A,Auxiliar!$A$7,'Banco de Dados'!$K:$K,$B$132&" "&$B135) -> 0 | H135: =H26-SUMIFS('Banco de Dados'!H:H,'Banco de Dados'!$A:$A,Auxiliar!$A$7,'Banco de Dados'!$K:$K,$B$132&" "&$B135) -> 0 | I135: =I26-SUMIFS('Banco de Dados'!I:I,'Banco de Dados'!$A:$A,Auxiliar!$A$7,'Banco de Dados'!$K:$K,$B$132&" "&$B135) -> 0
B136: Custos com combustível | C136: =C27-SUMIFS('Banco de Dados'!C:C,'Banco de Dados'!$A:$A,Auxiliar!$A$7,'Banco de Dados'!$B:$B,$B136) -> 0 | D136: =D27-SUMIFS('Banco de Dados'!D:D,'Banco de Dados'!$A:$A,Auxiliar!$A$7,'Banco de Dados'!$B:$B,$B136) -> 0 | E136: =E27-SUMIFS('Banco de Dados'!E:E,'Banco de Dados'!$A:$A,Auxiliar!$A$7,'Banco de Dados'!$B:$B,$B136) -> 0 | F136: =F27-SUMIFS('Banco de Dados'!F:F,'Banco de Dados'!$A:$A,Auxiliar!$A$7,'Banco de Dados'!$B:$B,$B136) -> 0 | G136: =G27-SUMIFS('Banco de Dados'!G:G,'Banco de Dados'!$A:$A,Auxiliar!$A$7,'Banco de Dados'!$B:$B,$B136) -> 0 | H136: =H27-SUMIFS('Banco de Dados'!H:H,'Banco de Dados'!$A:$A,Auxiliar!$A$7,'Banco de Dados'!$B:$B,$B136) -> 0 | I136: =I27-SUMIFS('Banco de Dados'!I:I,'Banco de Dados'!$A:$A,Auxiliar!$A$7,'Banco de Dados'!$B:$B,$B136) -> 0 | J136: 0
B137: Custos com água | C137: =C28-SUMIFS('Banco de Dados'!C:C,'Banco de Dados'!$A:$A,Auxiliar!$A$7,'Banco de Dados'!$B:$B,$B137) -> 0 | D137: =D28-SUMIFS('Banco de Dados'!D:D,'Banco de Dados'!$A:$A,Auxiliar!$A$7,'Banco de Dados'!$B:$B,$B137) -> 0 | E137: =E28-SUMIFS('Banco de Dados'!E:E,'Banco de Dados'!$A:$A,Auxiliar!$A$7,'Banco de Dados'!$B:$B,$B137) -> 0 | F137: =F28-SUMIFS('Banco de Dados'!F:F,'Banco de Dados'!$A:$A,Auxiliar!$A$7,'Banco de Dados'!$B:$B,$B137) -> 0 | G137: =G28-SUMIFS('Banco de Dados'!G:G,'Banco de Dados'!$A:$A,Auxiliar!$A$7,'Banco de Dados'!$B:$B,$B137) -> 0 | H137: =H28-SUMIFS('Banco de Dados'!H:H,'Banco de Dados'!$A:$A,Auxiliar!$A$7,'Banco de Dados'!$B:$B,$B137) -> 0 | I137: =I28-SUMIFS('Banco de Dados'!I:I,'Banco de Dados'!$A:$A,Auxiliar!$A$7,'Banco de Dados'!$B:$B,$B137) -> 0 | J137: 0
B138: Custos com bala | C138: =C29-SUMIFS('Banco de Dados'!C:C,'Banco de Dados'!$A:$A,Auxiliar!$A$7,'Banco de Dados'!$B:$B,$B138) -> 0 | D138: =D29-SUMIFS('Banco de Dados'!D:D,'Banco de Dados'!$A:$A,Auxiliar!$A$7,'Banco de Dados'!$B:$B,$B138) -> 0 | E138: =E29-SUMIFS('Banco de Dados'!E:E,'Banco de Dados'!$A:$A,Auxiliar!$A$7,'Banco de Dados'!$B:$B,$B138) -> 0 | F138: =F29-SUMIFS('Banco de Dados'!F:F,'Banco de Dados'!$A:$A,Auxiliar!$A$7,'Banco de Dados'!$B:$B,$B138) -> 0 | G138: =G29-SUMIFS('Banco de Dados'!G:G,'Banco de Dados'!$A:$A,Auxiliar!$A$7,'Banco de Dados'!$B:$B,$B138) -> 0 | H138: =H29-SUMIFS('Banco de Dados'!H:H,'Banco de Dados'!$A:$A,Auxiliar!$A$7,'Banco de Dados'!$B:$B,$B138) -> 0 | I138: =I29-SUMIFS('Banco de Dados'!I:I,'Banco de Dados'!$A:$A,Auxiliar!$A$7,'Banco de Dados'!$B:$B,$B138) -> 0 | J138: 0
B139: Outros custos | C139: =C30-SUMIFS('Banco de Dados'!C:C,'Banco de Dados'!$A:$A,Auxiliar!$A$7,'Banco de Dados'!$B:$B,$B139) -> 0 | D139: =D30-SUMIFS('Banco de Dados'!D:D,'Banco de Dados'!$A:$A,Auxiliar!$A$7,'Banco de Dados'!$B:$B,$B139) -> 0 | E139: =E30-SUMIFS('Banco de Dados'!E:E,'Banco de Dados'!$A:$A,Auxiliar!$A$7,'Banco de Dados'!$B:$B,$B139) -> 0 | F139: =F30-SUMIFS('Banco de Dados'!F:F,'Banco de Dados'!$A:$A,Auxiliar!$A$7,'Banco de Dados'!$B:$B,$B139) -> 0 | G139: =G30-SUMIFS('Banco de Dados'!G:G,'Banco de Dados'!$A:$A,Auxiliar!$A$7,'Banco de Dados'!$B:$B,$B139) -> 0 | H139: =H30-SUMIFS('Banco de Dados'!H:H,'Banco de Dados'!$A:$A,Auxiliar!$A$7,'Banco de Dados'!$B:$B,$B139) -> 0 | I139: =I30-SUMIFS('Banco de Dados'!I:I,'Banco de Dados'!$A:$A,Auxiliar!$A$7,'Banco de Dados'!$B:$B,$B139) -> 0 | J139: 0
B140: TOTAL DE CUSTOS | C140: =SUM(C136:C139) -> 0 | D140: =SUM(D136:D139) -> 0 | E140: 0 | F140: 0 | G140: 0 | H140: 0 | I140: 0 | J140: 0
B141: Gastos com alimentação | C141: =C32-SUMIFS('Banco de Dados'!C:C,'Banco de Dados'!$A:$A,Auxiliar!$A$7,'Banco de Dados'!$B:$B,$B141) -> 0 | D141: =D32-SUMIFS('Banco de Dados'!D:D,'Banco de Dados'!$A:$A,Auxiliar!$A$7,'Banco de Dados'!$B:$B,$B141) -> 0 | E141: =E32-SUMIFS('Banco de Dados'!E:E,'Banco de Dados'!$A:$A,Auxiliar!$A$7,'Banco de Dados'!$B:$B,$B141) -> 0 | F141: =F32-SUMIFS('Banco de Dados'!F:F,'Banco de Dados'!$A:$A,Auxiliar!$A$7,'Banco de Dados'!$B:$B,$B141) -> 0 | G141: =G32-SUMIFS('Banco de Dados'!G:G,'Banco de Dados'!$A:$A,Auxiliar!$A$7,'Banco de Dados'!$B:$B,$B141) -> 0 | H141: =H32-SUMIFS('Banco de Dados'!H:H,'Banco de Dados'!$A:$A,Auxiliar!$A$7,'Banco de Dados'!$B:$B,$B141) -> 0 | I141: =I32-SUMIFS('Banco de Dados'!I:I,'Banco de Dados'!$A:$A,Auxiliar!$A$7,'Banco de Dados'!$B:$B,$B141) -> 0 | J141: 0
B142: Estacionamento | C142: =C33-SUMIFS('Banco de Dados'!C:C,'Banco de Dados'!$A:$A,Auxiliar!$A$7,'Banco de Dados'!$B:$B,$B142) ->  | D142: =D33-SUMIFS('Banco de Dados'!D:D,'Banco de Dados'!$A:$A,Auxiliar!$A$7,'Banco de Dados'!$B:$B,$B142) -> 0 | E142: =E33-SUMIFS('Banco de Dados'!E:E,'Banco de Dados'!$A:$A,Auxiliar!$A$7,'Banco de Dados'!$B:$B,$B142) -> 0 | F142: =F33-SUMIFS('Banco de Dados'!F:F,'Banco de Dados'!$A:$A,Auxiliar!$A$7,'Banco de Dados'!$B:$B,$B142) -> 0 | G142: =G33-SUMIFS('Banco de Dados'!G:G,'Banco de Dados'!$A:$A,Auxiliar!$A$7,'Banco de Dados'!$B:$B,$B142) -> 0 | H142: =H33-SUMIFS('Banco de Dados'!H:H,'Banco de Dados'!$A:$A,Auxiliar!$A$7,'Banco de Dados'!$B:$B,$B142) -> 0 | I142: =I33-SUMIFS('Banco de Dados'!I:I,'Banco de Dados'!$A:$A,Auxiliar!$A$7,'Banco de Dados'!$B:$B,$B142) -> 0
B143: Lavagem | C143: =C34-SUMIFS('Banco de Dados'!C:C,'Banco de Dados'!$A:$A,Auxiliar!$A$7,'Banco de Dados'!$B:$B,$B143) ->  | D143: =D34-SUMIFS('Banco de Dados'!D:D,'Banco de Dados'!$A:$A,Auxiliar!$A$7,'Banco de Dados'!$B:$B,$B143) -> 0 | E143: =E34-SUMIFS('Banco de Dados'!E:E,'Banco de Dados'!$A:$A,Auxiliar!$A$7,'Banco de Dados'!$B:$B,$B143) -> 0 | F143: =F34-SUMIFS('Banco de Dados'!F:F,'Banco de Dados'!$A:$A,Auxiliar!$A$7,'Banco de Dados'!$B:$B,$B143) -> 0 | G143: =G34-SUMIFS('Banco de Dados'!G:G,'Banco de Dados'!$A:$A,Auxiliar!$A$7,'Banco de Dados'!$B:$B,$B143) -> 0 | H143: =H34-SUMIFS('Banco de Dados'!H:H,'Banco de Dados'!$A:$A,Auxiliar!$A$7,'Banco de Dados'!$B:$B,$B143) -> 0 | I143: =I34-SUMIFS('Banco de Dados'!I:I,'Banco de Dados'!$A:$A,Auxiliar!$A$7,'Banco de Dados'!$B:$B,$B143) -> 0
B144: Multa | C144: =C35-SUMIFS('Banco de Dados'!C:C,'Banco de Dados'!$A:$A,Auxiliar!$A$7,'Banco de Dados'!$B:$B,$B144) ->  | D144: =D35-SUMIFS('Banco de Dados'!D:D,'Banco de Dados'!$A:$A,Auxiliar!$A$7,'Banco de Dados'!$B:$B,$B144) -> 0 | E144: =E35-SUMIFS('Banco de Dados'!E:E,'Banco de Dados'!$A:$A,Auxiliar!$A$7,'Banco de Dados'!$B:$B,$B144) -> 0 | F144: =F35-SUMIFS('Banco de Dados'!F:F,'Banco de Dados'!$A:$A,Auxiliar!$A$7,'Banco de Dados'!$B:$B,$B144) -> 0 | G144: =G35-SUMIFS('Banco de Dados'!G:G,'Banco de Dados'!$A:$A,Auxiliar!$A$7,'Banco de Dados'!$B:$B,$B144) -> 0 | H144: =H35-SUMIFS('Banco de Dados'!H:H,'Banco de Dados'!$A:$A,Auxiliar!$A$7,'Banco de Dados'!$B:$B,$B144) -> 0 | I144: =I35-SUMIFS('Banco de Dados'!I:I,'Banco de Dados'!$A:$A,Auxiliar!$A$7,'Banco de Dados'!$B:$B,$B144) -> 0
B145: Pedágio | C145: =C36-SUMIFS('Banco de Dados'!C:C,'Banco de Dados'!$A:$A,Auxiliar!$A$7,'Banco de Dados'!$B:$B,$B145) ->  | D145: =D36-SUMIFS('Banco de Dados'!D:D,'Banco de Dados'!$A:$A,Auxiliar!$A$7,'Banco de Dados'!$B:$B,$B145) -> 0 | E145: =E36-SUMIFS('Banco de Dados'!E:E,'Banco de Dados'!$A:$A,Auxiliar!$A$7,'Banco de Dados'!$B:$B,$B145) -> 0 | F145: =F36-SUMIFS('Banco de Dados'!F:F,'Banco de Dados'!$A:$A,Auxiliar!$A$7,'Banco de Dados'!$B:$B,$B145) -> 0 | G145: =G36-SUMIFS('Banco de Dados'!G:G,'Banco de Dados'!$A:$A,Auxiliar!$A$7,'Banco de Dados'!$B:$B,$B145) -> 0 | H145: =H36-SUMIFS('Banco de Dados'!H:H,'Banco de Dados'!$A:$A,Auxiliar!$A$7,'Banco de Dados'!$B:$B,$B145) -> 0 | I145: =I36-SUMIFS('Banco de Dados'!I:I,'Banco de Dados'!$A:$A,Auxiliar!$A$7,'Banco de Dados'!$B:$B,$B145) -> 0
B146: Outras despesas | C146: =C37-SUMIFS('Banco de Dados'!C:C,'Banco de Dados'!$A:$A,Auxiliar!$A$7,'Banco de Dados'!$B:$B,$B146) -> 0 | D146: =D37-SUMIFS('Banco de Dados'!D:D,'Banco de Dados'!$A:$A,Auxiliar!$A$7,'Banco de Dados'!$B:$B,$B146) -> 0 | E146: =E37-SUMIFS('Banco de Dados'!E:E,'Banco de Dados'!$A:$A,Auxiliar!$A$7,'Banco de Dados'!$B:$B,$B146) -> 0 | F146: =F37-SUMIFS('Banco de Dados'!F:F,'Banco de Dados'!$A:$A,Auxiliar!$A$7,'Banco de Dados'!$B:$B,$B146) -> 0 | G146: =G37-SUMIFS('Banco de Dados'!G:G,'Banco de Dados'!$A:$A,Auxiliar!$A$7,'Banco de Dados'!$B:$B,$B146) -> 0 | H146: =H37-SUMIFS('Banco de Dados'!H:H,'Banco de Dados'!$A:$A,Auxiliar!$A$7,'Banco de Dados'!$B:$B,$B146) -> 0 | I146: =I37-SUMIFS('Banco de Dados'!I:I,'Banco de Dados'!$A:$A,Auxiliar!$A$7,'Banco de Dados'!$B:$B,$B146) -> 0 | J146: 0
B147: TOTAL DE DESPESAS | C147: =SUM(C141:C146) ->  | D147: =SUM(D141:D146) -> 0 | E147: 0 | F147: 0 | G147: 0 | H147: 0 | I147: 0
B148: Resultado Bruto | C148: =C126-C140-C147 ->  | D148: =D126-D140-D147 -> 0 | E148: 0 | F148: 0 | G148: 0 | H148: 0 | I148: 0
B164: Semana Atual x Média Histórica | C164: Seg | D164: Ter | E164: Qua | F164: Qui | G164: Sex | H164: Sáb | I164: Dom | J164: Total
B166: Ganhos do dia | C166: =C8-C215 -> 0 | D166: 0 | E166: 0 | F166: 0 | G166: 0 | H166: 0 | I166: 0 | J166: 0
B167: ="- "&Configurações!$E$13 -> - Uber | C167: =C9-C216 -> 0 | D167: 0 | E167: 0 | F167: 0 | G167: 0 | H167: 0 | I167: 0 | J167: 0
B168: ="- "&Configurações!$E$14 -> - App 2 | C168: =C10-C217 ->  | D168: 0 | E168: 0 | F168: 0 | G168: 0 | H168: 0 | I168: 0 | J168: 0
B169: ="- "&Configurações!$E$15 -> - App 3 | C169: =C11-C218 ->  | D169: 0 | E169: 0 | F169: 0 | G169: 0 | H169: 0 | I169: 0 | J169: 0
B170: Bônus/Incentivo | C170: =C12-C219 -> 0 | D170: 0 | E170: 0 | F170: 0 | G170: 0 | H170: 0 | I170: 0 | J170: 0
B171: ="- "&Configurações!$E$13 -> - Uber | C171: =C13-C220 -> 0 | D171: 0 | E171: 0 | F171: 0 | G171: 0 | H171: 0 | I171: 0 | J171: 0
B172: ="- "&Configurações!$E$14 -> - App 2 | C172: =C14-C221 ->  | D172: 0 | E172: 0 | F172: 0 | G172: 0 | H172: 0 | I172: 0 | J172: 0
B173: ="- "&Configurações!$E$15 -> - App 3 | C173: =C15-C222 ->  | D173: 0 | E173: 0 | F173: 0 | G173: 0 | H173: 0 | I173: 0 | J173: 0
B174: Outros Incentivos | C174: =C16-C223 -> 0 | D174: 0 | E174: 0 | F174: 0 | G174: 0 | H174: 0 | I174: 0 | J174: 0
B175: TOTAL DE GANHOS | C175: 0 | D175: 0 | E175: 0 | F175: 0 | G175: 0 | H175: 0 | I175: 0 | J175: 0
B176: Quilometros rodados | C176: 0 | D176: 0 | E176: 0 | F176: 0 | G176: 0 | H176: 0 | I176: 0 | J176: 0
B177: Tempo online | C177: 0 | D177: 0 | E177: 0 | F177: 0 | G177: 0 | H177: 0 | I177: 0 | J177: 0
B178: ="- "&Configurações!$E$13 -> - Uber | C178: =C20-C227 -> 0 | D178: 0 | E178: 0 | F178: 0 | G178: 0 | H178: 0 | I178: 0 | J178: 0
B179: ="- "&Configurações!$E$14 -> - App 2 | C179: =C21-C228 ->  | D179: 0 | E179: 0 | F179: 0 | G179: 0 | H179: 0 | I179: 0 | J179: 0
B180: ="- "&Configurações!$E$15 -> - App 3 | C180: =C22-C229 ->  | D180: 0 | E180: 0 | F180: 0 | G180: 0 | H180: 0 | I180: 0 | J180: 0
B181: Nº de viagens | C181: =C23-C230 -> 0 | D181: 0 | E181: 0 | F181: 0 | G181: 0 | H181: 0 | I181: 0 | J181: 0
B182: ="- "&Configurações!$E$13 -> - Uber | C182: =C24-C231 -> 0 | D182: 0 | E182: 0 | F182: 0 | G182: 0 | H182: 0 | I182: 0 | J182: 0
B183: ="- "&Configurações!$E$14 -> - App 2 | C183: =C25-C232 ->  | D183: 0 | E183: 0 | F183: 0 | G183: 0 | H183: 0 | I183: 0 | J183: 0
B184: ="- "&Configurações!$E$15 -> - App 3 | C184: =C26-C233 ->  | D184: 0 | E184: 0 | F184: 0 | G184: 0 | H184: 0 | I184: 0 | J184: 0
B185: Custos com combustível | C185: =C27-C234 -> 0 | D185: 0 | E185: 0 | F185: 0 | G185: 0 | H185: 0 | I185: 0 | J185: 0
B186: Custos com água | C186: 0 | D186: 0 | E186: 0 | F186: 0 | G186: 0 | H186: 0 | I186: 0 | J186: 0
B187: Custos com bala | C187: 0 | D187: 0 | E187: 0 | F187: 0 | G187: 0 | H187: 0 | I187: 0 | J187: 0
B188: Outros custos | C188: 0 | D188: 0 | E188: 0 | F188: 0 | G188: 0 | H188: 0 | I188: 0 | J188: 0
B189: TOTAL DE CUSTOS | C189: 0 | D189: 0 | E189: 0 | F189: 0 | G189: 0 | H189: 0 | I189: 0 | J189: 0
B190: Gastos com alimentação | C190: 0 | D190: 0 | E190: 0 | F190: 0 | G190: 0 | H190: 0 | I190: 0 | J190: 0
B191: Estacionamento | D191: 0 | E191: 0 | F191: 0 | G191: 0 | H191: 0 | I191: 0 | J191: 0
B192: Lavagem | D192: 0 | E192: 0 | F192: 0 | G192: 0 | H192: 0 | I192: 0 | J192: 0
B193: Multa | D193: 0 | E193: 0 | F193: 0 | G193: 0 | H193: 0 | I193: 0 | J193: 0
B194: Pedágio | D194: 0 | E194: 0 | F194: 0 | G194: 0 | H194: 0 | I194: 0 | J194: 0
B195: Outras despesas | C195: 0 | D195: 0 | E195: 0 | F195: 0 | G195: 0 | H195: 0 | I195: 0 | J195: 0
B196: TOTAL DE DESPESAS | C196: 0 | D196: 0 | E196: 0 | F196: 0 | G196: 0 | H196: 0 | I196: 0 | J196: 0
B197: Resultado Bruto | C197: 0 | D197: 0 | E197: 0 | F197: 0 | G197: 0 | H197: 0 | I197: 0 | J197: 0
B213: Média histórica | C213: Seg | D213: Ter | E213: Qua | F213: Qui | G213: Sex | H213: Sáb | I213: Dom | J213: Total
B215: Ganhos do dia | C215: =SUM(C216:C218) -> 0 | D215: =SUM(D216:D218) -> 0 | E215: 0 | F215: 0 | G215: 0 | H215: 0 | I215: 0 | J215: =SUM(C215:I215) -> 0
B216: ="- "&Configurações!$E$13 -> - Uber | C216: =IFERROR(SUMIFS('Banco de Dados'!C:C,'Banco de Dados'!$K:$K,$B$215&" "&$B216,'Banco de Dados'!$A:$A,"<>"&$C$7)/COUNTIFS('Banco de Dados'!$K:$K,$B$215&" "&$B216,'Banco de Dados'!$A:$A,"<>"&$C$7),0) -> 0 | D216: =IFERROR(SUMIFS('Banco de Dados'!D:D,'Banco de Dados'!$K:$K,$B$215&" "&$B216,'Banco de Dados'!$A:$A,"<>"&$C$7)/COUNTIFS('Banco de Dados'!$K:$K,$B$215&" "&$B216,'Banco de Dados'!$A:$A,"<>"&$C$7),0) -> 0 | E216: =IFERROR(SUMIFS('Banco de Dados'!E:E,'Banco de Dados'!$K:$K,$B$215&" "&$B216,'Banco de Dados'!$A:$A,"<>"&$C$7)/COUNTIFS('Banco de Dados'!$K:$K,$B$215&" "&$B216,'Banco de Dados'!$A:$A,"<>"&$C$7),0) -> 0 | F216: =IFERROR(SUMIFS('Banco de Dados'!F:F,'Banco de Dados'!$K:$K,$B$215&" "&$B216,'Banco de Dados'!$A:$A,"<>"&$C$7)/COUNTIFS('Banco de Dados'!$K:$K,$B$215&" "&$B216,'Banco de Dados'!$A:$A,"<>"&$C$7),0) -> 0 | G216: =IFERROR(SUMIFS('Banco de Dados'!G:G,'Banco de Dados'!$K:$K,$B$215&" "&$B216,'Banco de Dados'!$A:$A,"<>"&$C$7)/COUNTIFS('Banco de Dados'!$K:$K,$B$215&" "&$B216,'Banco de Dados'!$A:$A,"<>"&$C$7),0) -> 0 | H216: =IFERROR(SUMIFS('Banco de Dados'!H:H,'Banco de Dados'!$K:$K,$B$215&" "&$B216,'Banco de Dados'!$A:$A,"<>"&$C$7)/COUNTIFS('Banco de Dados'!$K:$K,$B$215&" "&$B216,'Banco de Dados'!$A:$A,"<>"&$C$7),0) -> 0 | I216: =IFERROR(SUMIFS('Banco de Dados'!I:I,'Banco de Dados'!$K:$K,$B$215&" "&$B216,'Banco de Dados'!$A:$A,"<>"&$C$7)/COUNTIFS('Banco de Dados'!$K:$K,$B$215&" "&$B216,'Banco de Dados'!$A:$A,"<>"&$C$7),0) -> 0 | J216: =SUM(C216:I216) -> 0
B217: ="- "&Configurações!$E$14 -> - App 2 | C217: =IFERROR(SUMIFS('Banco de Dados'!C:C,'Banco de Dados'!$K:$K,$B$215&" "&$B217,'Banco de Dados'!$A:$A,"<>"&$C$7)/COUNTIFS('Banco de Dados'!$K:$K,$B$215&" "&$B217,'Banco de Dados'!$A:$A,"<>"&$C$7),0) -> 0 | D217: =IFERROR(SUMIFS('Banco de Dados'!D:D,'Banco de Dados'!$K:$K,$B$215&" "&$B217,'Banco de Dados'!$A:$A,"<>"&$C$7)/COUNTIFS('Banco de Dados'!$K:$K,$B$215&" "&$B217,'Banco de Dados'!$A:$A,"<>"&$C$7),0) -> 0 | E217: =IFERROR(SUMIFS('Banco de Dados'!E:E,'Banco de Dados'!$K:$K,$B$215&" "&$B217,'Banco de Dados'!$A:$A,"<>"&$C$7)/COUNTIFS('Banco de Dados'!$K:$K,$B$215&" "&$B217,'Banco de Dados'!$A:$A,"<>"&$C$7),0) -> 0 | F217: =IFERROR(SUMIFS('Banco de Dados'!F:F,'Banco de Dados'!$K:$K,$B$215&" "&$B217,'Banco de Dados'!$A:$A,"<>"&$C$7)/COUNTIFS('Banco de Dados'!$K:$K,$B$215&" "&$B217,'Banco de Dados'!$A:$A,"<>"&$C$7),0) -> 0 | G217: =IFERROR(SUMIFS('Banco de Dados'!G:G,'Banco de Dados'!$K:$K,$B$215&" "&$B217,'Banco de Dados'!$A:$A,"<>"&$C$7)/COUNTIFS('Banco de Dados'!$K:$K,$B$215&" "&$B217,'Banco de Dados'!$A:$A,"<>"&$C$7),0) -> 0 | H217: =IFERROR(SUMIFS('Banco de Dados'!H:H,'Banco de Dados'!$K:$K,$B$215&" "&$B217,'Banco de Dados'!$A:$A,"<>"&$C$7)/COUNTIFS('Banco de Dados'!$K:$K,$B$215&" "&$B217,'Banco de Dados'!$A:$A,"<>"&$C$7),0) -> 0 | I217: =IFERROR(SUMIFS('Banco de Dados'!I:I,'Banco de Dados'!$K:$K,$B$215&" "&$B217,'Banco de Dados'!$A:$A,"<>"&$C$7)/COUNTIFS('Banco de Dados'!$K:$K,$B$215&" "&$B217,'Banco de Dados'!$A:$A,"<>"&$C$7),0) -> 0 | J217: 0
B218: ="- "&Configurações!$E$15 -> - App 3 | C218: =IFERROR(SUMIFS('Banco de Dados'!C:C,'Banco de Dados'!$K:$K,$B$215&" "&$B218,'Banco de Dados'!$A:$A,"<>"&$C$7)/COUNTIFS('Banco de Dados'!$K:$K,$B$215&" "&$B218,'Banco de Dados'!$A:$A,"<>"&$C$7),0) -> 0 | D218: =IFERROR(SUMIFS('Banco de Dados'!D:D,'Banco de Dados'!$K:$K,$B$215&" "&$B218,'Banco de Dados'!$A:$A,"<>"&$C$7)/COUNTIFS('Banco de Dados'!$K:$K,$B$215&" "&$B218,'Banco de Dados'!$A:$A,"<>"&$C$7),0) -> 0 | E218: =IFERROR(SUMIFS('Banco de Dados'!E:E,'Banco de Dados'!$K:$K,$B$215&" "&$B218,'Banco de Dados'!$A:$A,"<>"&$C$7)/COUNTIFS('Banco de Dados'!$K:$K,$B$215&" "&$B218,'Banco de Dados'!$A:$A,"<>"&$C$7),0) -> 0 | F218: =IFERROR(SUMIFS('Banco de Dados'!F:F,'Banco de Dados'!$K:$K,$B$215&" "&$B218,'Banco de Dados'!$A:$A,"<>"&$C$7)/COUNTIFS('Banco de Dados'!$K:$K,$B$215&" "&$B218,'Banco de Dados'!$A:$A,"<>"&$C$7),0) -> 0 | G218: =IFERROR(SUMIFS('Banco de Dados'!G:G,'Banco de Dados'!$K:$K,$B$215&" "&$B218,'Banco de Dados'!$A:$A,"<>"&$C$7)/COUNTIFS('Banco de Dados'!$K:$K,$B$215&" "&$B218,'Banco de Dados'!$A:$A,"<>"&$C$7),0) -> 0 | H218: =IFERROR(SUMIFS('Banco de Dados'!H:H,'Banco de Dados'!$K:$K,$B$215&" "&$B218,'Banco de Dados'!$A:$A,"<>"&$C$7)/COUNTIFS('Banco de Dados'!$K:$K,$B$215&" "&$B218,'Banco de Dados'!$A:$A,"<>"&$C$7),0) -> 0 | I218: =IFERROR(SUMIFS('Banco de Dados'!I:I,'Banco de Dados'!$K:$K,$B$215&" "&$B218,'Banco de Dados'!$A:$A,"<>"&$C$7)/COUNTIFS('Banco de Dados'!$K:$K,$B$215&" "&$B218,'Banco de Dados'!$A:$A,"<>"&$C$7),0) -> 0 | J218: 0
B219: Bônus/Incentivo | C219: =SUM(C220:C222) -> 0 | D219: =SUM(D220:D222) -> 0 | E219: =SUM(E220:E222) -> 0 | F219: =SUM(F220:F222) -> 0 | G219: =SUM(G220:G222) -> 0 | H219: =SUM(H220:H222) -> 0 | I219: =SUM(I220:I222) -> 0 | J219: =SUM(C219:I219) -> 0
B220: ="- "&Configurações!$E$13 -> - Uber | C220: =IFERROR(SUMIFS('Banco de Dados'!C:C,'Banco de Dados'!$K:$K,$B$219&" "&$B220,'Banco de Dados'!$A:$A,"<>"&$C$7)/COUNTIFS('Banco de Dados'!$K:$K,$B$219&" "&$B220,'Banco de Dados'!$A:$A,"<>"&$C$7),0) -> 0 | D220: =IFERROR(SUMIFS('Banco de Dados'!D:D,'Banco de Dados'!$K:$K,$B$219&" "&$B220,'Banco de Dados'!$A:$A,"<>"&$C$7)/COUNTIFS('Banco de Dados'!$K:$K,$B$219&" "&$B220,'Banco de Dados'!$A:$A,"<>"&$C$7),0) -> 0 | E220: =IFERROR(SUMIFS('Banco de Dados'!E:E,'Banco de Dados'!$K:$K,$B$219&" "&$B220,'Banco de Dados'!$A:$A,"<>"&$C$7)/COUNTIFS('Banco de Dados'!$K:$K,$B$219&" "&$B220,'Banco de Dados'!$A:$A,"<>"&$C$7),0) -> 0 | F220: =IFERROR(SUMIFS('Banco de Dados'!F:F,'Banco de Dados'!$K:$K,$B$219&" "&$B220,'Banco de Dados'!$A:$A,"<>"&$C$7)/COUNTIFS('Banco de Dados'!$K:$K,$B$219&" "&$B220,'Banco de Dados'!$A:$A,"<>"&$C$7),0) -> 0 | G220: =IFERROR(SUMIFS('Banco de Dados'!G:G,'Banco de Dados'!$K:$K,$B$219&" "&$B220,'Banco de Dados'!$A:$A,"<>"&$C$7)/COUNTIFS('Banco de Dados'!$K:$K,$B$219&" "&$B220,'Banco de Dados'!$A:$A,"<>"&$C$7),0) -> 0 | H220: =IFERROR(SUMIFS('Banco de Dados'!H:H,'Banco de Dados'!$K:$K,$B$219&" "&$B220,'Banco de Dados'!$A:$A,"<>"&$C$7)/COUNTIFS('Banco de Dados'!$K:$K,$B$219&" "&$B220,'Banco de Dados'!$A:$A,"<>"&$C$7),0) -> 0 | I220: =IFERROR(SUMIFS('Banco de Dados'!I:I,'Banco de Dados'!$K:$K,$B$219&" "&$B220,'Banco de Dados'!$A:$A,"<>"&$C$7)/COUNTIFS('Banco de Dados'!$K:$K,$B$219&" "&$B220,'Banco de Dados'!$A:$A,"<>"&$C$7),0) -> 0 | J220: 0
B221: ="- "&Configurações!$E$14 -> - App 2 | C221: =IFERROR(SUMIFS('Banco de Dados'!C:C,'Banco de Dados'!$K:$K,$B$219&" "&$B221,'Banco de Dados'!$A:$A,"<>"&$C$7)/COUNTIFS('Banco de Dados'!$K:$K,$B$219&" "&$B221,'Banco de Dados'!$A:$A,"<>"&$C$7),0) -> 0 | D221: =IFERROR(SUMIFS('Banco de Dados'!D:D,'Banco de Dados'!$K:$K,$B$219&" "&$B221,'Banco de Dados'!$A:$A,"<>"&$C$7)/COUNTIFS('Banco de Dados'!$K:$K,$B$219&" "&$B221,'Banco de Dados'!$A:$A,"<>"&$C$7),0) -> 0 | E221: =IFERROR(SUMIFS('Banco de Dados'!E:E,'Banco de Dados'!$K:$K,$B$219&" "&$B221,'Banco de Dados'!$A:$A,"<>"&$C$7)/COUNTIFS('Banco de Dados'!$K:$K,$B$219&" "&$B221,'Banco de Dados'!$A:$A,"<>"&$C$7),0) -> 0 | F221: =IFERROR(SUMIFS('Banco de Dados'!F:F,'Banco de Dados'!$K:$K,$B$219&" "&$B221,'Banco de Dados'!$A:$A,"<>"&$C$7)/COUNTIFS('Banco de Dados'!$K:$K,$B$219&" "&$B221,'Banco de Dados'!$A:$A,"<>"&$C$7),0) -> 0 | G221: =IFERROR(SUMIFS('Banco de Dados'!G:G,'Banco de Dados'!$K:$K,$B$219&" "&$B221,'Banco de Dados'!$A:$A,"<>"&$C$7)/COUNTIFS('Banco de Dados'!$K:$K,$B$219&" "&$B221,'Banco de Dados'!$A:$A,"<>"&$C$7),0) -> 0 | H221: =IFERROR(SUMIFS('Banco de Dados'!H:H,'Banco de Dados'!$K:$K,$B$219&" "&$B221,'Banco de Dados'!$A:$A,"<>"&$C$7)/COUNTIFS('Banco de Dados'!$K:$K,$B$219&" "&$B221,'Banco de Dados'!$A:$A,"<>"&$C$7),0) -> 0 | I221: =IFERROR(SUMIFS('Banco de Dados'!I:I,'Banco de Dados'!$K:$K,$B$219&" "&$B221,'Banco de Dados'!$A:$A,"<>"&$C$7)/COUNTIFS('Banco de Dados'!$K:$K,$B$219&" "&$B221,'Banco de Dados'!$A:$A,"<>"&$C$7),0) -> 0 | J221: 0
B222: ="- "&Configurações!$E$15 -> - App 3 | C222: =IFERROR(SUMIFS('Banco de Dados'!C:C,'Banco de Dados'!$K:$K,$B$219&" "&$B222,'Banco de Dados'!$A:$A,"<>"&$C$7)/COUNTIFS('Banco de Dados'!$K:$K,$B$219&" "&$B222,'Banco de Dados'!$A:$A,"<>"&$C$7),0) -> 0 | D222: =IFERROR(SUMIFS('Banco de Dados'!D:D,'Banco de Dados'!$K:$K,$B$219&" "&$B222,'Banco de Dados'!$A:$A,"<>"&$C$7)/COUNTIFS('Banco de Dados'!$K:$K,$B$219&" "&$B222,'Banco de Dados'!$A:$A,"<>"&$C$7),0) -> 0 | E222: =IFERROR(SUMIFS('Banco de Dados'!E:E,'Banco de Dados'!$K:$K,$B$219&" "&$B222,'Banco de Dados'!$A:$A,"<>"&$C$7)/COUNTIFS('Banco de Dados'!$K:$K,$B$219&" "&$B222,'Banco de Dados'!$A:$A,"<>"&$C$7),0) -> 0 | F222: =IFERROR(SUMIFS('Banco de Dados'!F:F,'Banco de Dados'!$K:$K,$B$219&" "&$B222,'Banco de Dados'!$A:$A,"<>"&$C$7)/COUNTIFS('Banco de Dados'!$K:$K,$B$219&" "&$B222,'Banco de Dados'!$A:$A,"<>"&$C$7),0) -> 0 | G222: =IFERROR(SUMIFS('Banco de Dados'!G:G,'Banco de Dados'!$K:$K,$B$219&" "&$B222,'Banco de Dados'!$A:$A,"<>"&$C$7)/COUNTIFS('Banco de Dados'!$K:$K,$B$219&" "&$B222,'Banco de Dados'!$A:$A,"<>"&$C$7),0) -> 0 | H222: =IFERROR(SUMIFS('Banco de Dados'!H:H,'Banco de Dados'!$K:$K,$B$219&" "&$B222,'Banco de Dados'!$A:$A,"<>"&$C$7)/COUNTIFS('Banco de Dados'!$K:$K,$B$219&" "&$B222,'Banco de Dados'!$A:$A,"<>"&$C$7),0) -> 0 | I222: =IFERROR(SUMIFS('Banco de Dados'!I:I,'Banco de Dados'!$K:$K,$B$219&" "&$B222,'Banco de Dados'!$A:$A,"<>"&$C$7)/COUNTIFS('Banco de Dados'!$K:$K,$B$219&" "&$B222,'Banco de Dados'!$A:$A,"<>"&$C$7),0) -> 0 | J222: 0
B223: Outros Incentivos | C223: =IFERROR(SUMIFS('Banco de Dados'!C:C,'Banco de Dados'!$B:$B,$B223,'Banco de Dados'!$A:$A,"<>"&$C$7)/COUNTIFS('Banco de Dados'!$B:$B,$B223,'Banco de Dados'!$A:$A,"<>"&$C$7),0) -> 0 | D223: =IFERROR(SUMIFS('Banco de Dados'!D:D,'Banco de Dados'!$B:$B,$B223,'Banco de Dados'!$A:$A,"<>"&$C$7)/COUNTIFS('Banco de Dados'!$B:$B,$B223,'Banco de Dados'!$A:$A,"<>"&$C$7),0) -> 0 | E223: =IFERROR(SUMIFS('Banco de Dados'!E:E,'Banco de Dados'!$B:$B,$B223,'Banco de Dados'!$A:$A,"<>"&$C$7)/COUNTIFS('Banco de Dados'!$B:$B,$B223,'Banco de Dados'!$A:$A,"<>"&$C$7),0) -> 0 | F223: =IFERROR(SUMIFS('Banco de Dados'!F:F,'Banco de Dados'!$B:$B,$B223,'Banco de Dados'!$A:$A,"<>"&$C$7)/COUNTIFS('Banco de Dados'!$B:$B,$B223,'Banco de Dados'!$A:$A,"<>"&$C$7),0) -> 0 | G223: =IFERROR(SUMIFS('Banco de Dados'!G:G,'Banco de Dados'!$B:$B,$B223,'Banco de Dados'!$A:$A,"<>"&$C$7)/COUNTIFS('Banco de Dados'!$B:$B,$B223,'Banco de Dados'!$A:$A,"<>"&$C$7),0) -> 0 | H223: =IFERROR(SUMIFS('Banco de Dados'!H:H,'Banco de Dados'!$B:$B,$B223,'Banco de Dados'!$A:$A,"<>"&$C$7)/COUNTIFS('Banco de Dados'!$B:$B,$B223,'Banco de Dados'!$A:$A,"<>"&$C$7),0) -> 0 | I223: =IFERROR(SUMIFS('Banco de Dados'!I:I,'Banco de Dados'!$B:$B,$B223,'Banco de Dados'!$A:$A,"<>"&$C$7)/COUNTIFS('Banco de Dados'!$B:$B,$B223,'Banco de Dados'!$A:$A,"<>"&$C$7),0) -> 0 | J223: 0
B224: TOTAL DE GANHOS | C224: =SUM(C223,C219,C215) -> 0 | D224: =SUM(D223,D219,D215) -> 0 | E224: 0 | F224: 0 | G224: 0 | H224: 0 | I224: 0 | J224: 0
B225: Quilometros rodados | C225: =IFERROR(SUMIFS('Banco de Dados'!C:C,'Banco de Dados'!$B:$B,$B225,'Banco de Dados'!$A:$A,"<>"&$C$7)/COUNTIFS('Banco de Dados'!$B:$B,$B225,'Banco de Dados'!$A:$A,"<>"&$C$7),0) -> 0 | D225: =IFERROR(SUMIFS('Banco de Dados'!D:D,'Banco de Dados'!$B:$B,$B225,'Banco de Dados'!$A:$A,"<>"&$C$7)/COUNTIFS('Banco de Dados'!$B:$B,$B225,'Banco de Dados'!$A:$A,"<>"&$C$7),0) -> 0 | E225: =IFERROR(SUMIFS('Banco de Dados'!E:E,'Banco de Dados'!$B:$B,$B225,'Banco de Dados'!$A:$A,"<>"&$C$7)/COUNTIFS('Banco de Dados'!$B:$B,$B225,'Banco de Dados'!$A:$A,"<>"&$C$7),0) -> 0 | F225: =IFERROR(SUMIFS('Banco de Dados'!F:F,'Banco de Dados'!$B:$B,$B225,'Banco de Dados'!$A:$A,"<>"&$C$7)/COUNTIFS('Banco de Dados'!$B:$B,$B225,'Banco de Dados'!$A:$A,"<>"&$C$7),0) -> 0 | G225: =IFERROR(SUMIFS('Banco de Dados'!G:G,'Banco de Dados'!$B:$B,$B225,'Banco de Dados'!$A:$A,"<>"&$C$7)/COUNTIFS('Banco de Dados'!$B:$B,$B225,'Banco de Dados'!$A:$A,"<>"&$C$7),0) -> 0 | H225: =IFERROR(SUMIFS('Banco de Dados'!H:H,'Banco de Dados'!$B:$B,$B225,'Banco de Dados'!$A:$A,"<>"&$C$7)/COUNTIFS('Banco de Dados'!$B:$B,$B225,'Banco de Dados'!$A:$A,"<>"&$C$7),0) -> 0 | I225: =IFERROR(SUMIFS('Banco de Dados'!I:I,'Banco de Dados'!$B:$B,$B225,'Banco de Dados'!$A:$A,"<>"&$C$7)/COUNTIFS('Banco de Dados'!$B:$B,$B225,'Banco de Dados'!$A:$A,"<>"&$C$7),0) -> 0 | J225: 0
B226: Tempo online | C226: =SUM(C227:C229) -> 0 | D226: =SUM(D227:D229) -> 0 | E226: =SUM(E227:E229) -> 0 | F226: =SUM(F227:F229) -> 0 | G226: =SUM(G227:G229) -> 0 | H226: =SUM(H227:H229) -> 0 | I226: =SUM(I227:I229) -> 0 | J226: =SUM(C226:I226) -> 0
B227: ="- "&Configurações!$E$13 -> - Uber | C227: =IFERROR(SUMIFS('Banco de Dados'!C:C,'Banco de Dados'!$K:$K,$B$226&" "&$B227,'Banco de Dados'!$A:$A,"<>"&$C$7)/COUNTIFS('Banco de Dados'!$K:$K,$B$226&" "&$B227,'Banco de Dados'!$A:$A,"<>"&$C$7),0) -> 0 | D227: =IFERROR(SUMIFS('Banco de Dados'!D:D,'Banco de Dados'!$K:$K,$B$226&" "&$B227,'Banco de Dados'!$A:$A,"<>"&$C$7)/COUNTIFS('Banco de Dados'!$K:$K,$B$226&" "&$B227,'Banco de Dados'!$A:$A,"<>"&$C$7),0) -> 0 | E227: =IFERROR(SUMIFS('Banco de Dados'!E:E,'Banco de Dados'!$K:$K,$B$226&" "&$B227,'Banco de Dados'!$A:$A,"<>"&$C$7)/COUNTIFS('Banco de Dados'!$K:$K,$B$226&" "&$B227,'Banco de Dados'!$A:$A,"<>"&$C$7),0) -> 0 | F227: =IFERROR(SUMIFS('Banco de Dados'!F:F,'Banco de Dados'!$K:$K,$B$226&" "&$B227,'Banco de Dados'!$A:$A,"<>"&$C$7)/COUNTIFS('Banco de Dados'!$K:$K,$B$226&" "&$B227,'Banco de Dados'!$A:$A,"<>"&$C$7),0) -> 0 | G227: =IFERROR(SUMIFS('Banco de Dados'!G:G,'Banco de Dados'!$K:$K,$B$226&" "&$B227,'Banco de Dados'!$A:$A,"<>"&$C$7)/COUNTIFS('Banco de Dados'!$K:$K,$B$226&" "&$B227,'Banco de Dados'!$A:$A,"<>"&$C$7),0) -> 0 | H227: =IFERROR(SUMIFS('Banco de Dados'!H:H,'Banco de Dados'!$K:$K,$B$226&" "&$B227,'Banco de Dados'!$A:$A,"<>"&$C$7)/COUNTIFS('Banco de Dados'!$K:$K,$B$226&" "&$B227,'Banco de Dados'!$A:$A,"<>"&$C$7),0) -> 0 | I227: =IFERROR(SUMIFS('Banco de Dados'!I:I,'Banco de Dados'!$K:$K,$B$226&" "&$B227,'Banco de Dados'!$A:$A,"<>"&$C$7)/COUNTIFS('Banco de Dados'!$K:$K,$B$226&" "&$B227,'Banco de Dados'!$A:$A,"<>"&$C$7),0) -> 0 | J227: 0
B228: ="- "&Configurações!$E$14 -> - App 2 | C228: =IFERROR(SUMIFS('Banco de Dados'!C:C,'Banco de Dados'!$K:$K,$B$226&" "&$B228,'Banco de Dados'!$A:$A,"<>"&$C$7)/COUNTIFS('Banco de Dados'!$K:$K,$B$226&" "&$B228,'Banco de Dados'!$A:$A,"<>"&$C$7),0) -> 0 | D228: =IFERROR(SUMIFS('Banco de Dados'!D:D,'Banco de Dados'!$K:$K,$B$226&" "&$B228,'Banco de Dados'!$A:$A,"<>"&$C$7)/COUNTIFS('Banco de Dados'!$K:$K,$B$226&" "&$B228,'Banco de Dados'!$A:$A,"<>"&$C$7),0) -> 0 | E228: =IFERROR(SUMIFS('Banco de Dados'!E:E,'Banco de Dados'!$K:$K,$B$226&" "&$B228,'Banco de Dados'!$A:$A,"<>"&$C$7)/COUNTIFS('Banco de Dados'!$K:$K,$B$226&" "&$B228,'Banco de Dados'!$A:$A,"<>"&$C$7),0) -> 0 | F228: =IFERROR(SUMIFS('Banco de Dados'!F:F,'Banco de Dados'!$K:$K,$B$226&" "&$B228,'Banco de Dados'!$A:$A,"<>"&$C$7)/COUNTIFS('Banco de Dados'!$K:$K,$B$226&" "&$B228,'Banco de Dados'!$A:$A,"<>"&$C$7),0) -> 0 | G228: =IFERROR(SUMIFS('Banco de Dados'!G:G,'Banco de Dados'!$K:$K,$B$226&" "&$B228,'Banco de Dados'!$A:$A,"<>"&$C$7)/COUNTIFS('Banco de Dados'!$K:$K,$B$226&" "&$B228,'Banco de Dados'!$A:$A,"<>"&$C$7),0) -> 0 | H228: =IFERROR(SUMIFS('Banco de Dados'!H:H,'Banco de Dados'!$K:$K,$B$226&" "&$B228,'Banco de Dados'!$A:$A,"<>"&$C$7)/COUNTIFS('Banco de Dados'!$K:$K,$B$226&" "&$B228,'Banco de Dados'!$A:$A,"<>"&$C$7),0) -> 0 | I228: =IFERROR(SUMIFS('Banco de Dados'!I:I,'Banco de Dados'!$K:$K,$B$226&" "&$B228,'Banco de Dados'!$A:$A,"<>"&$C$7)/COUNTIFS('Banco de Dados'!$K:$K,$B$226&" "&$B228,'Banco de Dados'!$A:$A,"<>"&$C$7),0) -> 0 | J228: 0
B229: ="- "&Configurações!$E$15 -> - App 3 | C229: =IFERROR(SUMIFS('Banco de Dados'!C:C,'Banco de Dados'!$K:$K,$B$226&" "&$B229,'Banco de Dados'!$A:$A,"<>"&$C$7)/COUNTIFS('Banco de Dados'!$K:$K,$B$226&" "&$B229,'Banco de Dados'!$A:$A,"<>"&$C$7),0) -> 0 | D229: =IFERROR(SUMIFS('Banco de Dados'!D:D,'Banco de Dados'!$K:$K,$B$226&" "&$B229,'Banco de Dados'!$A:$A,"<>"&$C$7)/COUNTIFS('Banco de Dados'!$K:$K,$B$226&" "&$B229,'Banco de Dados'!$A:$A,"<>"&$C$7),0) -> 0 | E229: =IFERROR(SUMIFS('Banco de Dados'!E:E,'Banco de Dados'!$K:$K,$B$226&" "&$B229,'Banco de Dados'!$A:$A,"<>"&$C$7)/COUNTIFS('Banco de Dados'!$K:$K,$B$226&" "&$B229,'Banco de Dados'!$A:$A,"<>"&$C$7),0) -> 0 | F229: =IFERROR(SUMIFS('Banco de Dados'!F:F,'Banco de Dados'!$K:$K,$B$226&" "&$B229,'Banco de Dados'!$A:$A,"<>"&$C$7)/COUNTIFS('Banco de Dados'!$K:$K,$B$226&" "&$B229,'Banco de Dados'!$A:$A,"<>"&$C$7),0) -> 0 | G229: =IFERROR(SUMIFS('Banco de Dados'!G:G,'Banco de Dados'!$K:$K,$B$226&" "&$B229,'Banco de Dados'!$A:$A,"<>"&$C$7)/COUNTIFS('Banco de Dados'!$K:$K,$B$226&" "&$B229,'Banco de Dados'!$A:$A,"<>"&$C$7),0) -> 0 | H229: =IFERROR(SUMIFS('Banco de Dados'!H:H,'Banco de Dados'!$K:$K,$B$226&" "&$B229,'Banco de Dados'!$A:$A,"<>"&$C$7)/COUNTIFS('Banco de Dados'!$K:$K,$B$226&" "&$B229,'Banco de Dados'!$A:$A,"<>"&$C$7),0) -> 0 | I229: =IFERROR(SUMIFS('Banco de Dados'!I:I,'Banco de Dados'!$K:$K,$B$226&" "&$B229,'Banco de Dados'!$A:$A,"<>"&$C$7)/COUNTIFS('Banco de Dados'!$K:$K,$B$226&" "&$B229,'Banco de Dados'!$A:$A,"<>"&$C$7),0) -> 0 | J229: 0
B230: Nº de viagens | C230: =SUM(C231:C233) -> 0 | D230: =SUM(D231:D233) -> 0 | E230: =SUM(E231:E233) -> 0 | F230: =SUM(F231:F233) -> 0 | G230: =SUM(G231:G233) -> 0 | H230: =SUM(H231:H233) -> 0 | I230: =SUM(I231:I233) -> 0 | J230: =SUM(C230:I230) -> 0
B231: ="- "&Configurações!$E$13 -> - Uber | C231: =IFERROR(SUMIFS('Banco de Dados'!C:C,'Banco de Dados'!$K:$K,$B$230&" "&$B231,'Banco de Dados'!$A:$A,"<>"&$C$7)/COUNTIFS('Banco de Dados'!$K:$K,$B$230&" "&$B231,'Banco de Dados'!$A:$A,"<>"&$C$7),0) -> 0 | D231: =IFERROR(SUMIFS('Banco de Dados'!D:D,'Banco de Dados'!$K:$K,$B$230&" "&$B231,'Banco de Dados'!$A:$A,"<>"&$C$7)/COUNTIFS('Banco de Dados'!$K:$K,$B$230&" "&$B231,'Banco de Dados'!$A:$A,"<>"&$C$7),0) -> 0 | E231: =IFERROR(SUMIFS('Banco de Dados'!E:E,'Banco de Dados'!$K:$K,$B$230&" "&$B231,'Banco de Dados'!$A:$A,"<>"&$C$7)/COUNTIFS('Banco de Dados'!$K:$K,$B$230&" "&$B231,'Banco de Dados'!$A:$A,"<>"&$C$7),0) -> 0 | F231: =IFERROR(SUMIFS('Banco de Dados'!F:F,'Banco de Dados'!$K:$K,$B$230&" "&$B231,'Banco de Dados'!$A:$A,"<>"&$C$7)/COUNTIFS('Banco de Dados'!$K:$K,$B$230&" "&$B231,'Banco de Dados'!$A:$A,"<>"&$C$7),0) -> 0 | G231: =IFERROR(SUMIFS('Banco de Dados'!G:G,'Banco de Dados'!$K:$K,$B$230&" "&$B231,'Banco de Dados'!$A:$A,"<>"&$C$7)/COUNTIFS('Banco de Dados'!$K:$K,$B$230&" "&$B231,'Banco de Dados'!$A:$A,"<>"&$C$7),0) -> 0 | H231: =IFERROR(SUMIFS('Banco de Dados'!H:H,'Banco de Dados'!$K:$K,$B$230&" "&$B231,'Banco de Dados'!$A:$A,"<>"&$C$7)/COUNTIFS('Banco de Dados'!$K:$K,$B$230&" "&$B231,'Banco de Dados'!$A:$A,"<>"&$C$7),0) -> 0 | I231: =IFERROR(SUMIFS('Banco de Dados'!I:I,'Banco de Dados'!$K:$K,$B$230&" "&$B231,'Banco de Dados'!$A:$A,"<>"&$C$7)/COUNTIFS('Banco de Dados'!$K:$K,$B$230&" "&$B231,'Banco de Dados'!$A:$A,"<>"&$C$7),0) -> 0 | J231: 0
B232: ="- "&Configurações!$E$14 -> - App 2 | C232: =IFERROR(SUMIFS('Banco de Dados'!C:C,'Banco de Dados'!$K:$K,$B$230&" "&$B232,'Banco de Dados'!$A:$A,"<>"&$C$7)/COUNTIFS('Banco de Dados'!$K:$K,$B$230&" "&$B232,'Banco de Dados'!$A:$A,"<>"&$C$7),0) -> 0 | D232: =IFERROR(SUMIFS('Banco de Dados'!D:D,'Banco de Dados'!$K:$K,$B$230&" "&$B232,'Banco de Dados'!$A:$A,"<>"&$C$7)/COUNTIFS('Banco de Dados'!$K:$K,$B$230&" "&$B232,'Banco de Dados'!$A:$A,"<>"&$C$7),0) -> 0 | E232: =IFERROR(SUMIFS('Banco de Dados'!E:E,'Banco de Dados'!$K:$K,$B$230&" "&$B232,'Banco de Dados'!$A:$A,"<>"&$C$7)/COUNTIFS('Banco de Dados'!$K:$K,$B$230&" "&$B232,'Banco de Dados'!$A:$A,"<>"&$C$7),0) -> 0 | F232: =IFERROR(SUMIFS('Banco de Dados'!F:F,'Banco de Dados'!$K:$K,$B$230&" "&$B232,'Banco de Dados'!$A:$A,"<>"&$C$7)/COUNTIFS('Banco de Dados'!$K:$K,$B$230&" "&$B232,'Banco de Dados'!$A:$A,"<>"&$C$7),0) -> 0 | G232: =IFERROR(SUMIFS('Banco de Dados'!G:G,'Banco de Dados'!$K:$K,$B$230&" "&$B232,'Banco de Dados'!$A:$A,"<>"&$C$7)/COUNTIFS('Banco de Dados'!$K:$K,$B$230&" "&$B232,'Banco de Dados'!$A:$A,"<>"&$C$7),0) -> 0 | H232: =IFERROR(SUMIFS('Banco de Dados'!H:H,'Banco de Dados'!$K:$K,$B$230&" "&$B232,'Banco de Dados'!$A:$A,"<>"&$C$7)/COUNTIFS('Banco de Dados'!$K:$K,$B$230&" "&$B232,'Banco de Dados'!$A:$A,"<>"&$C$7),0) -> 0 | I232: =IFERROR(SUMIFS('Banco de Dados'!I:I,'Banco de Dados'!$K:$K,$B$230&" "&$B232,'Banco de Dados'!$A:$A,"<>"&$C$7)/COUNTIFS('Banco de Dados'!$K:$K,$B$230&" "&$B232,'Banco de Dados'!$A:$A,"<>"&$C$7),0) -> 0 | J232: 0
B233: ="- "&Configurações!$E$15 -> - App 3 | C233: =IFERROR(SUMIFS('Banco de Dados'!C:C,'Banco de Dados'!$K:$K,$B$230&" "&$B233,'Banco de Dados'!$A:$A,"<>"&$C$7)/COUNTIFS('Banco de Dados'!$K:$K,$B$230&" "&$B233,'Banco de Dados'!$A:$A,"<>"&$C$7),0) -> 0 | D233: =IFERROR(SUMIFS('Banco de Dados'!D:D,'Banco de Dados'!$K:$K,$B$230&" "&$B233,'Banco de Dados'!$A:$A,"<>"&$C$7)/COUNTIFS('Banco de Dados'!$K:$K,$B$230&" "&$B233,'Banco de Dados'!$A:$A,"<>"&$C$7),0) -> 0 | E233: =IFERROR(SUMIFS('Banco de Dados'!E:E,'Banco de Dados'!$K:$K,$B$230&" "&$B233,'Banco de Dados'!$A:$A,"<>"&$C$7)/COUNTIFS('Banco de Dados'!$K:$K,$B$230&" "&$B233,'Banco de Dados'!$A:$A,"<>"&$C$7),0) -> 0 | F233: =IFERROR(SUMIFS('Banco de Dados'!F:F,'Banco de Dados'!$K:$K,$B$230&" "&$B233,'Banco de Dados'!$A:$A,"<>"&$C$7)/COUNTIFS('Banco de Dados'!$K:$K,$B$230&" "&$B233,'Banco de Dados'!$A:$A,"<>"&$C$7),0) -> 0 | G233: =IFERROR(SUMIFS('Banco de Dados'!G:G,'Banco de Dados'!$K:$K,$B$230&" "&$B233,'Banco de Dados'!$A:$A,"<>"&$C$7)/COUNTIFS('Banco de Dados'!$K:$K,$B$230&" "&$B233,'Banco de Dados'!$A:$A,"<>"&$C$7),0) -> 0 | H233: =IFERROR(SUMIFS('Banco de Dados'!H:H,'Banco de Dados'!$K:$K,$B$230&" "&$B233,'Banco de Dados'!$A:$A,"<>"&$C$7)/COUNTIFS('Banco de Dados'!$K:$K,$B$230&" "&$B233,'Banco de Dados'!$A:$A,"<>"&$C$7),0) -> 0 | I233: =IFERROR(SUMIFS('Banco de Dados'!I:I,'Banco de Dados'!$K:$K,$B$230&" "&$B233,'Banco de Dados'!$A:$A,"<>"&$C$7)/COUNTIFS('Banco de Dados'!$K:$K,$B$230&" "&$B233,'Banco de Dados'!$A:$A,"<>"&$C$7),0) -> 0 | J233: 0
B234: Custos com combustível | C234: =IFERROR(SUMIFS('Banco de Dados'!C:C,'Banco de Dados'!$B:$B,$B234,'Banco de Dados'!$A:$A,"<>"&$C$7)/COUNTIFS('Banco de Dados'!$B:$B,$B234,'Banco de Dados'!$A:$A,"<>"&$C$7),0) -> 0 | D234: =IFERROR(SUMIFS('Banco de Dados'!D:D,'Banco de Dados'!$B:$B,$B234,'Banco de Dados'!$A:$A,"<>"&$C$7)/COUNTIFS('Banco de Dados'!$B:$B,$B234,'Banco de Dados'!$A:$A,"<>"&$C$7),0) -> 0 | E234: =IFERROR(SUMIFS('Banco de Dados'!E:E,'Banco de Dados'!$B:$B,$B234,'Banco de Dados'!$A:$A,"<>"&$C$7)/COUNTIFS('Banco de Dados'!$B:$B,$B234,'Banco de Dados'!$A:$A,"<>"&$C$7),0) -> 0 | F234: =IFERROR(SUMIFS('Banco de Dados'!F:F,'Banco de Dados'!$B:$B,$B234,'Banco de Dados'!$A:$A,"<>"&$C$7)/COUNTIFS('Banco de Dados'!$B:$B,$B234,'Banco de Dados'!$A:$A,"<>"&$C$7),0) -> 0 | G234: =IFERROR(SUMIFS('Banco de Dados'!G:G,'Banco de Dados'!$B:$B,$B234,'Banco de Dados'!$A:$A,"<>"&$C$7)/COUNTIFS('Banco de Dados'!$B:$B,$B234,'Banco de Dados'!$A:$A,"<>"&$C$7),0) -> 0 | H234: =IFERROR(SUMIFS('Banco de Dados'!H:H,'Banco de Dados'!$B:$B,$B234,'Banco de Dados'!$A:$A,"<>"&$C$7)/COUNTIFS('Banco de Dados'!$B:$B,$B234,'Banco de Dados'!$A:$A,"<>"&$C$7),0) -> 0 | I234: =IFERROR(SUMIFS('Banco de Dados'!I:I,'Banco de Dados'!$B:$B,$B234,'Banco de Dados'!$A:$A,"<>"&$C$7)/COUNTIFS('Banco de Dados'!$B:$B,$B234,'Banco de Dados'!$A:$A,"<>"&$C$7),0) -> 0 | J234: 0
B235: Custos com água | C235: =IFERROR(SUMIFS('Banco de Dados'!C:C,'Banco de Dados'!$B:$B,$B235,'Banco de Dados'!$A:$A,"<>"&$C$7)/COUNTIFS('Banco de Dados'!$B:$B,$B235,'Banco de Dados'!$A:$A,"<>"&$C$7),0) -> 0 | D235: =IFERROR(SUMIFS('Banco de Dados'!D:D,'Banco de Dados'!$B:$B,$B235,'Banco de Dados'!$A:$A,"<>"&$C$7)/COUNTIFS('Banco de Dados'!$B:$B,$B235,'Banco de Dados'!$A:$A,"<>"&$C$7),0) -> 0 | E235: =IFERROR(SUMIFS('Banco de Dados'!E:E,'Banco de Dados'!$B:$B,$B235,'Banco de Dados'!$A:$A,"<>"&$C$7)/COUNTIFS('Banco de Dados'!$B:$B,$B235,'Banco de Dados'!$A:$A,"<>"&$C$7),0) -> 0 | F235: =IFERROR(SUMIFS('Banco de Dados'!F:F,'Banco de Dados'!$B:$B,$B235,'Banco de Dados'!$A:$A,"<>"&$C$7)/COUNTIFS('Banco de Dados'!$B:$B,$B235,'Banco de Dados'!$A:$A,"<>"&$C$7),0) -> 0 | G235: =IFERROR(SUMIFS('Banco de Dados'!G:G,'Banco de Dados'!$B:$B,$B235,'Banco de Dados'!$A:$A,"<>"&$C$7)/COUNTIFS('Banco de Dados'!$B:$B,$B235,'Banco de Dados'!$A:$A,"<>"&$C$7),0) -> 0 | H235: =IFERROR(SUMIFS('Banco de Dados'!H:H,'Banco de Dados'!$B:$B,$B235,'Banco de Dados'!$A:$A,"<>"&$C$7)/COUNTIFS('Banco de Dados'!$B:$B,$B235,'Banco de Dados'!$A:$A,"<>"&$C$7),0) -> 0 | I235: =IFERROR(SUMIFS('Banco de Dados'!I:I,'Banco de Dados'!$B:$B,$B235,'Banco de Dados'!$A:$A,"<>"&$C$7)/COUNTIFS('Banco de Dados'!$B:$B,$B235,'Banco de Dados'!$A:$A,"<>"&$C$7),0) -> 0 | J235: 0
B236: Custos com bala | C236: =IFERROR(SUMIFS('Banco de Dados'!C:C,'Banco de Dados'!$B:$B,$B236,'Banco de Dados'!$A:$A,"<>"&$C$7)/COUNTIFS('Banco de Dados'!$B:$B,$B236,'Banco de Dados'!$A:$A,"<>"&$C$7),0) -> 0 | D236: =IFERROR(SUMIFS('Banco de Dados'!D:D,'Banco de Dados'!$B:$B,$B236,'Banco de Dados'!$A:$A,"<>"&$C$7)/COUNTIFS('Banco de Dados'!$B:$B,$B236,'Banco de Dados'!$A:$A,"<>"&$C$7),0) -> 0 | E236: =IFERROR(SUMIFS('Banco de Dados'!E:E,'Banco de Dados'!$B:$B,$B236,'Banco de Dados'!$A:$A,"<>"&$C$7)/COUNTIFS('Banco de Dados'!$B:$B,$B236,'Banco de Dados'!$A:$A,"<>"&$C$7),0) -> 0 | F236: =IFERROR(SUMIFS('Banco de Dados'!F:F,'Banco de Dados'!$B:$B,$B236,'Banco de Dados'!$A:$A,"<>"&$C$7)/COUNTIFS('Banco de Dados'!$B:$B,$B236,'Banco de Dados'!$A:$A,"<>"&$C$7),0) -> 0 | G236: =IFERROR(SUMIFS('Banco de Dados'!G:G,'Banco de Dados'!$B:$B,$B236,'Banco de Dados'!$A:$A,"<>"&$C$7)/COUNTIFS('Banco de Dados'!$B:$B,$B236,'Banco de Dados'!$A:$A,"<>"&$C$7),0) -> 0 | H236: =IFERROR(SUMIFS('Banco de Dados'!H:H,'Banco de Dados'!$B:$B,$B236,'Banco de Dados'!$A:$A,"<>"&$C$7)/COUNTIFS('Banco de Dados'!$B:$B,$B236,'Banco de Dados'!$A:$A,"<>"&$C$7),0) -> 0 | I236: =IFERROR(SUMIFS('Banco de Dados'!I:I,'Banco de Dados'!$B:$B,$B236,'Banco de Dados'!$A:$A,"<>"&$C$7)/COUNTIFS('Banco de Dados'!$B:$B,$B236,'Banco de Dados'!$A:$A,"<>"&$C$7),0) -> 0 | J236: 0
B237: Outros custos | C237: =IFERROR(SUMIFS('Banco de Dados'!C:C,'Banco de Dados'!$B:$B,$B237,'Banco de Dados'!$A:$A,"<>"&$C$7)/COUNTIFS('Banco de Dados'!$B:$B,$B237,'Banco de Dados'!$A:$A,"<>"&$C$7),0) -> 0 | D237: =IFERROR(SUMIFS('Banco de Dados'!D:D,'Banco de Dados'!$B:$B,$B237,'Banco de Dados'!$A:$A,"<>"&$C$7)/COUNTIFS('Banco de Dados'!$B:$B,$B237,'Banco de Dados'!$A:$A,"<>"&$C$7),0) -> 0 | E237: =IFERROR(SUMIFS('Banco de Dados'!E:E,'Banco de Dados'!$B:$B,$B237,'Banco de Dados'!$A:$A,"<>"&$C$7)/COUNTIFS('Banco de Dados'!$B:$B,$B237,'Banco de Dados'!$A:$A,"<>"&$C$7),0) -> 0 | F237: =IFERROR(SUMIFS('Banco de Dados'!F:F,'Banco de Dados'!$B:$B,$B237,'Banco de Dados'!$A:$A,"<>"&$C$7)/COUNTIFS('Banco de Dados'!$B:$B,$B237,'Banco de Dados'!$A:$A,"<>"&$C$7),0) -> 0 | G237: =IFERROR(SUMIFS('Banco de Dados'!G:G,'Banco de Dados'!$B:$B,$B237,'Banco de Dados'!$A:$A,"<>"&$C$7)/COUNTIFS('Banco de Dados'!$B:$B,$B237,'Banco de Dados'!$A:$A,"<>"&$C$7),0) -> 0 | H237: =IFERROR(SUMIFS('Banco de Dados'!H:H,'Banco de Dados'!$B:$B,$B237,'Banco de Dados'!$A:$A,"<>"&$C$7)/COUNTIFS('Banco de Dados'!$B:$B,$B237,'Banco de Dados'!$A:$A,"<>"&$C$7),0) -> 0 | I237: =IFERROR(SUMIFS('Banco de Dados'!I:I,'Banco de Dados'!$B:$B,$B237,'Banco de Dados'!$A:$A,"<>"&$C$7)/COUNTIFS('Banco de Dados'!$B:$B,$B237,'Banco de Dados'!$A:$A,"<>"&$C$7),0) -> 0 | J237: 0
B238: TOTAL DE CUSTOS | C238: =SUM(C234:C237) -> 0 | D238: =SUM(D234:D237) -> 0 | E238: 0 | F238: 0 | G238: 0 | H238: 0 | I238: 0 | J238: 0
B239: Gastos com alimentação | C239: =IFERROR(SUMIFS('Banco de Dados'!C:C,'Banco de Dados'!$B:$B,$B239,'Banco de Dados'!$A:$A,"<>"&$C$7)/COUNTIFS('Banco de Dados'!$B:$B,$B239,'Banco de Dados'!$A:$A,"<>"&$C$7),0) -> 0 | D239: =IFERROR(SUMIFS('Banco de Dados'!D:D,'Banco de Dados'!$B:$B,$B239,'Banco de Dados'!$A:$A,"<>"&$C$7)/COUNTIFS('Banco de Dados'!$B:$B,$B239,'Banco de Dados'!$A:$A,"<>"&$C$7),0) -> 0 | E239: =IFERROR(SUMIFS('Banco de Dados'!E:E,'Banco de Dados'!$B:$B,$B239,'Banco de Dados'!$A:$A,"<>"&$C$7)/COUNTIFS('Banco de Dados'!$B:$B,$B239,'Banco de Dados'!$A:$A,"<>"&$C$7),0) -> 0 | F239: =IFERROR(SUMIFS('Banco de Dados'!F:F,'Banco de Dados'!$B:$B,$B239,'Banco de Dados'!$A:$A,"<>"&$C$7)/COUNTIFS('Banco de Dados'!$B:$B,$B239,'Banco de Dados'!$A:$A,"<>"&$C$7),0) -> 0 | G239: =IFERROR(SUMIFS('Banco de Dados'!G:G,'Banco de Dados'!$B:$B,$B239,'Banco de Dados'!$A:$A,"<>"&$C$7)/COUNTIFS('Banco de Dados'!$B:$B,$B239,'Banco de Dados'!$A:$A,"<>"&$C$7),0) -> 0 | H239: =IFERROR(SUMIFS('Banco de Dados'!H:H,'Banco de Dados'!$B:$B,$B239,'Banco de Dados'!$A:$A,"<>"&$C$7)/COUNTIFS('Banco de Dados'!$B:$B,$B239,'Banco de Dados'!$A:$A,"<>"&$C$7),0) -> 0 | I239: =IFERROR(SUMIFS('Banco de Dados'!I:I,'Banco de Dados'!$B:$B,$B239,'Banco de Dados'!$A:$A,"<>"&$C$7)/COUNTIFS('Banco de Dados'!$B:$B,$B239,'Banco de Dados'!$A:$A,"<>"&$C$7),0) -> 0 | J239: 0
B240: Estacionamento | C240: =IFERROR(SUMIFS('Banco de Dados'!C:C,'Banco de Dados'!$B:$B,$B240,'Banco de Dados'!$A:$A,"<>"&$C$7)/COUNTIFS('Banco de Dados'!$B:$B,$B240,'Banco de Dados'!$A:$A,"<>"&$C$7),0) -> 0 | D240: =IFERROR(SUMIFS('Banco de Dados'!D:D,'Banco de Dados'!$B:$B,$B240,'Banco de Dados'!$A:$A,"<>"&$C$7)/COUNTIFS('Banco de Dados'!$B:$B,$B240,'Banco de Dados'!$A:$A,"<>"&$C$7),0) -> 0 | E240: =IFERROR(SUMIFS('Banco de Dados'!E:E,'Banco de Dados'!$B:$B,$B240,'Banco de Dados'!$A:$A,"<>"&$C$7)/COUNTIFS('Banco de Dados'!$B:$B,$B240,'Banco de Dados'!$A:$A,"<>"&$C$7),0) -> 0 | F240: =IFERROR(SUMIFS('Banco de Dados'!F:F,'Banco de Dados'!$B:$B,$B240,'Banco de Dados'!$A:$A,"<>"&$C$7)/COUNTIFS('Banco de Dados'!$B:$B,$B240,'Banco de Dados'!$A:$A,"<>"&$C$7),0) -> 0 | G240: =IFERROR(SUMIFS('Banco de Dados'!G:G,'Banco de Dados'!$B:$B,$B240,'Banco de Dados'!$A:$A,"<>"&$C$7)/COUNTIFS('Banco de Dados'!$B:$B,$B240,'Banco de Dados'!$A:$A,"<>"&$C$7),0) -> 0 | H240: =IFERROR(SUMIFS('Banco de Dados'!H:H,'Banco de Dados'!$B:$B,$B240,'Banco de Dados'!$A:$A,"<>"&$C$7)/COUNTIFS('Banco de Dados'!$B:$B,$B240,'Banco de Dados'!$A:$A,"<>"&$C$7),0) -> 0 | I240: =IFERROR(SUMIFS('Banco de Dados'!I:I,'Banco de Dados'!$B:$B,$B240,'Banco de Dados'!$A:$A,"<>"&$C$7)/COUNTIFS('Banco de Dados'!$B:$B,$B240,'Banco de Dados'!$A:$A,"<>"&$C$7),0) -> 0 | J240: 0
B241: Lavagem | C241: =IFERROR(SUMIFS('Banco de Dados'!C:C,'Banco de Dados'!$B:$B,$B241,'Banco de Dados'!$A:$A,"<>"&$C$7)/COUNTIFS('Banco de Dados'!$B:$B,$B241,'Banco de Dados'!$A:$A,"<>"&$C$7),0) -> 0 | D241: =IFERROR(SUMIFS('Banco de Dados'!D:D,'Banco de Dados'!$B:$B,$B241,'Banco de Dados'!$A:$A,"<>"&$C$7)/COUNTIFS('Banco de Dados'!$B:$B,$B241,'Banco de Dados'!$A:$A,"<>"&$C$7),0) -> 0 | E241: =IFERROR(SUMIFS('Banco de Dados'!E:E,'Banco de Dados'!$B:$B,$B241,'Banco de Dados'!$A:$A,"<>"&$C$7)/COUNTIFS('Banco de Dados'!$B:$B,$B241,'Banco de Dados'!$A:$A,"<>"&$C$7),0) -> 0 | F241: =IFERROR(SUMIFS('Banco de Dados'!F:F,'Banco de Dados'!$B:$B,$B241,'Banco de Dados'!$A:$A,"<>"&$C$7)/COUNTIFS('Banco de Dados'!$B:$B,$B241,'Banco de Dados'!$A:$A,"<>"&$C$7),0) -> 0 | G241: =IFERROR(SUMIFS('Banco de Dados'!G:G,'Banco de Dados'!$B:$B,$B241,'Banco de Dados'!$A:$A,"<>"&$C$7)/COUNTIFS('Banco de Dados'!$B:$B,$B241,'Banco de Dados'!$A:$A,"<>"&$C$7),0) -> 0 | H241: =IFERROR(SUMIFS('Banco de Dados'!H:H,'Banco de Dados'!$B:$B,$B241,'Banco de Dados'!$A:$A,"<>"&$C$7)/COUNTIFS('Banco de Dados'!$B:$B,$B241,'Banco de Dados'!$A:$A,"<>"&$C$7),0) -> 0 | I241: =IFERROR(SUMIFS('Banco de Dados'!I:I,'Banco de Dados'!$B:$B,$B241,'Banco de Dados'!$A:$A,"<>"&$C$7)/COUNTIFS('Banco de Dados'!$B:$B,$B241,'Banco de Dados'!$A:$A,"<>"&$C$7),0) -> 0 | J241: 0
B242: Multa | C242: =IFERROR(SUMIFS('Banco de Dados'!C:C,'Banco de Dados'!$B:$B,$B242,'Banco de Dados'!$A:$A,"<>"&$C$7)/COUNTIFS('Banco de Dados'!$B:$B,$B242,'Banco de Dados'!$A:$A,"<>"&$C$7),0) -> 0 | D242: =IFERROR(SUMIFS('Banco de Dados'!D:D,'Banco de Dados'!$B:$B,$B242,'Banco de Dados'!$A:$A,"<>"&$C$7)/COUNTIFS('Banco de Dados'!$B:$B,$B242,'Banco de Dados'!$A:$A,"<>"&$C$7),0) -> 0 | E242: =IFERROR(SUMIFS('Banco de Dados'!E:E,'Banco de Dados'!$B:$B,$B242,'Banco de Dados'!$A:$A,"<>"&$C$7)/COUNTIFS('Banco de Dados'!$B:$B,$B242,'Banco de Dados'!$A:$A,"<>"&$C$7),0) -> 0 | F242: =IFERROR(SUMIFS('Banco de Dados'!F:F,'Banco de Dados'!$B:$B,$B242,'Banco de Dados'!$A:$A,"<>"&$C$7)/COUNTIFS('Banco de Dados'!$B:$B,$B242,'Banco de Dados'!$A:$A,"<>"&$C$7),0) -> 0 | G242: =IFERROR(SUMIFS('Banco de Dados'!G:G,'Banco de Dados'!$B:$B,$B242,'Banco de Dados'!$A:$A,"<>"&$C$7)/COUNTIFS('Banco de Dados'!$B:$B,$B242,'Banco de Dados'!$A:$A,"<>"&$C$7),0) -> 0 | H242: =IFERROR(SUMIFS('Banco de Dados'!H:H,'Banco de Dados'!$B:$B,$B242,'Banco de Dados'!$A:$A,"<>"&$C$7)/COUNTIFS('Banco de Dados'!$B:$B,$B242,'Banco de Dados'!$A:$A,"<>"&$C$7),0) -> 0 | I242: =IFERROR(SUMIFS('Banco de Dados'!I:I,'Banco de Dados'!$B:$B,$B242,'Banco de Dados'!$A:$A,"<>"&$C$7)/COUNTIFS('Banco de Dados'!$B:$B,$B242,'Banco de Dados'!$A:$A,"<>"&$C$7),0) -> 0 | J242: 0
B243: Pedágio | C243: =IFERROR(SUMIFS('Banco de Dados'!C:C,'Banco de Dados'!$B:$B,$B243,'Banco de Dados'!$A:$A,"<>"&$C$7)/COUNTIFS('Banco de Dados'!$B:$B,$B243,'Banco de Dados'!$A:$A,"<>"&$C$7),0) -> 0 | D243: =IFERROR(SUMIFS('Banco de Dados'!D:D,'Banco de Dados'!$B:$B,$B243,'Banco de Dados'!$A:$A,"<>"&$C$7)/COUNTIFS('Banco de Dados'!$B:$B,$B243,'Banco de Dados'!$A:$A,"<>"&$C$7),0) -> 0 | E243: =IFERROR(SUMIFS('Banco de Dados'!E:E,'Banco de Dados'!$B:$B,$B243,'Banco de Dados'!$A:$A,"<>"&$C$7)/COUNTIFS('Banco de Dados'!$B:$B,$B243,'Banco de Dados'!$A:$A,"<>"&$C$7),0) -> 0 | F243: =IFERROR(SUMIFS('Banco de Dados'!F:F,'Banco de Dados'!$B:$B,$B243,'Banco de Dados'!$A:$A,"<>"&$C$7)/COUNTIFS('Banco de Dados'!$B:$B,$B243,'Banco de Dados'!$A:$A,"<>"&$C$7),0) -> 0 | G243: =IFERROR(SUMIFS('Banco de Dados'!G:G,'Banco de Dados'!$B:$B,$B243,'Banco de Dados'!$A:$A,"<>"&$C$7)/COUNTIFS('Banco de Dados'!$B:$B,$B243,'Banco de Dados'!$A:$A,"<>"&$C$7),0) -> 0 | H243: =IFERROR(SUMIFS('Banco de Dados'!H:H,'Banco de Dados'!$B:$B,$B243,'Banco de Dados'!$A:$A,"<>"&$C$7)/COUNTIFS('Banco de Dados'!$B:$B,$B243,'Banco de Dados'!$A:$A,"<>"&$C$7),0) -> 0 | I243: =IFERROR(SUMIFS('Banco de Dados'!I:I,'Banco de Dados'!$B:$B,$B243,'Banco de Dados'!$A:$A,"<>"&$C$7)/COUNTIFS('Banco de Dados'!$B:$B,$B243,'Banco de Dados'!$A:$A,"<>"&$C$7),0) -> 0 | J243: 0
B244: Outras despesas | C244: =IFERROR(SUMIFS('Banco de Dados'!C:C,'Banco de Dados'!$B:$B,$B244,'Banco de Dados'!$A:$A,"<>"&$C$7)/COUNTIFS('Banco de Dados'!$B:$B,$B244,'Banco de Dados'!$A:$A,"<>"&$C$7),0) -> 0 | D244: =IFERROR(SUMIFS('Banco de Dados'!D:D,'Banco de Dados'!$B:$B,$B244,'Banco de Dados'!$A:$A,"<>"&$C$7)/COUNTIFS('Banco de Dados'!$B:$B,$B244,'Banco de Dados'!$A:$A,"<>"&$C$7),0) -> 0 | E244: =IFERROR(SUMIFS('Banco de Dados'!E:E,'Banco de Dados'!$B:$B,$B244,'Banco de Dados'!$A:$A,"<>"&$C$7)/COUNTIFS('Banco de Dados'!$B:$B,$B244,'Banco de Dados'!$A:$A,"<>"&$C$7),0) -> 0 | F244: =IFERROR(SUMIFS('Banco de Dados'!F:F,'Banco de Dados'!$B:$B,$B244,'Banco de Dados'!$A:$A,"<>"&$C$7)/COUNTIFS('Banco de Dados'!$B:$B,$B244,'Banco de Dados'!$A:$A,"<>"&$C$7),0) -> 0 | G244: =IFERROR(SUMIFS('Banco de Dados'!G:G,'Banco de Dados'!$B:$B,$B244,'Banco de Dados'!$A:$A,"<>"&$C$7)/COUNTIFS('Banco de Dados'!$B:$B,$B244,'Banco de Dados'!$A:$A,"<>"&$C$7),0) -> 0 | H244: =IFERROR(SUMIFS('Banco de Dados'!H:H,'Banco de Dados'!$B:$B,$B244,'Banco de Dados'!$A:$A,"<>"&$C$7)/COUNTIFS('Banco de Dados'!$B:$B,$B244,'Banco de Dados'!$A:$A,"<>"&$C$7),0) -> 0 | I244: =IFERROR(SUMIFS('Banco de Dados'!I:I,'Banco de Dados'!$B:$B,$B244,'Banco de Dados'!$A:$A,"<>"&$C$7)/COUNTIFS('Banco de Dados'!$B:$B,$B244,'Banco de Dados'!$A:$A,"<>"&$C$7),0) -> 0 | J244: 0
B245: TOTAL DE DESPESAS | C245: =SUM(C239:C244) -> 0 | D245: =SUM(D239:D244) -> 0 | E245: 0 | F245: 0 | G245: 0 | H245: 0 | I245: 0 | J245: 0
B246: Resultado Bruto | C246: =C224-C238-C245 -> 0 | D246: =D224-D238-D245 -> 0 | E246: 0 | F246: 0 | G246: 0 | H246: 0 | I246: 0 | J246: 0
B248: Comparativo % com média histórica | C248: Seg | D248: Ter | E248: Qua | F248: Qui | G248: Sex | H248: Sáb | I248: Dom | J248: Total
B250: Ganhos do dia | C250: =IFERROR(C8/C215-1,0) -> 0 | D250: 0 | E250: 0 | F250: 0 | G250: 0 | H250: 0 | I250: 0 | J250: 0
B251: ="- "&Configurações!$E$13 -> - Uber | C251: =IFERROR(C9/C216-1,0) -> 0 | D251: 0 | E251: 0 | F251: 0 | G251: 0 | H251: 0 | I251: 0 | J251: 0
B252: ="- "&Configurações!$E$14 -> - App 2 | C252: =IFERROR(C10/C217-1,0) -> 0 | D252: 0 | E252: 0 | F252: 0 | G252: 0 | H252: 0 | I252: 0 | J252: 0
B253: ="- "&Configurações!$E$15 -> - App 3 | C253: =IFERROR(C11/C218-1,0) -> 0 | D253: 0 | E253: 0 | F253: 0 | G253: 0 | H253: 0 | I253: 0 | J253: 0
B254: Bônus/Incentivo | C254: =IFERROR(C12/C219-1,0) -> 0 | D254: 0 | E254: 0 | F254: 0 | G254: 0 | H254: 0 | I254: 0 | J254: 0
B255: ="- "&Configurações!$E$13 -> - Uber | C255: =IFERROR(C13/C220-1,0) -> 0 | D255: 0 | E255: 0 | F255: 0 | G255: 0 | H255: 0 | I255: 0 | J255: 0
B256: ="- "&Configurações!$E$14 -> - App 2 | C256: =IFERROR(C14/C221-1,0) -> 0 | D256: 0 | E256: 0 | F256: 0 | G256: 0 | H256: 0 | I256: 0 | J256: 0
B257: ="- "&Configurações!$E$15 -> - App 3 | C257: =IFERROR(C15/C222-1,0) -> 0 | D257: 0 | E257: 0 | F257: 0 | G257: 0 | H257: 0 | I257: 0 | J257: 0
... 24 more rows

Sheet Ajuste (hidden)
G1: Edite os dados abaixo e clique em salvar para substituir no Banco de Dados
I5: ='Função Excel'!$C$9 -> Versão 2.1 - DEMO
B6: Ganhos, gastos e custos | C6: Seg | D6: Ter | E6: Qua | F6: Qui | G6: Sex | H6: Sáb | I6: Dom | J6: Total
C7: 2013-12-31 | D7: =C7+1 -> 2014-01-01 | E7: =D7+1 -> 2014-01-02 | F7: 2014-01-03 | G7: 2014-01-04 | H7: 2014-01-05 | I7: 2014-01-06
B8: Ganhos do dia | C8: =SUM(C9:C11) -> 0 | D8: =SUM(D9:D11) -> 0 | E8: 0 | F8: 0 | G8: 0 | H8: 0 | I8: 0 | J8: =SUM(C8:I8) -> 0
B9: ="- "&Configurações!$E$13 -> - Uber | J9: =SUM(C9:I9) -> 0 | K9: Ganhos do dia - Uber
B10: ="- "&Configurações!$E$14 -> - App 2 | C10: Não disponível para versão DEMO | J10: 0 | K10: Ganhos do dia - Cabify
B11: ="- "&Configurações!$E$15 -> - App 3 | C11: Não disponível para versão DEMO | J11: 0 | K11: Ganhos do dia - 99 Pop
B12: Bônus/Incentivo | C12: =SUM(C13:C15) -> 0 | D12: =SUM(D13:D15) -> 0 | E12: 0 | F12: 0 | G12: 0 | H12: 0 | I12: 0 | J12: =SUM(C12:I12) -> 0
B13: ="- "&Configurações!$E$13 -> - Uber | J13: =SUM(C13:I13) -> 0 | K13: Bônus/Incentivo - Uber
B14: ="- "&Configurações!$E$14 -> - App 2 | C14: Não disponível para versão DEMO | J14: 0 | K14: Bônus/Incentivo - Cabify
B15: ="- "&Configurações!$E$15 -> - App 3 | C15: Não disponível para versão DEMO | J15: 0 | K15: Bônus/Incentivo - 99 Pop
B16: Outros Incentivos | J16: =SUM(C16:I16) -> 0
B17: TOTAL DE GANHOS | C17: =SUM(C12,C8,C16) -> 0 | D17: =SUM(D12,D8,D16) -> 0 | E17: 0 | F17: 0 | G17: 0 | H17: 0 | I17: 0 | J17: 0
B18: Quilômetros rodados | J18: =SUM(C18:I18) -> 0
B19: Tempo online | C19: =SUM(C20:C22) -> 0 | D19: 0 | E19: 0 | F19: 0 | G19: 0 | H19: 0 | I19: =SUM(I20:I22) -> 0 | J19: 0
B20: ="- "&Configurações!$E$13 -> - Uber | J20: 0 | K20: Tempo Online - Uber
B21: ="- "&Configurações!$E$14 -> - App 2 | C21: Não disponível para versão DEMO | J21: 0 | K21: Tempo Online - Cabify
B22: ="- "&Configurações!$E$15 -> - App 3 | C22: Não disponível para versão DEMO | J22: 0 | K22: Tempo Online - 99 Pop
B23: Nº de viagens | C23: =SUM(C24:C26) -> 0 | D23: =SUM(D24:D26) -> 0 | E23: 0 | F23: 0 | G23: 0 | H23: 0 | I23: 0 | J23: 0
B24: ="- "&Configurações!$E$13 -> - Uber | J24: 0 | K24: Nº de Viagens - Uber
B25: ="- "&Configurações!$E$14 -> - App 2 | C25: Não disponível para versão DEMO | J25: 0 | K25: Nº de Viagens - Cabify
B26: ="- "&Configurações!$E$15 -> - App 3 | C26: Não disponível para versão DEMO | J26: 0 | K26: Nº de Viagens - 99 Pop
B27: Custos com combustível | J27: =SUM(C27:I27) -> 0
B28: Custos com água | J28: 0
B29: Custos com bala | J29: 0
B30: Outros custos | J30: 0
B31: TOTAL DE CUSTOS | C31: =SUM(C27:C30) -> 0 | D31: =SUM(D27:D30) -> 0 | E31: 0 | F31: 0 | G31: 0 | H31: 0 | I31: 0 | J31: 0
B32: Gastos com alimentação | J32: 0
B33: Estacionamento | C33: Não disponível para versão DEMO | J33: =SUM(C33:I33) -> 0
B34: Lavagem | C34: Não disponível para versão DEMO | J34: =SUM(C34:I34) -> 0
B35: Multa | C35: Não disponível para versão DEMO | J35: =SUM(C35:I35) -> 0
B36: Pedágio | C36: Não disponível para versão DEMO | J36: =SUM(C36:I36) -> 0
B37: Outros gastos | J37: 0
B38: TOTAL DE GASTOS | C38: =SUM(C32:C37) -> 0 | D38: =SUM(D32:D37) -> 0 | E38: 0 | F38: 0 | G38: 0 | H38: 0 | I38: 0 | J38: 0
B39: Resultado Bruto | C39: =C17-SUM(C31,C38) -> 0 | D39: =D17-SUM(D31,D38) -> 0 | E39: 0 | F39: 0 | G39: 0 | H39: 0 | I39: 0 | J39: 0
B41: Provisões | C41: Seg | D41: Ter | E41: Qua | F41: Qui | G41: Sex | H41: Sáb | I41: Dom | J41: Total
C42: =C7 -> 2013-12-31 | D42: =D7 -> 2014-01-01 | E42: 2014-01-02 | F42: 2014-01-03 | G42: 2014-01-04 | H42: 2014-01-05 | I42: 2014-01-06
B43: Depreciação do Veículo | C43: =Configurações!$C$11*Configurações!$C$13/365*IF(Configurações!$C$7<>"Carro próprio",0,1) -> 6.246575342 | D43: =Configurações!$C$11*Configurações!$C$13/365*IF(Configurações!$C$7<>"Carro próprio",0,1) -> 6.246575342 | E43: =Configurações!$C$11*Configurações!$C$13/365*IF(Configurações!$C$7<>"Carro próprio",0,1) -> 6.246575342 | F43: =Configurações!$C$11*Configurações!$C$13/365*IF(Configurações!$C$7<>"Carro próprio",0,1) -> 6.246575342 | G43: =Configurações!$C$11*Configurações!$C$13/365*IF(Configurações!$C$7<>"Carro próprio",0,1) -> 6.246575342 | H43: =Configurações!$C$11*Configurações!$C$13/365*IF(Configurações!$C$7<>"Carro próprio",0,1) -> 6.246575342 | I43: =Configurações!$C$11*Configurações!$C$13/365*IF(Configurações!$C$7<>"Carro próprio",0,1) -> 6.246575342 | J43: =SUM(C43:I43) -> 43.7260274
B44: Seguro Anual | C44: =Configurações!$C$12/365*IF(Configurações!$C$7<>"Carro próprio",0,1) -> 0 | D44: =Configurações!$C$12/365*IF(Configurações!$C$7<>"Carro próprio",0,1) -> 0 | E44: =Configurações!$C$12/365*IF(Configurações!$C$7<>"Carro próprio",0,1) -> 0 | F44: =Configurações!$C$12/365*IF(Configurações!$C$7<>"Carro próprio",0,1) -> 0 | G44: =Configurações!$C$12/365*IF(Configurações!$C$7<>"Carro próprio",0,1) -> 0 | H44: =Configurações!$C$12/365*IF(Configurações!$C$7<>"Carro próprio",0,1) -> 0 | I44: =Configurações!$C$12/365*IF(Configurações!$C$7<>"Carro próprio",0,1) -> 0 | J44: =SUM(C44:I44) -> 0
B45: Prestação do Veículo | C45: =Configurações!$C$14/30*IF(Configurações!$C$7<>"Carro próprio",0,1) -> 26.2 | D45: =Configurações!$C$14/30*IF(Configurações!$C$7<>"Carro próprio",0,1) -> 26.2 | E45: =Configurações!$C$14/30*IF(Configurações!$C$7<>"Carro próprio",0,1) -> 26.2 | F45: =Configurações!$C$14/30*IF(Configurações!$C$7<>"Carro próprio",0,1) -> 26.2 | G45: =Configurações!$C$14/30*IF(Configurações!$C$7<>"Carro próprio",0,1) -> 26.2 | H45: =Configurações!$C$14/30*IF(Configurações!$C$7<>"Carro próprio",0,1) -> 26.2 | I45: =Configurações!$C$14/30*IF(Configurações!$C$7<>"Carro próprio",0,1) -> 26.2 | J45: 183.4
B46: Troca de pneu | C46: =IFERROR((C18/Configurações!$C$16*Configurações!$C$15)*4*IF(Configurações!$C$7<>"Carro próprio",0,1),0) -> 0 | D46: =IFERROR((D18/Configurações!$C$16*Configurações!$C$15)*4*IF(Configurações!$C$7<>"Carro próprio",0,1),0) -> 0 | E46: =IFERROR((E18/Configurações!$C$16*Configurações!$C$15)*4*IF(Configurações!$C$7<>"Carro próprio",0,1),0) -> 0 | F46: =IFERROR((F18/Configurações!$C$16*Configurações!$C$15)*4*IF(Configurações!$C$7<>"Carro próprio",0,1),0) -> 0 | G46: =IFERROR((G18/Configurações!$C$16*Configurações!$C$15)*4*IF(Configurações!$C$7<>"Carro próprio",0,1),0) -> 0 | H46: =IFERROR((H18/Configurações!$C$16*Configurações!$C$15)*4*IF(Configurações!$C$7<>"Carro próprio",0,1),0) -> 0 | I46: =IFERROR((I18/Configurações!$C$16*Configurações!$C$15)*4*IF(Configurações!$C$7<>"Carro próprio",0,1),0) -> 0 | J46: 0
B47: Troca de óleo | C47: =IFERROR(C18/Configurações!$C$18*Configurações!$C$17*IF(Configurações!$C$7<>"Carro próprio",0,1),0) -> 0 | D47: =IFERROR(D18/Configurações!$C$18*Configurações!$C$17*IF(Configurações!$C$7<>"Carro próprio",0,1),0) -> 0 | E47: =IFERROR(E18/Configurações!$C$18*Configurações!$C$17*IF(Configurações!$C$7<>"Carro próprio",0,1),0) -> 0 | F47: =IFERROR(F18/Configurações!$C$18*Configurações!$C$17*IF(Configurações!$C$7<>"Carro próprio",0,1),0) -> 0 | G47: =IFERROR(G18/Configurações!$C$18*Configurações!$C$17*IF(Configurações!$C$7<>"Carro próprio",0,1),0) -> 0 | H47: =IFERROR(H18/Configurações!$C$18*Configurações!$C$17*IF(Configurações!$C$7<>"Carro próprio",0,1),0) -> 0 | I47: =IFERROR(I18/Configurações!$C$18*Configurações!$C$17*IF(Configurações!$C$7<>"Carro próprio",0,1),0) -> 0 | J47: 0
B48: Outras despesas anuais | C48: =Configurações!$C$19/365*IF(Configurações!$C$7<>"Carro próprio",0,1) -> 3.287671233 | D48: =Configurações!$C$19/365*IF(Configurações!$C$7<>"Carro próprio",0,1) -> 3.287671233 | E48: =Configurações!$C$19/365*IF(Configurações!$C$7<>"Carro próprio",0,1) -> 3.287671233 | F48: =Configurações!$C$19/365*IF(Configurações!$C$7<>"Carro próprio",0,1) -> 3.287671233 | G48: =Configurações!$C$19/365*IF(Configurações!$C$7<>"Carro próprio",0,1) -> 3.287671233 | H48: =Configurações!$C$19/365*IF(Configurações!$C$7<>"Carro próprio",0,1) -> 3.287671233 | I48: =Configurações!$C$19/365*IF(Configurações!$C$7<>"Carro próprio",0,1) -> 3.287671233 | J48: 23.01369863
B49: Aluguel | C49: =IF(Configurações!$C$7="Carro próprio",0,IF(Configurações!$C$7="Aluguel Diário",IF(Auxiliar!$A$3=TRUE,Configurações!$C$8*IF('Semana Atual'!C$18=0,0,1),Configurações!$C$8),IF(Configurações!$C$7="Aluguel Semanal",Configurações!$C$8/7,IF(Configurações!$C$7="Aluguel Mensal",Configurações!$C$8/30,Configurações!$C$8*C$18)))) -> 0 | D49: =IF(Configurações!$C$7="Carro próprio",0,IF(Configurações!$C$7="Aluguel Diário",IF(Auxiliar!$A$3=TRUE,Configurações!$C$8*IF('Semana Atual'!D$18=0,0,1),Configurações!$C$8),IF(Configurações!$C$7="Aluguel Semanal",Configurações!$C$8/7,IF(Configurações!$C$7="Aluguel Mensal",Configurações!$C$8/30,Configurações!$C$8*D$18)))) -> 0 | E49: =IF(Configurações!$C$7="Carro próprio",0,IF(Configurações!$C$7="Aluguel Diário",IF(Auxiliar!$A$3=TRUE,Configurações!$C$8*IF('Semana Atual'!E$18=0,0,1),Configurações!$C$8),IF(Configurações!$C$7="Aluguel Semanal",Configurações!$C$8/7,IF(Configurações!$C$7="Aluguel Mensal",Configurações!$C$8/30,Configurações!$C$8*E$18)))) -> 0 | F49: =IF(Configurações!$C$7="Carro próprio",0,IF(Configurações!$C$7="Aluguel Diário",IF(Auxiliar!$A$3=TRUE,Configurações!$C$8*IF('Semana Atual'!F$18=0,0,1),Configurações!$C$8),IF(Configurações!$C$7="Aluguel Semanal",Configurações!$C$8/7,IF(Configurações!$C$7="Aluguel Mensal",Configurações!$C$8/30,Configurações!$C$8*F$18)))) -> 0 | G49: =IF(Configurações!$C$7="Carro próprio",0,IF(Configurações!$C$7="Aluguel Diário",IF(Auxiliar!$A$3=TRUE,Configurações!$C$8*IF('Semana Atual'!G$18=0,0,1),Configurações!$C$8),IF(Configurações!$C$7="Aluguel Semanal",Configurações!$C$8/7,IF(Configurações!$C$7="Aluguel Mensal",Configurações!$C$8/30,Configurações!$C$8*G$18)))) -> 0 | H49: =IF(Configurações!$C$7="Carro próprio",0,IF(Configurações!$C$7="Aluguel Diário",IF(Auxiliar!$A$3=TRUE,Configurações!$C$8*IF('Semana Atual'!H$18=0,0,1),Configurações!$C$8),IF(Configurações!$C$7="Aluguel Semanal",Configurações!$C$8/7,IF(Configurações!$C$7="Aluguel Mensal",Configurações!$C$8/30,Configurações!$C$8*H$18)))) -> 0 | I49: =IF(Configurações!$C$7="Carro próprio",0,IF(Configurações!$C$7="Aluguel Diário",IF(Auxiliar!$A$3=TRUE,Configurações!$C$8*IF('Semana Atual'!I$18=0,0,1),Configurações!$C$8),IF(Configurações!$C$7="Aluguel Semanal",Configurações!$C$8/7,IF(Configurações!$C$7="Aluguel Mensal",Configurações!$C$8/30,Configurações!$C$8*I$18)))) -> 0 | J49: 0
B50: Custo com provisões | C50: =SUM(C43:C49) -> 35.73424658 | D50: =SUM(D43:D49) -> 35.73424658 | E50: 35.73424658 | F50: 35.73424658 | G50: 35.73424658 | H50: 35.73424658 | I50: 35.73424658 | J50: 250.139726
B52: Resultado Líquido | C52: =C39-C50 -> -35.73424658 | D52: =D39-D50 -> -35.73424658 | E52: -35.73424658 | F52: -35.73424658 | G52: -35.73424658 | H52: -35.73424658 | I52: -35.73424658 | J52: -250.139726

Sheet Gráficos (hidden)
L4: 1 | M4: =DATE(YEAR(TODAY()),MONTH(TODAY()),1) -> 2015-01-31 | N4: =DATE(YEAR(TODAY()),MONTH(TODAY())+1,1)-1 -> 2015-02-27
I5: ='Função Excel'!$C$9 -> Versão 2.1 - DEMO | L5: 2 | M5: =DATE(YEAR(TODAY()),MONTH(TODAY())-1,1) -> 2014-12-31 | N5: =DATE(YEAR(TODAY()),MONTH(TODAY()),1)-1 -> 2015-01-30
G6: De | H6: Até | I6: =IF(Auxiliar!$A$5=6,"Digite o período de análise desejado","") ->  | L6: 3 | M6: =DATE(YEAR(TODAY()),1,1) -> 2014-12-31 | N6: =DATE(YEAR(TODAY())+1,1,1)-1 -> 2015-12-30
B7: Período de Análise | G7: 2014-10-31 | H7: 2015-01-30 | L7: 4 | M7: =DATE(YEAR(TODAY()),MONTH(TODAY())-3,1) -> 2014-10-31 | N7: =DATE(YEAR(TODAY()),MONTH(TODAY()),1)-1 -> 2015-01-30
L8: 5 | M8: =MIN('Banco de Dados'!A:A) -> 00:00:00 | N8: =TODAY() -> 2015-02-09
L10: Semana Passada | M10: =TODAY()-(5+WEEKDAY(TODAY())) -> 2015-02-03
L11: Dias mês passado | M11: =N5-M5 -> 30
L12: Dias seleção | M12: =H7-G7 -> 91
L13: Dias 3 Meses | M13: =N7-M7 -> 91
L14: Máximo | M14: =ROUNDUP(MAX(Auxiliar!B42:F45),-(LEN(ROUND(MAX(Auxiliar!$B$42:$F$45),0))-1)) -> 0
B61: Comparativo por aplicativo
B82: Comparativo médio por aplicativo

Sheet Configurações (hidden)
J5: ='Função Excel'!$C$9 -> Versão 2.1 - DEMO
B6: Veículo | E6: Configurações extras
B7: Carro Próprio ou Alugado? | C7: Carro próprio
B8: Valor do aluguel | C8: 1500
B9: Consumo médio de combustível (km/Litro ou Km/m³) | C9: 13
B10: Preço médio do combustível (Litro ou m³) | C10: 4.3
B11: Valor do Veículo | C11: 19000
B12: Seguro Anual | C12: 0 | E12: Lista de Aplicativos
B13: Depreciação Anual | C13: 0.12 | E13: Uber | G13: Altere ao lado o nome dos 3 aplicativos com os quais trabalha
B14: Prestações do Veículo | C14: 786 | E14: App 2
B15: Custo do pneu (unidade) | C15: 249 | E15: App 3
B16: Quilometragem para troca de pneu | C16: 30000 | E16: Todos aplicativos
B17: Custo da troca de óleo | C17: 120 | E17: Padrão de cores
B18: Quilometragem para troca de óleo | C18: 10000
B19: Outras despesas anuais | C19: 1200
B21: Não disponíveis para a versão DEMO

Sheet Auxiliar (hidden)
A1: FALSE | B1: Padrão de cores Branco | E1: Nº | F1: Usuário | G1: Computador | H1: Processador | I1: Contas Livres
A2: FALSE | B2: Controle de Combustível | E2: #1 | F2: Rodrigo | G2: DESKTOP-FJUD3LJ | H2: Intel64 Family 6 Model 69 Stepping 1, GenuineIntel | I2: =COUNTA(F1:F4)+1 -> 3
A3: FALSE | B3: Aluguel Diário | E3: #2 | I3: Liberado?
A4: TRUE | B4: Importar versão anterior | E4: #3 | I4: TRUE
A5: 4 | B5: Periodo dos Gráficos | E5: Este | F5: Rodrigo | G5: DESKTOP-FJUD3LJ | H5: Intel64 Family 6 Model 69 Stepping 1, GenuineIntel
A6: TRUE | B6: Relatório colorido
A7: =TODAY()-(5+WEEKDAY(TODAY())) -> 2015-02-03 | B7: Hoje
A8: BASE PARA GRÁFICOS NA ABA SEMANA ATUAL
B9: =IFERROR(C9-7,C9) -> Sem registro | C9: =IFERROR(D9-7,D9) -> Sem registro | D9: =IFERROR(E9-7,E9) -> Sem registro | E9: =IFERROR(F9-7,F9) -> Sem registro | F9: =IFERROR(G9-7,G9) -> Sem registro | G9: =IFERROR(H9-7,H9) -> Sem registro | H9: Sem registro | I9: =IF(MAX('Banco de Dados'!$A:$A)>0,MAX('Banco de Dados'!$A:$A),"Sem registro") -> Sem registro
A10: Receita (Média Histórica) | B10: ='Semana Atual'!C$224 -> 0 | C10: ='Semana Atual'!D$224 -> 0 | D10: ='Semana Atual'!E$224 -> 0 | E10: ='Semana Atual'!F$224 -> 0 | F10: ='Semana Atual'!G$224 -> 0 | G10: ='Semana Atual'!H$224 -> 0 | H10: ='Semana Atual'!I$224 -> 0
A11: ="- "&Configurações!$E$13 -> - Uber | B11: ='Semana Atual'!C216+'Semana Atual'!C220 -> 0 | C11: ='Semana Atual'!D216+'Semana Atual'!D220 -> 0 | D11: ='Semana Atual'!E216+'Semana Atual'!E220 -> 0 | E11: ='Semana Atual'!F216+'Semana Atual'!F220 -> 0 | F11: ='Semana Atual'!G216+'Semana Atual'!G220 -> 0 | G11: ='Semana Atual'!H216+'Semana Atual'!H220 -> 0 | H11: ='Semana Atual'!I216+'Semana Atual'!I220 -> 0 | I11: =SUM(B11:H11) -> 0
A12: ="- "&Configurações!$E$14 -> - App 2 | B12: ='Semana Atual'!C217+'Semana Atual'!C221 -> 0 | C12: ='Semana Atual'!D217+'Semana Atual'!D221 -> 0 | D12: ='Semana Atual'!E217+'Semana Atual'!E221 -> 0 | E12: ='Semana Atual'!F217+'Semana Atual'!F221 -> 0 | F12: ='Semana Atual'!G217+'Semana Atual'!G221 -> 0 | G12: ='Semana Atual'!H217+'Semana Atual'!H221 -> 0 | H12: ='Semana Atual'!I217+'Semana Atual'!I221 -> 0 | I12: =SUM(B12:H12) -> 0
A13: ="- "&Configurações!$E$15 -> - App 3 | B13: ='Semana Atual'!C218+'Semana Atual'!C222 -> 0 | C13: ='Semana Atual'!D218+'Semana Atual'!D222 -> 0 | D13: ='Semana Atual'!E218+'Semana Atual'!E222 -> 0 | E13: ='Semana Atual'!F218+'Semana Atual'!F222 -> 0 | F13: ='Semana Atual'!G218+'Semana Atual'!G222 -> 0 | G13: ='Semana Atual'!H218+'Semana Atual'!H222 -> 0 | H13: ='Semana Atual'!I218+'Semana Atual'!I222 -> 0 | I13: =SUM(B13:H13) -> 0
A14: Despesa (Média Histórica) | B14: =SUM('Semana Atual'!C238,'Semana Atual'!C245) -> 0 | C14: =SUM('Semana Atual'!D238,'Semana Atual'!D245) -> 0 | D14: =SUM('Semana Atual'!E238,'Semana Atual'!E245) -> 0 | E14: =SUM('Semana Atual'!F238,'Semana Atual'!F245) -> 0 | F14: =SUM('Semana Atual'!G238,'Semana Atual'!G245) -> 0 | G14: =SUM('Semana Atual'!H238,'Semana Atual'!H245) -> 0 | H14: =SUM('Semana Atual'!I238,'Semana Atual'!I245) -> 0
A15: Receita (Semana Atual) | B15: ='Semana Atual'!C$17 -> 0 | C15: ='Semana Atual'!D$17 -> 0 | D15: ='Semana Atual'!E$17 -> 0 | E15: ='Semana Atual'!F$17 -> 0 | F15: ='Semana Atual'!G$17 -> 0 | G15: ='Semana Atual'!H$17 -> 0 | H15: ='Semana Atual'!I$17 -> 0
A16: ="- "&Configurações!$E$13 -> - Uber | B16: =INDEX('Semana Atual'!C$8:C$11,MATCH($A16,'Semana Atual'!$B$8:$B$11,0))+INDEX('Semana Atual'!C$12:C$15,MATCH($A16,'Semana Atual'!$B$12:$B$15,0)) -> 0 | C16: =INDEX('Semana Atual'!D$8:D$11,MATCH($A16,'Semana Atual'!$B$8:$B$11,0))+INDEX('Semana Atual'!D$12:D$15,MATCH($A16,'Semana Atual'!$B$12:$B$15,0)) -> 0 | D16: =INDEX('Semana Atual'!E$8:E$11,MATCH($A16,'Semana Atual'!$B$8:$B$11,0))+INDEX('Semana Atual'!E$12:E$15,MATCH($A16,'Semana Atual'!$B$12:$B$15,0)) -> 0 | E16: =INDEX('Semana Atual'!F$8:F$11,MATCH($A16,'Semana Atual'!$B$8:$B$11,0))+INDEX('Semana Atual'!F$12:F$15,MATCH($A16,'Semana Atual'!$B$12:$B$15,0)) -> 0 | F16: =INDEX('Semana Atual'!G$8:G$11,MATCH($A16,'Semana Atual'!$B$8:$B$11,0))+INDEX('Semana Atual'!G$12:G$15,MATCH($A16,'Semana Atual'!$B$12:$B$15,0)) -> 0 | G16: =INDEX('Semana Atual'!H$8:H$11,MATCH($A16,'Semana Atual'!$B$8:$B$11,0))+INDEX('Semana Atual'!H$12:H$15,MATCH($A16,'Semana Atual'!$B$12:$B$15,0)) -> 0 | H16: =INDEX('Semana Atual'!I$8:I$11,MATCH($A16,'Semana Atual'!$B$8:$B$11,0))+INDEX('Semana Atual'!I$12:I$15,MATCH($A16,'Semana Atual'!$B$12:$B$15,0)) -> 0 | I16: =SUM(B16:H16) -> 0
A17: ="- "&Configurações!$E$14 -> - App 2 | B17: =INDEX('Semana Atual'!C$8:C$11,MATCH($A17,'Semana Atual'!$B$8:$B$11,0))+INDEX('Semana Atual'!C$12:C$15,MATCH($A17,'Semana Atual'!$B$12:$B$15,0)) ->  | C17: =INDEX('Semana Atual'!D$8:D$11,MATCH($A17,'Semana Atual'!$B$8:$B$11,0))+INDEX('Semana Atual'!D$12:D$15,MATCH($A17,'Semana Atual'!$B$12:$B$15,0)) -> 0 | D17: =INDEX('Semana Atual'!E$8:E$11,MATCH($A17,'Semana Atual'!$B$8:$B$11,0))+INDEX('Semana Atual'!E$12:E$15,MATCH($A17,'Semana Atual'!$B$12:$B$15,0)) -> 0 | E17: =INDEX('Semana Atual'!F$8:F$11,MATCH($A17,'Semana Atual'!$B$8:$B$11,0))+INDEX('Semana Atual'!F$12:F$15,MATCH($A17,'Semana Atual'!$B$12:$B$15,0)) -> 0 | F17: =INDEX('Semana Atual'!G$8:G$11,MATCH($A17,'Semana Atual'!$B$8:$B$11,0))+INDEX('Semana Atual'!G$12:G$15,MATCH($A17,'Semana Atual'!$B$12:$B$15,0)) -> 0 | G17: =INDEX('Semana Atual'!H$8:H$11,MATCH($A17,'Semana Atual'!$B$8:$B$11,0))+INDEX('Semana Atual'!H$12:H$15,MATCH($A17,'Semana Atual'!$B$12:$B$15,0)) -> 0 | H17: =INDEX('Semana Atual'!I$8:I$11,MATCH($A17,'Semana Atual'!$B$8:$B$11,0))+INDEX('Semana Atual'!I$12:I$15,MATCH($A17,'Semana Atual'!$B$12:$B$15,0)) -> 0 | I17: =SUM(B17:H17) -> 
A18: ="- "&Configurações!$E$15 -> - App 3 | B18: =INDEX('Semana Atual'!C$8:C$11,MATCH($A18,'Semana Atual'!$B$8:$B$11,0))+INDEX('Semana Atual'!C$12:C$15,MATCH($A18,'Semana Atual'!$B$12:$B$15,0)) ->  | C18: =INDEX('Semana Atual'!D$8:D$11,MATCH($A18,'Semana Atual'!$B$8:$B$11,0))+INDEX('Semana Atual'!D$12:D$15,MATCH($A18,'Semana Atual'!$B$12:$B$15,0)) -> 0 | D18: =INDEX('Semana Atual'!E$8:E$11,MATCH($A18,'Semana Atual'!$B$8:$B$11,0))+INDEX('Semana Atual'!E$12:E$15,MATCH($A18,'Semana Atual'!$B$12:$B$15,0)) -> 0 | E18: =INDEX('Semana Atual'!F$8:F$11,MATCH($A18,'Semana Atual'!$B$8:$B$11,0))+INDEX('Semana Atual'!F$12:F$15,MATCH($A18,'Semana Atual'!$B$12:$B$15,0)) -> 0 | F18: =INDEX('Semana Atual'!G$8:G$11,MATCH($A18,'Semana Atual'!$B$8:$B$11,0))+INDEX('Semana Atual'!G$12:G$15,MATCH($A18,'Semana Atual'!$B$12:$B$15,0)) -> 0 | G18: =INDEX('Semana Atual'!H$8:H$11,MATCH($A18,'Semana Atual'!$B$8:$B$11,0))+INDEX('Semana Atual'!H$12:H$15,MATCH($A18,'Semana Atual'!$B$12:$B$15,0)) -> 0 | H18: =INDEX('Semana Atual'!I$8:I$11,MATCH($A18,'Semana Atual'!$B$8:$B$11,0))+INDEX('Semana Atual'!I$12:I$15,MATCH($A18,'Semana Atual'!$B$12:$B$15,0)) -> 0 | I18: =SUM(B18:H18) -> 
A19: Gastos (Semana Atual) | B19: =SUM('Semana Atual'!C38,'Semana Atual'!C31) -> 0 | C19: =SUM('Semana Atual'!D38,'Semana Atual'!D31) -> 0 | D19: =SUM('Semana Atual'!E38,'Semana Atual'!E31) -> 0 | E19: =SUM('Semana Atual'!F38,'Semana Atual'!F31) -> 0 | F19: =SUM('Semana Atual'!G38,'Semana Atual'!G31) -> 0 | G19: =SUM('Semana Atual'!H38,'Semana Atual'!H31) -> 0 | H19: =SUM('Semana Atual'!I38,'Semana Atual'!I31) -> 0
A20: Receita (Semana Passada) | B20: =SUMIFS('Banco de Dados'!C:C,'Banco de Dados'!$A:$A,$A$7,'Banco de Dados'!$B:$B,'Semana Atual'!$B17) -> 0 | C20: =SUMIFS('Banco de Dados'!D:D,'Banco de Dados'!$A:$A,$A$7,'Banco de Dados'!$B:$B,'Semana Atual'!$B17) -> 0 | D20: =SUMIFS('Banco de Dados'!E:E,'Banco de Dados'!$A:$A,$A$7,'Banco de Dados'!$B:$B,'Semana Atual'!$B17) -> 0 | E20: =SUMIFS('Banco de Dados'!F:F,'Banco de Dados'!$A:$A,$A$7,'Banco de Dados'!$B:$B,'Semana Atual'!$B17) -> 0 | F20: =SUMIFS('Banco de Dados'!G:G,'Banco de Dados'!$A:$A,$A$7,'Banco de Dados'!$B:$B,'Semana Atual'!$B17) -> 0 | G20: =SUMIFS('Banco de Dados'!H:H,'Banco de Dados'!$A:$A,$A$7,'Banco de Dados'!$B:$B,'Semana Atual'!$B17) -> 0 | H20: =SUMIFS('Banco de Dados'!I:I,'Banco de Dados'!$A:$A,$A$7,'Banco de Dados'!$B:$B,'Semana Atual'!$B17) -> 0
A21: ="- "&Configurações!$E$13 -> - Uber | B21: =SUMIFS('Banco de Dados'!C:C,'Banco de Dados'!$A:$A,$A$7,'Banco de Dados'!$K:$K,"Ganhos do dia "&$A21)+SUMIFS('Banco de Dados'!C:C,'Banco de Dados'!$A:$A,$A$7,'Banco de Dados'!$K:$K,"Bônus/Incentivo "&$A21) -> 0 | C21: =SUMIFS('Banco de Dados'!D:D,'Banco de Dados'!$A:$A,$A$7,'Banco de Dados'!$K:$K,"Ganhos do dia "&$A21)+SUMIFS('Banco de Dados'!D:D,'Banco de Dados'!$A:$A,$A$7,'Banco de Dados'!$K:$K,"Bônus/Incentivo "&$A21) -> 0 | D21: =SUMIFS('Banco de Dados'!E:E,'Banco de Dados'!$A:$A,$A$7,'Banco de Dados'!$K:$K,"Ganhos do dia "&$A21)+SUMIFS('Banco de Dados'!E:E,'Banco de Dados'!$A:$A,$A$7,'Banco de Dados'!$K:$K,"Bônus/Incentivo "&$A21) -> 0 | E21: =SUMIFS('Banco de Dados'!F:F,'Banco de Dados'!$A:$A,$A$7,'Banco de Dados'!$K:$K,"Ganhos do dia "&$A21)+SUMIFS('Banco de Dados'!F:F,'Banco de Dados'!$A:$A,$A$7,'Banco de Dados'!$K:$K,"Bônus/Incentivo "&$A21) -> 0 | F21: =SUMIFS('Banco de Dados'!G:G,'Banco de Dados'!$A:$A,$A$7,'Banco de Dados'!$K:$K,"Ganhos do dia "&$A21)+SUMIFS('Banco de Dados'!G:G,'Banco de Dados'!$A:$A,$A$7,'Banco de Dados'!$K:$K,"Bônus/Incentivo "&$A21) -> 0 | G21: =SUMIFS('Banco de Dados'!H:H,'Banco de Dados'!$A:$A,$A$7,'Banco de Dados'!$K:$K,"Ganhos do dia "&$A21)+SUMIFS('Banco de Dados'!H:H,'Banco de Dados'!$A:$A,$A$7,'Banco de Dados'!$K:$K,"Bônus/Incentivo "&$A21) -> 0 | H21: =SUMIFS('Banco de Dados'!I:I,'Banco de Dados'!$A:$A,$A$7,'Banco de Dados'!$K:$K,"Ganhos do dia "&$A21)+SUMIFS('Banco de Dados'!I:I,'Banco de Dados'!$A:$A,$A$7,'Banco de Dados'!$K:$K,"Bônus/Incentivo "&$A21) -> 0 | I21: =SUM(B21:H21) -> 0
A22: ="- "&Configurações!$E$14 -> - App 2 | B22: =SUMIFS('Banco de Dados'!C:C,'Banco de Dados'!$A:$A,$A$7,'Banco de Dados'!$K:$K,"Ganhos do dia "&$A22)+SUMIFS('Banco de Dados'!C:C,'Banco de Dados'!$A:$A,$A$7,'Banco de Dados'!$K:$K,"Bônus/Incentivo "&$A22) -> 0 | C22: =SUMIFS('Banco de Dados'!D:D,'Banco de Dados'!$A:$A,$A$7,'Banco de Dados'!$K:$K,"Ganhos do dia "&$A22)+SUMIFS('Banco de Dados'!D:D,'Banco de Dados'!$A:$A,$A$7,'Banco de Dados'!$K:$K,"Bônus/Incentivo "&$A22) -> 0 | D22: =SUMIFS('Banco de Dados'!E:E,'Banco de Dados'!$A:$A,$A$7,'Banco de Dados'!$K:$K,"Ganhos do dia "&$A22)+SUMIFS('Banco de Dados'!E:E,'Banco de Dados'!$A:$A,$A$7,'Banco de Dados'!$K:$K,"Bônus/Incentivo "&$A22) -> 0 | E22: =SUMIFS('Banco de Dados'!F:F,'Banco de Dados'!$A:$A,$A$7,'Banco de Dados'!$K:$K,"Ganhos do dia "&$A22)+SUMIFS('Banco de Dados'!F:F,'Banco de Dados'!$A:$A,$A$7,'Banco de Dados'!$K:$K,"Bônus/Incentivo "&$A22) -> 0 | F22: =SUMIFS('Banco de Dados'!G:G,'Banco de Dados'!$A:$A,$A$7,'Banco de Dados'!$K:$K,"Ganhos do dia "&$A22)+SUMIFS('Banco de Dados'!G:G,'Banco de Dados'!$A:$A,$A$7,'Banco de Dados'!$K:$K,"Bônus/Incentivo "&$A22) -> 0 | G22: =SUMIFS('Banco de Dados'!H:H,'Banco de Dados'!$A:$A,$A$7,'Banco de Dados'!$K:$K,"Ganhos do dia "&$A22)+SUMIFS('Banco de Dados'!H:H,'Banco de Dados'!$A:$A,$A$7,'Banco de Dados'!$K:$K,"Bônus/Incentivo "&$A22) -> 0 | H22: =SUMIFS('Banco de Dados'!I:I,'Banco de Dados'!$A:$A,$A$7,'Banco de Dados'!$K:$K,"Ganhos do dia "&$A22)+SUMIFS('Banco de Dados'!I:I,'Banco de Dados'!$A:$A,$A$7,'Banco de Dados'!$K:$K,"Bônus/Incentivo "&$A22) -> 0 | I22: =SUM(B22:H22) -> 0
A23: ="- "&Configurações!$E$15 -> - App 3 | B23: =SUMIFS('Banco de Dados'!C:C,'Banco de Dados'!$A:$A,$A$7,'Banco de Dados'!$K:$K,"Ganhos do dia "&$A23)+SUMIFS('Banco de Dados'!C:C,'Banco de Dados'!$A:$A,$A$7,'Banco de Dados'!$K:$K,"Bônus/Incentivo "&$A23) -> 0 | C23: =SUMIFS('Banco de Dados'!D:D,'Banco de Dados'!$A:$A,$A$7,'Banco de Dados'!$K:$K,"Ganhos do dia "&$A23)+SUMIFS('Banco de Dados'!D:D,'Banco de Dados'!$A:$A,$A$7,'Banco de Dados'!$K:$K,"Bônus/Incentivo "&$A23) -> 0 | D23: =SUMIFS('Banco de Dados'!E:E,'Banco de Dados'!$A:$A,$A$7,'Banco de Dados'!$K:$K,"Ganhos do dia "&$A23)+SUMIFS('Banco de Dados'!E:E,'Banco de Dados'!$A:$A,$A$7,'Banco de Dados'!$K:$K,"Bônus/Incentivo "&$A23) -> 0 | E23: =SUMIFS('Banco de Dados'!F:F,'Banco de Dados'!$A:$A,$A$7,'Banco de Dados'!$K:$K,"Ganhos do dia "&$A23)+SUMIFS('Banco de Dados'!F:F,'Banco de Dados'!$A:$A,$A$7,'Banco de Dados'!$K:$K,"Bônus/Incentivo "&$A23) -> 0 | F23: =SUMIFS('Banco de Dados'!G:G,'Banco de Dados'!$A:$A,$A$7,'Banco de Dados'!$K:$K,"Ganhos do dia "&$A23)+SUMIFS('Banco de Dados'!G:G,'Banco de Dados'!$A:$A,$A$7,'Banco de Dados'!$K:$K,"Bônus/Incentivo "&$A23) -> 0 | G23: =SUMIFS('Banco de Dados'!H:H,'Banco de Dados'!$A:$A,$A$7,'Banco de Dados'!$K:$K,"Ganhos do dia "&$A23)+SUMIFS('Banco de Dados'!H:H,'Banco de Dados'!$A:$A,$A$7,'Banco de Dados'!$K:$K,"Bônus/Incentivo "&$A23) -> 0 | H23: =SUMIFS('Banco de Dados'!I:I,'Banco de Dados'!$A:$A,$A$7,'Banco de Dados'!$K:$K,"Ganhos do dia "&$A23)+SUMIFS('Banco de Dados'!I:I,'Banco de Dados'!$A:$A,$A$7,'Banco de Dados'!$K:$K,"Bônus/Incentivo "&$A23) -> 0 | I23: =SUM(B23:H23) -> 0
A24: Gastos (Semana Passada) | B24: =SUMIFS('Banco de Dados'!C:C,'Banco de Dados'!$A:$A,$A$7,'Banco de Dados'!$B:$B,'Semana Atual'!$B31)+SUMIFS('Banco de Dados'!C:C,'Banco de Dados'!$A:$A,$A$7,'Banco de Dados'!$B:$B,'Semana Atual'!$B38) -> 0 | C24: =SUMIFS('Banco de Dados'!D:D,'Banco de Dados'!$A:$A,$A$7,'Banco de Dados'!$B:$B,'Semana Atual'!$B31)+SUMIFS('Banco de Dados'!D:D,'Banco de Dados'!$A:$A,$A$7,'Banco de Dados'!$B:$B,'Semana Atual'!$B38) -> 0 | D24: =SUMIFS('Banco de Dados'!E:E,'Banco de Dados'!$A:$A,$A$7,'Banco de Dados'!$B:$B,'Semana Atual'!$B31)+SUMIFS('Banco de Dados'!E:E,'Banco de Dados'!$A:$A,$A$7,'Banco de Dados'!$B:$B,'Semana Atual'!$B38) -> 0 | E24: =SUMIFS('Banco de Dados'!F:F,'Banco de Dados'!$A:$A,$A$7,'Banco de Dados'!$B:$B,'Semana Atual'!$B31)+SUMIFS('Banco de Dados'!F:F,'Banco de Dados'!$A:$A,$A$7,'Banco de Dados'!$B:$B,'Semana Atual'!$B38) -> 0 | F24: =SUMIFS('Banco de Dados'!G:G,'Banco de Dados'!$A:$A,$A$7,'Banco de Dados'!$B:$B,'Semana Atual'!$B31)+SUMIFS('Banco de Dados'!G:G,'Banco de Dados'!$A:$A,$A$7,'Banco de Dados'!$B:$B,'Semana Atual'!$B38) -> 0 | G24: =SUMIFS('Banco de Dados'!H:H,'Banco de Dados'!$A:$A,$A$7,'Banco de Dados'!$B:$B,'Semana Atual'!$B31)+SUMIFS('Banco de Dados'!H:H,'Banco de Dados'!$A:$A,$A$7,'Banco de Dados'!$B:$B,'Semana Atual'!$B38) -> 0 | H24: =SUMIFS('Banco de Dados'!I:I,'Banco de Dados'!$A:$A,$A$7,'Banco de Dados'!$B:$B,'Semana Atual'!$B31)+SUMIFS('Banco de Dados'!I:I,'Banco de Dados'!$A:$A,$A$7,'Banco de Dados'!$B:$B,'Semana Atual'!$B38) -> 0
A25: Receita | B25: =SUMIFS('Banco de Dados'!$J:$J,'Banco de Dados'!$A:$A,B$9,'Banco de Dados'!$B:$B,'Semana Atual'!$B$17) -> 0 | C25: =SUMIFS('Banco de Dados'!$J:$J,'Banco de Dados'!$A:$A,C$9,'Banco de Dados'!$B:$B,'Semana Atual'!$B$17) -> 0 | D25: =SUMIFS('Banco de Dados'!$J:$J,'Banco de Dados'!$A:$A,D$9,'Banco de Dados'!$B:$B,'Semana Atual'!$B$17) -> 0 | E25: =SUMIFS('Banco de Dados'!$J:$J,'Banco de Dados'!$A:$A,E$9,'Banco de Dados'!$B:$B,'Semana Atual'!$B$17) -> 0 | F25: =SUMIFS('Banco de Dados'!$J:$J,'Banco de Dados'!$A:$A,F$9,'Banco de Dados'!$B:$B,'Semana Atual'!$B$17) -> 0 | G25: =SUMIFS('Banco de Dados'!$J:$J,'Banco de Dados'!$A:$A,G$9,'Banco de Dados'!$B:$B,'Semana Atual'!$B$17) -> 0 | H25: =SUMIFS('Banco de Dados'!$J:$J,'Banco de Dados'!$A:$A,H$9,'Banco de Dados'!$B:$B,'Semana Atual'!$B$17) -> 0 | I25: =SUMIFS('Banco de Dados'!$J:$J,'Banco de Dados'!$A:$A,I$9,'Banco de Dados'!$B:$B,'Semana Atual'!$B$17) -> 0
A26: ="- "&Configurações!$E$13 -> - Uber | B26: =SUMIFS('Banco de Dados'!$J:$J,'Banco de Dados'!$A:$A,B$9,'Banco de Dados'!$K:$K,"Ganhos do dia "&$A26)+SUMIFS('Banco de Dados'!$J:$J,'Banco de Dados'!$A:$A,B$9,'Banco de Dados'!$K:$K,"Bônus/Incentivo "&$A26) -> 0 | C26: =SUMIFS('Banco de Dados'!$J:$J,'Banco de Dados'!$A:$A,C$9,'Banco de Dados'!$K:$K,"Ganhos do dia "&$A26)+SUMIFS('Banco de Dados'!$J:$J,'Banco de Dados'!$A:$A,C$9,'Banco de Dados'!$K:$K,"Bônus/Incentivo "&$A26) -> 0 | D26: =SUMIFS('Banco de Dados'!$J:$J,'Banco de Dados'!$A:$A,D$9,'Banco de Dados'!$K:$K,"Ganhos do dia "&$A26)+SUMIFS('Banco de Dados'!$J:$J,'Banco de Dados'!$A:$A,D$9,'Banco de Dados'!$K:$K,"Bônus/Incentivo "&$A26) -> 0 | E26: =SUMIFS('Banco de Dados'!$J:$J,'Banco de Dados'!$A:$A,E$9,'Banco de Dados'!$K:$K,"Ganhos do dia "&$A26)+SUMIFS('Banco de Dados'!$J:$J,'Banco de Dados'!$A:$A,E$9,'Banco de Dados'!$K:$K,"Bônus/Incentivo "&$A26) -> 0 | F26: =SUMIFS('Banco de Dados'!$J:$J,'Banco de Dados'!$A:$A,F$9,'Banco de Dados'!$K:$K,"Ganhos do dia "&$A26)+SUMIFS('Banco de Dados'!$J:$J,'Banco de Dados'!$A:$A,F$9,'Banco de Dados'!$K:$K,"Bônus/Incentivo "&$A26) -> 0 | G26: =SUMIFS('Banco de Dados'!$J:$J,'Banco de Dados'!$A:$A,G$9,'Banco de Dados'!$K:$K,"Ganhos do dia "&$A26)+SUMIFS('Banco de Dados'!$J:$J,'Banco de Dados'!$A:$A,G$9,'Banco de Dados'!$K:$K,"Bônus/Incentivo "&$A26) -> 0 | H26: =SUMIFS('Banco de Dados'!$J:$J,'Banco de Dados'!$A:$A,H$9,'Banco de Dados'!$K:$K,"Ganhos do dia "&$A26)+SUMIFS('Banco de Dados'!$J:$J,'Banco de Dados'!$A:$A,H$9,'Banco de Dados'!$K:$K,"Bônus/Incentivo "&$A26) -> 0 | I26: =SUMIFS('Banco de Dados'!$J:$J,'Banco de Dados'!$A:$A,I$9,'Banco de Dados'!$K:$K,"Ganhos do dia "&$A26)+SUMIFS('Banco de Dados'!$J:$J,'Banco de Dados'!$A:$A,I$9,'Banco de Dados'!$K:$K,"Bônus/Incentivo "&$A26) -> 0
A27: ="- "&Configurações!$E$14 -> - App 2 | B27: =SUMIFS('Banco de Dados'!$J:$J,'Banco de Dados'!$A:$A,B$9,'Banco de Dados'!$K:$K,"Ganhos do dia "&$A27)+SUMIFS('Banco de Dados'!$J:$J,'Banco de Dados'!$A:$A,B$9,'Banco de Dados'!$K:$K,"Bônus/Incentivo "&$A27) -> 0 | C27: =SUMIFS('Banco de Dados'!$J:$J,'Banco de Dados'!$A:$A,C$9,'Banco de Dados'!$K:$K,"Ganhos do dia "&$A27)+SUMIFS('Banco de Dados'!$J:$J,'Banco de Dados'!$A:$A,C$9,'Banco de Dados'!$K:$K,"Bônus/Incentivo "&$A27) -> 0 | D27: =SUMIFS('Banco de Dados'!$J:$J,'Banco de Dados'!$A:$A,D$9,'Banco de Dados'!$K:$K,"Ganhos do dia "&$A27)+SUMIFS('Banco de Dados'!$J:$J,'Banco de Dados'!$A:$A,D$9,'Banco de Dados'!$K:$K,"Bônus/Incentivo "&$A27) -> 0 | E27: =SUMIFS('Banco de Dados'!$J:$J,'Banco de Dados'!$A:$A,E$9,'Banco de Dados'!$K:$K,"Ganhos do dia "&$A27)+SUMIFS('Banco de Dados'!$J:$J,'Banco de Dados'!$A:$A,E$9,'Banco de Dados'!$K:$K,"Bônus/Incentivo "&$A27) -> 0 | F27: =SUMIFS('Banco de Dados'!$J:$J,'Banco de Dados'!$A:$A,F$9,'Banco de Dados'!$K:$K,"Ganhos do dia "&$A27)+SUMIFS('Banco de Dados'!$J:$J,'Banco de Dados'!$A:$A,F$9,'Banco de Dados'!$K:$K,"Bônus/Incentivo "&$A27) -> 0 | G27: =SUMIFS('Banco de Dados'!$J:$J,'Banco de Dados'!$A:$A,G$9,'Banco de Dados'!$K:$K,"Ganhos do dia "&$A27)+SUMIFS('Banco de Dados'!$J:$J,'Banco de Dados'!$A:$A,G$9,'Banco de Dados'!$K:$K,"Bônus/Incentivo "&$A27) -> 0 | H27: =SUMIFS('Banco de Dados'!$J:$J,'Banco de Dados'!$A:$A,H$9,'Banco de Dados'!$K:$K,"Ganhos do dia "&$A27)+SUMIFS('Banco de Dados'!$J:$J,'Banco de Dados'!$A:$A,H$9,'Banco de Dados'!$K:$K,"Bônus/Incentivo "&$A27) -> 0 | I27: =SUMIFS('Banco de Dados'!$J:$J,'Banco de Dados'!$A:$A,I$9,'Banco de Dados'!$K:$K,"Ganhos do dia "&$A27)+SUMIFS('Banco de Dados'!$J:$J,'Banco de Dados'!$A:$A,I$9,'Banco de Dados'!$K:$K,"Bônus/Incentivo "&$A27) -> 0
A28: ="- "&Configurações!$E$15 -> - App 3 | B28: =SUMIFS('Banco de Dados'!$J:$J,'Banco de Dados'!$A:$A,B$9,'Banco de Dados'!$K:$K,"Ganhos do dia "&$A28)+SUMIFS('Banco de Dados'!$J:$J,'Banco de Dados'!$A:$A,B$9,'Banco de Dados'!$K:$K,"Bônus/Incentivo "&$A28) -> 0 | C28: =SUMIFS('Banco de Dados'!$J:$J,'Banco de Dados'!$A:$A,C$9,'Banco de Dados'!$K:$K,"Ganhos do dia "&$A28)+SUMIFS('Banco de Dados'!$J:$J,'Banco de Dados'!$A:$A,C$9,'Banco de Dados'!$K:$K,"Bônus/Incentivo "&$A28) -> 0 | D28: =SUMIFS('Banco de Dados'!$J:$J,'Banco de Dados'!$A:$A,D$9,'Banco de Dados'!$K:$K,"Ganhos do dia "&$A28)+SUMIFS('Banco de Dados'!$J:$J,'Banco de Dados'!$A:$A,D$9,'Banco de Dados'!$K:$K,"Bônus/Incentivo "&$A28) -> 0 | E28: =SUMIFS('Banco de Dados'!$J:$J,'Banco de Dados'!$A:$A,E$9,'Banco de Dados'!$K:$K,"Ganhos do dia "&$A28)+SUMIFS('Banco de Dados'!$J:$J,'Banco de Dados'!$A:$A,E$9,'Banco de Dados'!$K:$K,"Bônus/Incentivo "&$A28) -> 0 | F28: =SUMIFS('Banco de Dados'!$J:$J,'Banco de Dados'!$A:$A,F$9,'Banco de Dados'!$K:$K,"Ganhos do dia "&$A28)+SUMIFS('Banco de Dados'!$J:$J,'Banco de Dados'!$A:$A,F$9,'Banco de Dados'!$K:$K,"Bônus/Incentivo "&$A28) -> 0 | G28: =SUMIFS('Banco de Dados'!$J:$J,'Banco de Dados'!$A:$A,G$9,'Banco de Dados'!$K:$K,"Ganhos do dia "&$A28)+SUMIFS('Banco de Dados'!$J:$J,'Banco de Dados'!$A:$A,G$9,'Banco de Dados'!$K:$K,"Bônus/Incentivo "&$A28) -> 0 | H28: =SUMIFS('Banco de Dados'!$J:$J,'Banco de Dados'!$A:$A,H$9,'Banco de Dados'!$K:$K,"Ganhos do dia "&$A28)+SUMIFS('Banco de Dados'!$J:$J,'Banco de Dados'!$A:$A,H$9,'Banco de Dados'!$K:$K,"Bônus/Incentivo "&$A28) -> 0 | I28: =SUMIFS('Banco de Dados'!$J:$J,'Banco de Dados'!$A:$A,I$9,'Banco de Dados'!$K:$K,"Ganhos do dia "&$A28)+SUMIFS('Banco de Dados'!$J:$J,'Banco de Dados'!$A:$A,I$9,'Banco de Dados'!$K:$K,"Bônus/Incentivo "&$A28) -> 0
A29: Gasto | B29: =SUMIFS('Banco de Dados'!$J:$J,'Banco de Dados'!$A:$A,B$9,'Banco de Dados'!$B:$B,'Semana Atual'!$B$31)+SUMIFS('Banco de Dados'!$J:$J,'Banco de Dados'!$A:$A,B$9,'Banco de Dados'!$B:$B,'Semana Atual'!$B$38) -> 0 | C29: =SUMIFS('Banco de Dados'!$J:$J,'Banco de Dados'!$A:$A,C$9,'Banco de Dados'!$B:$B,'Semana Atual'!$B$31)+SUMIFS('Banco de Dados'!$J:$J,'Banco de Dados'!$A:$A,C$9,'Banco de Dados'!$B:$B,'Semana Atual'!$B$38) -> 0 | D29: =SUMIFS('Banco de Dados'!$J:$J,'Banco de Dados'!$A:$A,D$9,'Banco de Dados'!$B:$B,'Semana Atual'!$B$31)+SUMIFS('Banco de Dados'!$J:$J,'Banco de Dados'!$A:$A,D$9,'Banco de Dados'!$B:$B,'Semana Atual'!$B$38) -> 0 | E29: =SUMIFS('Banco de Dados'!$J:$J,'Banco de Dados'!$A:$A,E$9,'Banco de Dados'!$B:$B,'Semana Atual'!$B$31)+SUMIFS('Banco de Dados'!$J:$J,'Banco de Dados'!$A:$A,E$9,'Banco de Dados'!$B:$B,'Semana Atual'!$B$38) -> 0 | F29: =SUMIFS('Banco de Dados'!$J:$J,'Banco de Dados'!$A:$A,F$9,'Banco de Dados'!$B:$B,'Semana Atual'!$B$31)+SUMIFS('Banco de Dados'!$J:$J,'Banco de Dados'!$A:$A,F$9,'Banco de Dados'!$B:$B,'Semana Atual'!$B$38) -> 0 | G29: =SUMIFS('Banco de Dados'!$J:$J,'Banco de Dados'!$A:$A,G$9,'Banco de Dados'!$B:$B,'Semana Atual'!$B$31)+SUMIFS('Banco de Dados'!$J:$J,'Banco de Dados'!$A:$A,G$9,'Banco de Dados'!$B:$B,'Semana Atual'!$B$38) -> 0 | H29: =SUMIFS('Banco de Dados'!$J:$J,'Banco de Dados'!$A:$A,H$9,'Banco de Dados'!$B:$B,'Semana Atual'!$B$31)+SUMIFS('Banco de Dados'!$J:$J,'Banco de Dados'!$A:$A,H$9,'Banco de Dados'!$B:$B,'Semana Atual'!$B$38) -> 0 | I29: =SUMIFS('Banco de Dados'!$J:$J,'Banco de Dados'!$A:$A,I$9,'Banco de Dados'!$B:$B,'Semana Atual'!$B$31)+SUMIFS('Banco de Dados'!$J:$J,'Banco de Dados'!$A:$A,I$9,'Banco de Dados'!$B:$B,'Semana Atual'!$B$38) -> 0
A30: Gasto + Provisão | B30: =SUMIFS('Banco de Dados'!$J:$J,'Banco de Dados'!$A:$A,B$9,'Banco de Dados'!$B:$B,'Semana Atual'!$B$31)+SUMIFS('Banco de Dados'!$J:$J,'Banco de Dados'!$A:$A,B$9,'Banco de Dados'!$B:$B,'Semana Atual'!$B$38)+SUMIFS('Banco de Dados'!$J:$J,'Banco de Dados'!$A:$A,B$9,'Banco de Dados'!$B:$B,'Semana Atual'!$B$50) -> 0 | C30: =SUMIFS('Banco de Dados'!$J:$J,'Banco de Dados'!$A:$A,C$9,'Banco de Dados'!$B:$B,'Semana Atual'!$B$31)+SUMIFS('Banco de Dados'!$J:$J,'Banco de Dados'!$A:$A,C$9,'Banco de Dados'!$B:$B,'Semana Atual'!$B$38)+SUMIFS('Banco de Dados'!$J:$J,'Banco de Dados'!$A:$A,C$9,'Banco de Dados'!$B:$B,'Semana Atual'!$B$50) -> 0 | D30: =SUMIFS('Banco de Dados'!$J:$J,'Banco de Dados'!$A:$A,D$9,'Banco de Dados'!$B:$B,'Semana Atual'!$B$31)+SUMIFS('Banco de Dados'!$J:$J,'Banco de Dados'!$A:$A,D$9,'Banco de Dados'!$B:$B,'Semana Atual'!$B$38)+SUMIFS('Banco de Dados'!$J:$J,'Banco de Dados'!$A:$A,D$9,'Banco de Dados'!$B:$B,'Semana Atual'!$B$50) -> 0 | E30: =SUMIFS('Banco de Dados'!$J:$J,'Banco de Dados'!$A:$A,E$9,'Banco de Dados'!$B:$B,'Semana Atual'!$B$31)+SUMIFS('Banco de Dados'!$J:$J,'Banco de Dados'!$A:$A,E$9,'Banco de Dados'!$B:$B,'Semana Atual'!$B$38)+SUMIFS('Banco de Dados'!$J:$J,'Banco de Dados'!$A:$A,E$9,'Banco de Dados'!$B:$B,'Semana Atual'!$B$50) -> 0 | F30: =SUMIFS('Banco de Dados'!$J:$J,'Banco de Dados'!$A:$A,F$9,'Banco de Dados'!$B:$B,'Semana Atual'!$B$31)+SUMIFS('Banco de Dados'!$J:$J,'Banco de Dados'!$A:$A,F$9,'Banco de Dados'!$B:$B,'Semana Atual'!$B$38)+SUMIFS('Banco de Dados'!$J:$J,'Banco de Dados'!$A:$A,F$9,'Banco de Dados'!$B:$B,'Semana Atual'!$B$50) -> 0 | G30: =SUMIFS('Banco de Dados'!$J:$J,'Banco de Dados'!$A:$A,G$9,'Banco de Dados'!$B:$B,'Semana Atual'!$B$31)+SUMIFS('Banco de Dados'!$J:$J,'Banco de Dados'!$A:$A,G$9,'Banco de Dados'!$B:$B,'Semana Atual'!$B$38)+SUMIFS('Banco de Dados'!$J:$J,'Banco de Dados'!$A:$A,G$9,'Banco de Dados'!$B:$B,'Semana Atual'!$B$50) -> 0 | H30: =SUMIFS('Banco de Dados'!$J:$J,'Banco de Dados'!$A:$A,H$9,'Banco de Dados'!$B:$B,'Semana Atual'!$B$31)+SUMIFS('Banco de Dados'!$J:$J,'Banco de Dados'!$A:$A,H$9,'Banco de Dados'!$B:$B,'Semana Atual'!$B$38)+SUMIFS('Banco de Dados'!$J:$J,'Banco de Dados'!$A:$A,H$9,'Banco de Dados'!$B:$B,'Semana Atual'!$B$50) -> 0 | I30: =SUMIFS('Banco de Dados'!$J:$J,'Banco de Dados'!$A:$A,I$9,'Banco de Dados'!$B:$B,'Semana Atual'!$B$31)+SUMIFS('Banco de Dados'!$J:$J,'Banco de Dados'!$A:$A,I$9,'Banco de Dados'!$B:$B,'Semana Atual'!$B$38)+SUMIFS('Banco de Dados'!$J:$J,'Banco de Dados'!$A:$A,I$9,'Banco de Dados'!$B:$B,'Semana Atual'!$B$50) -> 0
A32: BASE PARA GRÁFICOS NA ABA GRÁFICOS
A33: Alimentação | B33: =SUMIFS('Banco de Dados'!$O:$O,'Banco de Dados'!B:B,"Gastos com "&$A33,'Banco de Dados'!$M:$M,">="&Gráficos!$G$7,'Banco de Dados'!$N:$N,"<="&Gráficos!$H$7)+SUMIFS('Banco de Dados'!$R:$R,'Banco de Dados'!B:B,"Gastos com "&$A33,'Banco de Dados'!$P:$P,">="&Gráficos!$G$7,'Banco de Dados'!$Q:$Q,"<="&Gráficos!$H$7) -> 0 | C33: Combustível | D33: =SUMIFS('Banco de Dados'!$O:$O,'Banco de Dados'!B:B,"Custos com "&$C33,'Banco de Dados'!$M:$M,">="&Gráficos!$G$7,'Banco de Dados'!$N:$N,"<="&Gráficos!$H$7)+SUMIFS('Banco de Dados'!$R:$R,'Banco de Dados'!B:B,"Custos com "&$C33,'Banco de Dados'!$P:$P,">="&Gráficos!$G$7,'Banco de Dados'!$Q:$Q,"<="&Gráficos!$H$7) -> 0 | E33: Ganhos do dia | F33: =SUMIFS('Banco de Dados'!$O:$O,'Banco de Dados'!B:B,$E33,'Banco de Dados'!$M:$M,">="&Gráficos!$G$7,'Banco de Dados'!$N:$N,"<="&Gráficos!$H$7)+SUMIFS('Banco de Dados'!$R:$R,'Banco de Dados'!B:B,$E33,'Banco de Dados'!$P:$P,">="&Gráficos!$G$7,'Banco de Dados'!$Q:$Q,"<="&Gráficos!$H$7) -> 0 | G33: Depreciação | H33: =SUMIFS('Banco de Dados'!$O:$O,'Banco de Dados'!B:B,$G33&" do veículo",'Banco de Dados'!$M:$M,">="&Gráficos!$G$7,'Banco de Dados'!$N:$N,"<="&Gráficos!$H$7)+SUMIFS('Banco de Dados'!$R:$R,'Banco de Dados'!B:B,$G33&" do veículo",'Banco de Dados'!$P:$P,">="&Gráficos!$G$7,'Banco de Dados'!$Q:$Q,"<="&Gráficos!$H$7) -> 0
A34: Estacionamento | B34: =SUMIFS('Banco de Dados'!$O:$O,'Banco de Dados'!B:B,"Gastos com "&$A34,'Banco de Dados'!$M:$M,">="&Gráficos!$G$7,'Banco de Dados'!$N:$N,"<="&Gráficos!$H$7)+SUMIFS('Banco de Dados'!$R:$R,'Banco de Dados'!B:B,"Gastos com "&$A34,'Banco de Dados'!$P:$P,">="&Gráficos!$G$7,'Banco de Dados'!$Q:$Q,"<="&Gráficos!$H$7) -> 0 | C34: Custos com água | D34: =SUMIFS('Banco de Dados'!$O:$O,'Banco de Dados'!B:B,"Custos com "&$C34,'Banco de Dados'!$M:$M,">="&Gráficos!$G$7,'Banco de Dados'!$N:$N,"<="&Gráficos!$H$7)+SUMIFS('Banco de Dados'!$R:$R,'Banco de Dados'!B:B,"Custos com "&$C34,'Banco de Dados'!$P:$P,">="&Gráficos!$G$7,'Banco de Dados'!$Q:$Q,"<="&Gráficos!$H$7) -> 0 | E34: Bônus/Incentivo | F34: =SUMIFS('Banco de Dados'!$O:$O,'Banco de Dados'!B:B,$E34,'Banco de Dados'!$M:$M,">="&Gráficos!$G$7,'Banco de Dados'!$N:$N,"<="&Gráficos!$H$7)+SUMIFS('Banco de Dados'!$R:$R,'Banco de Dados'!B:B,$E34,'Banco de Dados'!$P:$P,">="&Gráficos!$G$7,'Banco de Dados'!$Q:$Q,"<="&Gráficos!$H$7) -> 0 | G34: Seguro Anual | H34: =SUMIFS('Banco de Dados'!$O:$O,'Banco de Dados'!B:B,$G34,'Banco de Dados'!$M:$M,">="&Gráficos!$G$7,'Banco de Dados'!$N:$N,"<="&Gráficos!$H$7)+SUMIFS('Banco de Dados'!$R:$R,'Banco de Dados'!B:B,$G34,'Banco de Dados'!$P:$P,">="&Gráficos!$G$7,'Banco de Dados'!$Q:$Q,"<="&Gráficos!$H$7) -> 0
A35: Lavagem | B35: =SUMIFS('Banco de Dados'!$O:$O,'Banco de Dados'!B:B,"Gastos com "&$A35,'Banco de Dados'!$M:$M,">="&Gráficos!$G$7,'Banco de Dados'!$N:$N,"<="&Gráficos!$H$7)+SUMIFS('Banco de Dados'!$R:$R,'Banco de Dados'!B:B,"Gastos com "&$A35,'Banco de Dados'!$P:$P,">="&Gráficos!$G$7,'Banco de Dados'!$Q:$Q,"<="&Gráficos!$H$7) -> 0 | C35: Custos com bala | D35: =SUMIFS('Banco de Dados'!$O:$O,'Banco de Dados'!B:B,"Custos com "&$C35,'Banco de Dados'!$M:$M,">="&Gráficos!$G$7,'Banco de Dados'!$N:$N,"<="&Gráficos!$H$7)+SUMIFS('Banco de Dados'!$R:$R,'Banco de Dados'!B:B,"Custos com "&$C35,'Banco de Dados'!$P:$P,">="&Gráficos!$G$7,'Banco de Dados'!$Q:$Q,"<="&Gráficos!$H$7) -> 0 | E35: Outros Incentivos | F35: =SUMIFS('Banco de Dados'!$O:$O,'Banco de Dados'!B:B,$E35,'Banco de Dados'!$M:$M,">="&Gráficos!$G$7,'Banco de Dados'!$N:$N,"<="&Gráficos!$H$7)+SUMIFS('Banco de Dados'!$R:$R,'Banco de Dados'!B:B,$E35,'Banco de Dados'!$P:$P,">="&Gráficos!$G$7,'Banco de Dados'!$Q:$Q,"<="&Gráficos!$H$7) -> 0 | G35: Prestação | H35: =SUMIFS('Banco de Dados'!$O:$O,'Banco de Dados'!B:B,$G35&" do veículo",'Banco de Dados'!$M:$M,">="&Gráficos!$G$7,'Banco de Dados'!$N:$N,"<="&Gráficos!$H$7)+SUMIFS('Banco de Dados'!$R:$R,'Banco de Dados'!B:B,$G35&" do veículo",'Banco de Dados'!$P:$P,">="&Gráficos!$G$7,'Banco de Dados'!$Q:$Q,"<="&Gráficos!$H$7) -> 0
A36: Multa | B36: =SUMIFS('Banco de Dados'!$O:$O,'Banco de Dados'!B:B,"Gastos com "&$A36,'Banco de Dados'!$M:$M,">="&Gráficos!$G$7,'Banco de Dados'!$N:$N,"<="&Gráficos!$H$7)+SUMIFS('Banco de Dados'!$R:$R,'Banco de Dados'!B:B,"Gastos com "&$A36,'Banco de Dados'!$P:$P,">="&Gráficos!$G$7,'Banco de Dados'!$Q:$Q,"<="&Gráficos!$H$7) -> 0 | C36: Outros custos | D36: =SUMIFS('Banco de Dados'!$O:$O,'Banco de Dados'!B:B,"Custos com "&$C36,'Banco de Dados'!$M:$M,">="&Gráficos!$G$7,'Banco de Dados'!$N:$N,"<="&Gráficos!$H$7)+SUMIFS('Banco de Dados'!$R:$R,'Banco de Dados'!B:B,"Custos com "&$C36,'Banco de Dados'!$P:$P,">="&Gráficos!$G$7,'Banco de Dados'!$Q:$Q,"<="&Gráficos!$H$7) -> 0 | E36: Ganhos | F36: =SUM(F33:F35) -> 0 | G36: Troca de pneu | H36: =SUMIFS('Banco de Dados'!$O:$O,'Banco de Dados'!B:B,$G36,'Banco de Dados'!$M:$M,">="&Gráficos!$G$7,'Banco de Dados'!$N:$N,"<="&Gráficos!$H$7)+SUMIFS('Banco de Dados'!$R:$R,'Banco de Dados'!B:B,$G36,'Banco de Dados'!$P:$P,">="&Gráficos!$G$7,'Banco de Dados'!$Q:$Q,"<="&Gráficos!$H$7) -> 0
A37: Pedágio | B37: =SUMIFS('Banco de Dados'!$O:$O,'Banco de Dados'!B:B,"Gastos com "&$A37,'Banco de Dados'!$M:$M,">="&Gráficos!$G$7,'Banco de Dados'!$N:$N,"<="&Gráficos!$H$7)+SUMIFS('Banco de Dados'!$R:$R,'Banco de Dados'!B:B,"Gastos com "&$A37,'Banco de Dados'!$P:$P,">="&Gráficos!$G$7,'Banco de Dados'!$Q:$Q,"<="&Gráficos!$H$7) -> 0 | C37: Custos | D37: =SUM(D33:D36) -> 0 | G37: Troca de óleo | H37: =SUMIFS('Banco de Dados'!$O:$O,'Banco de Dados'!B:B,$G37,'Banco de Dados'!$M:$M,">="&Gráficos!$G$7,'Banco de Dados'!$N:$N,"<="&Gráficos!$H$7)+SUMIFS('Banco de Dados'!$R:$R,'Banco de Dados'!B:B,$G37,'Banco de Dados'!$P:$P,">="&Gráficos!$G$7,'Banco de Dados'!$Q:$Q,"<="&Gráficos!$H$7) -> 0
A38: Outros gastos | B38: =SUMIFS('Banco de Dados'!$O:$O,'Banco de Dados'!B:B,"Gastos com "&$A38,'Banco de Dados'!$M:$M,">="&Gráficos!$G$7,'Banco de Dados'!$N:$N,"<="&Gráficos!$H$7)+SUMIFS('Banco de Dados'!$R:$R,'Banco de Dados'!B:B,"Gastos com "&$A38,'Banco de Dados'!$P:$P,">="&Gráficos!$G$7,'Banco de Dados'!$Q:$Q,"<="&Gráficos!$H$7) -> 0 | E38: Resultado Bruto | F38: =F36-D37-B39 -> 0 | G38: Outras | H38: =SUMIFS('Banco de Dados'!$O:$O,'Banco de Dados'!B:B,$G38&" despesas anuais",'Banco de Dados'!$M:$M,">="&Gráficos!$G$7,'Banco de Dados'!$N:$N,"<="&Gráficos!$H$7)+SUMIFS('Banco de Dados'!$R:$R,'Banco de Dados'!B:B,$G38&" despesas anuais",'Banco de Dados'!$P:$P,">="&Gráficos!$G$7,'Banco de Dados'!$Q:$Q,"<="&Gráficos!$H$7) -> 0
A39: Despesas | B39: =SUM(B33:B38) -> 0 | E39: Resultado Líquido | F39: =F38-Auxiliar!H40 -> 0 | G39: Aluguel | H39: =SUMIFS('Banco de Dados'!$O:$O,'Banco de Dados'!B:B,$G39,'Banco de Dados'!$M:$M,">="&Gráficos!$G$7,'Banco de Dados'!$N:$N,"<="&Gráficos!$H$7)+SUMIFS('Banco de Dados'!$R:$R,'Banco de Dados'!B:B,$G39,'Banco de Dados'!$P:$P,">="&Gráficos!$G$7,'Banco de Dados'!$Q:$Q,"<="&Gráficos!$H$7) -> 0
G40: Provisões | H40: =SUM(Auxiliar!H33:H39) -> 0
B41: Ganhos | C41: Gastos | D41: Provisões | E41: Resultado Bruto | F41: Resultado Líquido
A42: Média do período selecionado | B42: =(SUMIFS('Banco de Dados'!$O:$O,'Banco de Dados'!$B:$B,"TOTAL DE GANHOS",'Banco de Dados'!$M:$M,">="&Gráficos!$G$7,'Banco de Dados'!$N:$N,"<="&Gráficos!$H$7)+SUMIFS('Banco de Dados'!$R:$R,'Banco de Dados'!$B:$B,"TOTAL DE GANHOS",'Banco de Dados'!$P:$P,">="&Gráficos!$G$7,'Banco de Dados'!$Q:$Q,"<="&Gráficos!$H$7))/Gráficos!$M$12 -> 0 | C42: =(SUMIFS('Banco de Dados'!$O:$O,'Banco de Dados'!$B:$B,"TOTAL DE CUSTOS",'Banco de Dados'!$M:$M,">="&Gráficos!$G$7,'Banco de Dados'!$N:$N,"<="&Gráficos!$H$7)+SUMIFS('Banco de Dados'!$R:$R,'Banco de Dados'!$B:$B,"TOTAL DE CUSTOS",'Banco de Dados'!$P:$P,">="&Gráficos!$G$7,'Banco de Dados'!$Q:$Q,"<="&Gráficos!$H$7)+SUMIFS('Banco de Dados'!$O:$O,'Banco de Dados'!$B:$B,"TOTAL DE GASTOS",'Banco de Dados'!$M:$M,">="&Gráficos!$G$7,'Banco de Dados'!$N:$N,"<="&Gráficos!$H$7)+SUMIFS('Banco de Dados'!$R:$R,'Banco de Dados'!$B:$B,"TOTAL DE GASTOS",'Banco de Dados'!$P:$P,">="&Gráficos!$G$7,'Banco de Dados'!$Q:$Q,"<="&Gráficos!$H$7))/Gráficos!$M$12 -> 0 | D42: =(SUMIFS('Banco de Dados'!$O:$O,'Banco de Dados'!$B:$B,"Custo com provisões",'Banco de Dados'!$M:$M,">="&Gráficos!$G$7,'Banco de Dados'!$N:$N,"<="&Gráficos!$H$7)+SUMIFS('Banco de Dados'!$R:$R,'Banco de Dados'!$B:$B,"Custo com provisões",'Banco de Dados'!$P:$P,">="&Gráficos!$G$7,'Banco de Dados'!$Q:$Q,"<="&Gráficos!$H$7))/Gráficos!$M$12 -> 0 | E42: =B42-C42 -> 0 | F42: =E42-D42 -> 0 | G42: Máximo | H42: =ROUNDUP(MAX(Auxiliar!B42:F45),-(LEN(ROUND(MAX($B$42:$F$45),0))-1)) -> 0
A43: Média do último mês | B43: =(SUMIFS('Banco de Dados'!$O:$O,'Banco de Dados'!$B:$B,"TOTAL DE GANHOS",'Banco de Dados'!$M:$M,">="&Gráficos!$M$5,'Banco de Dados'!$N:$N,"<="&Gráficos!$N$5)+SUMIFS('Banco de Dados'!$R:$R,'Banco de Dados'!$B:$B,"TOTAL DE GANHOS",'Banco de Dados'!$P:$P,">="&Gráficos!$M$5,'Banco de Dados'!$Q:$Q,"<="&Gráficos!$N$5))/Gráficos!$M$11 -> 0 | C43: =(SUMIFS('Banco de Dados'!$O:$O,'Banco de Dados'!$B:$B,"TOTAL DE CUSTOS",'Banco de Dados'!$M:$M,">="&Gráficos!$M$5,'Banco de Dados'!$N:$N,"<="&Gráficos!$N$5)+SUMIFS('Banco de Dados'!$R:$R,'Banco de Dados'!$B:$B,"TOTAL DE CUSTOS",'Banco de Dados'!$P:$P,">="&Gráficos!$M$5,'Banco de Dados'!$Q:$Q,"<="&Gráficos!$N$5)+SUMIFS('Banco de Dados'!$O:$O,'Banco de Dados'!$B:$B,"TOTAL DE GASTOS",'Banco de Dados'!$M:$M,">="&Gráficos!$M$5,'Banco de Dados'!$N:$N,"<="&Gráficos!$N$5)+SUMIFS('Banco de Dados'!$R:$R,'Banco de Dados'!$B:$B,"TOTAL DE GASTOS",'Banco de Dados'!$P:$P,">="&Gráficos!$M$5,'Banco de Dados'!$Q:$Q,"<="&Gráficos!$N$5))/Gráficos!$M$11 -> 0 | D43: =(SUMIFS('Banco de Dados'!$O:$O,'Banco de Dados'!$B:$B,"Custo com provisões",'Banco de Dados'!$M:$M,">="&Gráficos!$M$5,'Banco de Dados'!$N:$N,"<="&Gráficos!$N$5)+SUMIFS('Banco de Dados'!$R:$R,'Banco de Dados'!$B:$B,"Custo com provisões",'Banco de Dados'!$P:$P,">="&Gráficos!$M$5,'Banco de Dados'!$Q:$Q,"<="&Gráficos!$N$5))/Gráficos!$M$11 -> 0 | E43: =B43-C43 -> 0 | F43: =E43-D43 -> 0 | G43: Mínimo | H43: =LEN(ROUND(MAX($B$42:$F$45),0))-1 -> 0
A44: Média 3 últimos meses | B44: =(SUMIFS('Banco de Dados'!$O:$O,'Banco de Dados'!$B:$B,"TOTAL DE GANHOS",'Banco de Dados'!$M:$M,">="&Gráficos!$M$7,'Banco de Dados'!$N:$N,"<="&Gráficos!$N$7)+SUMIFS('Banco de Dados'!$R:$R,'Banco de Dados'!$B:$B,"TOTAL DE GANHOS",'Banco de Dados'!$P:$P,">="&Gráficos!$M$7,'Banco de Dados'!$Q:$Q,"<="&Gráficos!$N$7))/Gráficos!$M$13 -> 0 | C44: =(SUMIFS('Banco de Dados'!$O:$O,'Banco de Dados'!$B:$B,"TOTAL DE CUSTOS",'Banco de Dados'!$M:$M,">="&Gráficos!$M$7,'Banco de Dados'!$N:$N,"<="&Gráficos!$N$7)+SUMIFS('Banco de Dados'!$R:$R,'Banco de Dados'!$B:$B,"TOTAL DE CUSTOS",'Banco de Dados'!$P:$P,">="&Gráficos!$M$7,'Banco de Dados'!$Q:$Q,"<="&Gráficos!$N$7)+SUMIFS('Banco de Dados'!$O:$O,'Banco de Dados'!$B:$B,"TOTAL DE GASTOS",'Banco de Dados'!$M:$M,">="&Gráficos!$M$7,'Banco de Dados'!$N:$N,"<="&Gráficos!$N$7)+SUMIFS('Banco de Dados'!$R:$R,'Banco de Dados'!$B:$B,"TOTAL DE GASTOS",'Banco de Dados'!$P:$P,">="&Gráficos!$M$7,'Banco de Dados'!$Q:$Q,"<="&Gráficos!$N$7))/Gráficos!$M$13 -> 0 | D44: =(SUMIFS('Banco de Dados'!$O:$O,'Banco de Dados'!$B:$B,"Custo com provisões",'Banco de Dados'!$M:$M,">="&Gráficos!$M$7,'Banco de Dados'!$N:$N,"<="&Gráficos!$N$7)+SUMIFS('Banco de Dados'!$R:$R,'Banco de Dados'!$B:$B,"Custo com provisões",'Banco de Dados'!$P:$P,">="&Gráficos!$M$7,'Banco de Dados'!$Q:$Q,"<="&Gráficos!$N$7))/Gráficos!$M$13 -> 0 | E44: =B44-C44 -> 0 | F44: =E44-D44 -> 0
A45: Média da semana passada | B45: =(SUMIFS('Banco de Dados'!$O:$O,'Banco de Dados'!$B:$B,"TOTAL DE GANHOS",'Banco de Dados'!$M:$M,">="&Gráficos!$M$10,'Banco de Dados'!$N:$N,"<="&Gráficos!$M$10+6)+SUMIFS('Banco de Dados'!$R:$R,'Banco de Dados'!$B:$B,"TOTAL DE GANHOS",'Banco de Dados'!$P:$P,">="&Gráficos!$M$10,'Banco de Dados'!$Q:$Q,"<="&Gráficos!$M$10+6))/7 -> 0 | C45: =(SUMIFS('Banco de Dados'!$O:$O,'Banco de Dados'!$B:$B,"TOTAL DE CUSTOS",'Banco de Dados'!$M:$M,">="&Gráficos!$M$10,'Banco de Dados'!$N:$N,"<="&Gráficos!$M$10+6)+SUMIFS('Banco de Dados'!$R:$R,'Banco de Dados'!$B:$B,"TOTAL DE CUSTOS",'Banco de Dados'!$P:$P,">="&Gráficos!$M$10,'Banco de Dados'!$Q:$Q,"<="&Gráficos!$M$10+6)+SUMIFS('Banco de Dados'!$O:$O,'Banco de Dados'!$B:$B,"TOTAL DE GASTOS",'Banco de Dados'!$M:$M,">="&Gráficos!$M$10,'Banco de Dados'!$N:$N,"<="&Gráficos!$M$10+6)+SUMIFS('Banco de Dados'!$R:$R,'Banco de Dados'!$B:$B,"TOTAL DE GASTOS",'Banco de Dados'!$P:$P,">="&Gráficos!$M$10,'Banco de Dados'!$Q:$Q,"<="&Gráficos!$M$10+6))/7 -> 0 | D45: =(SUMIFS('Banco de Dados'!$O:$O,'Banco de Dados'!$B:$B,"Custo com provisões",'Banco de Dados'!$M:$M,">="&Gráficos!$M$10,'Banco de Dados'!$N:$N,"<="&Gráficos!$M$10+6)+SUMIFS('Banco de Dados'!$R:$R,'Banco de Dados'!$B:$B,"Custo com provisões",'Banco de Dados'!$P:$P,">="&Gráficos!$M$10,'Banco de Dados'!$Q:$Q,"<="&Gráficos!$M$10+6))/7 -> 0 | E45: =B45-C45 -> 0 | F45: =E45-D45 -> 0
B46: Ganhos do Dia | C46: Bônus/Incentivo | D46: Ganhos Totais | E46: Tempo Online | F46: Nº de Viagens | G46: Receita Total/Nº de Viagens | H46: Receita Total/Tempo Online | I46: Nº de Viagens/Tempo Online
A47: =Configurações!E13 -> Uber | B47: =SUMIFS('Banco de Dados'!$O:$O,'Banco de Dados'!$K:$K,B$46&" - "&$A47,'Banco de Dados'!$M:$M,">="&Gráficos!$G$7,'Banco de Dados'!$N:$N,"<="&Gráficos!$H$7)+SUMIFS('Banco de Dados'!$R:$R,'Banco de Dados'!$K:$K,B$46&" - "&$A47,'Banco de Dados'!$P:$P,">="&Gráficos!$G$7,'Banco de Dados'!$Q:$Q,"<="&Gráficos!$H$7) -> 0 | C47: =SUMIFS('Banco de Dados'!$O:$O,'Banco de Dados'!$K:$K,C$46&" - "&$A47,'Banco de Dados'!$M:$M,">="&Gráficos!$G$7,'Banco de Dados'!$N:$N,"<="&Gráficos!$H$7)+SUMIFS('Banco de Dados'!$R:$R,'Banco de Dados'!$K:$K,C$46&" - "&$A47,'Banco de Dados'!$P:$P,">="&Gráficos!$G$7,'Banco de Dados'!$Q:$Q,"<="&Gráficos!$H$7) -> 0 | D47: =SUM(B47:C47) -> 0 | E47: =SUMIFS('Banco de Dados'!$O:$O,'Banco de Dados'!$K:$K,E$46&" - "&$A47,'Banco de Dados'!$M:$M,">="&Gráficos!$G$7,'Banco de Dados'!$N:$N,"<="&Gráficos!$H$7)+SUMIFS('Banco de Dados'!$R:$R,'Banco de Dados'!$K:$K,E$46&" - "&$A47,'Banco de Dados'!$P:$P,">="&Gráficos!$G$7,'Banco de Dados'!$Q:$Q,"<="&Gráficos!$H$7) -> 0 | F47: =SUMIFS('Banco de Dados'!$O:$O,'Banco de Dados'!$K:$K,F$46&" - "&$A47,'Banco de Dados'!$M:$M,">="&Gráficos!$G$7,'Banco de Dados'!$N:$N,"<="&Gráficos!$H$7)+SUMIFS('Banco de Dados'!$R:$R,'Banco de Dados'!$K:$K,F$46&" - "&$A47,'Banco de Dados'!$P:$P,">="&Gráficos!$G$7,'Banco de Dados'!$Q:$Q,"<="&Gráficos!$H$7) -> 0 | G47: =IFERROR(D47/F47,0) -> 0 | H47: =IFERROR(D47/(E47*24),0) -> 0 | I47: =IFERROR(F47/(E47*24),0) -> 0
A48: =Configurações!E14 -> App 2 | B48: =SUMIFS('Banco de Dados'!$O:$O,'Banco de Dados'!$K:$K,B$46&" - "&$A48,'Banco de Dados'!$M:$M,">="&Gráficos!$G$7,'Banco de Dados'!$N:$N,"<="&Gráficos!$H$7)+SUMIFS('Banco de Dados'!$R:$R,'Banco de Dados'!$K:$K,B$46&" - "&$A48,'Banco de Dados'!$P:$P,">="&Gráficos!$G$7,'Banco de Dados'!$Q:$Q,"<="&Gráficos!$H$7) -> 0 | C48: =SUMIFS('Banco de Dados'!$O:$O,'Banco de Dados'!$K:$K,C$46&" - "&$A48,'Banco de Dados'!$M:$M,">="&Gráficos!$G$7,'Banco de Dados'!$N:$N,"<="&Gráficos!$H$7)+SUMIFS('Banco de Dados'!$R:$R,'Banco de Dados'!$K:$K,C$46&" - "&$A48,'Banco de Dados'!$P:$P,">="&Gráficos!$G$7,'Banco de Dados'!$Q:$Q,"<="&Gráficos!$H$7) -> 0 | D48: 0 | E48: =SUMIFS('Banco de Dados'!$O:$O,'Banco de Dados'!$K:$K,E$46&" - "&$A48,'Banco de Dados'!$M:$M,">="&Gráficos!$G$7,'Banco de Dados'!$N:$N,"<="&Gráficos!$H$7)+SUMIFS('Banco de Dados'!$R:$R,'Banco de Dados'!$K:$K,E$46&" - "&$A48,'Banco de Dados'!$P:$P,">="&Gráficos!$G$7,'Banco de Dados'!$Q:$Q,"<="&Gráficos!$H$7) -> 0 | F48: =SUMIFS('Banco de Dados'!$O:$O,'Banco de Dados'!$K:$K,F$46&" - "&$A48,'Banco de Dados'!$M:$M,">="&Gráficos!$G$7,'Banco de Dados'!$N:$N,"<="&Gráficos!$H$7)+SUMIFS('Banco de Dados'!$R:$R,'Banco de Dados'!$K:$K,F$46&" - "&$A48,'Banco de Dados'!$P:$P,">="&Gráficos!$G$7,'Banco de Dados'!$Q:$Q,"<="&Gráficos!$H$7) -> 0 | G48: =IFERROR(D48/F48,0) -> 0 | H48: =IFERROR(D48/(E48*24),0) -> 0 | I48: =IFERROR(F48/(E48*24),0) -> 0
A49: =Configurações!E15 -> App 3 | B49: =SUMIFS('Banco de Dados'!$O:$O,'Banco de Dados'!$K:$K,B$46&" - "&$A49,'Banco de Dados'!$M:$M,">="&Gráficos!$G$7,'Banco de Dados'!$N:$N,"<="&Gráficos!$H$7)+SUMIFS('Banco de Dados'!$R:$R,'Banco de Dados'!$K:$K,B$46&" - "&$A49,'Banco de Dados'!$P:$P,">="&Gráficos!$G$7,'Banco de Dados'!$Q:$Q,"<="&Gráficos!$H$7) -> 0 | C49: =SUMIFS('Banco de Dados'!$O:$O,'Banco de Dados'!$K:$K,C$46&" - "&$A49,'Banco de Dados'!$M:$M,">="&Gráficos!$G$7,'Banco de Dados'!$N:$N,"<="&Gráficos!$H$7)+SUMIFS('Banco de Dados'!$R:$R,'Banco de Dados'!$K:$K,C$46&" - "&$A49,'Banco de Dados'!$P:$P,">="&Gráficos!$G$7,'Banco de Dados'!$Q:$Q,"<="&Gráficos!$H$7) -> 0 | D49: 0 | E49: =SUMIFS('Banco de Dados'!$O:$O,'Banco de Dados'!$K:$K,E$46&" - "&$A49,'Banco de Dados'!$M:$M,">="&Gráficos!$G$7,'Banco de Dados'!$N:$N,"<="&Gráficos!$H$7)+SUMIFS('Banco de Dados'!$R:$R,'Banco de Dados'!$K:$K,E$46&" - "&$A49,'Banco de Dados'!$P:$P,">="&Gráficos!$G$7,'Banco de Dados'!$Q:$Q,"<="&Gráficos!$H$7) -> 0 | F49: =SUMIFS('Banco de Dados'!$O:$O,'Banco de Dados'!$K:$K,F$46&" - "&$A49,'Banco de Dados'!$M:$M,">="&Gráficos!$G$7,'Banco de Dados'!$N:$N,"<="&Gráficos!$H$7)+SUMIFS('Banco de Dados'!$R:$R,'Banco de Dados'!$K:$K,F$46&" - "&$A49,'Banco de Dados'!$P:$P,">="&Gráficos!$G$7,'Banco de Dados'!$Q:$Q,"<="&Gráficos!$H$7) -> 0 | G49: 0 | H49: 0 | I49: 0
A50: =A47 -> Uber | B50: =SUMIFS('Banco de Dados'!$O:$O,'Banco de Dados'!$K:$K,B$46&" - "&$A50,'Banco de Dados'!$M:$M,">="&Gráficos!$G$7,'Banco de Dados'!$N:$N,"<="&Gráficos!$H$7)+SUMIFS('Banco de Dados'!$R:$R,'Banco de Dados'!$K:$K,B$46&" - "&$A50,'Banco de Dados'!$P:$P,">="&Gráficos!$G$7,'Banco de Dados'!$Q:$Q,"<="&Gráficos!$H$7) -> 0 | C50: =SUMIFS('Banco de Dados'!$O:$O,'Banco de Dados'!$K:$K,C$46&" - "&$A50,'Banco de Dados'!$M:$M,">="&Gráficos!$G$7,'Banco de Dados'!$N:$N,"<="&Gráficos!$H$7)+SUMIFS('Banco de Dados'!$R:$R,'Banco de Dados'!$K:$K,C$46&" - "&$A50,'Banco de Dados'!$P:$P,">="&Gráficos!$G$7,'Banco de Dados'!$Q:$Q,"<="&Gráficos!$H$7) -> 0 | D50: 0 | E50: =SUMIFS('Banco de Dados'!$O:$O,'Banco de Dados'!$K:$K,E$46&" - "&$A50,'Banco de Dados'!$M:$M,">="&Gráficos!$G$7,'Banco de Dados'!$N:$N,"<="&Gráficos!$H$7)+SUMIFS('Banco de Dados'!$R:$R,'Banco de Dados'!$K:$K,E$46&" - "&$A50,'Banco de Dados'!$P:$P,">="&Gráficos!$G$7,'Banco de Dados'!$Q:$Q,"<="&Gráficos!$H$7) -> 0 | F50: =SUMIFS('Banco de Dados'!$O:$O,'Banco de Dados'!$K:$K,F$46&" - "&$A50,'Banco de Dados'!$M:$M,">="&Gráficos!$G$7,'Banco de Dados'!$N:$N,"<="&Gráficos!$H$7)+SUMIFS('Banco de Dados'!$R:$R,'Banco de Dados'!$K:$K,F$46&" - "&$A50,'Banco de Dados'!$P:$P,">="&Gráficos!$G$7,'Banco de Dados'!$Q:$Q,"<="&Gráficos!$H$7) -> 0 | G50: 0 | H50: 0 | I50: 0
A51: =A48 -> App 2 | B51: =SUMIFS('Banco de Dados'!$O:$O,'Banco de Dados'!$K:$K,B$46&" - "&$A51,'Banco de Dados'!$M:$M,">="&Gráficos!$G$7,'Banco de Dados'!$N:$N,"<="&Gráficos!$H$7)+SUMIFS('Banco de Dados'!$R:$R,'Banco de Dados'!$K:$K,B$46&" - "&$A51,'Banco de Dados'!$P:$P,">="&Gráficos!$G$7,'Banco de Dados'!$Q:$Q,"<="&Gráficos!$H$7) -> 0 | C51: =SUMIFS('Banco de Dados'!$O:$O,'Banco de Dados'!$K:$K,C$46&" - "&$A51,'Banco de Dados'!$M:$M,">="&Gráficos!$G$7,'Banco de Dados'!$N:$N,"<="&Gráficos!$H$7)+SUMIFS('Banco de Dados'!$R:$R,'Banco de Dados'!$K:$K,C$46&" - "&$A51,'Banco de Dados'!$P:$P,">="&Gráficos!$G$7,'Banco de Dados'!$Q:$Q,"<="&Gráficos!$H$7) -> 0 | D51: 0 | E51: =SUMIFS('Banco de Dados'!$O:$O,'Banco de Dados'!$K:$K,E$46&" - "&$A51,'Banco de Dados'!$M:$M,">="&Gráficos!$G$7,'Banco de Dados'!$N:$N,"<="&Gráficos!$H$7)+SUMIFS('Banco de Dados'!$R:$R,'Banco de Dados'!$K:$K,E$46&" - "&$A51,'Banco de Dados'!$P:$P,">="&Gráficos!$G$7,'Banco de Dados'!$Q:$Q,"<="&Gráficos!$H$7) -> 0 | F51: =SUMIFS('Banco de Dados'!$O:$O,'Banco de Dados'!$K:$K,F$46&" - "&$A51,'Banco de Dados'!$M:$M,">="&Gráficos!$G$7,'Banco de Dados'!$N:$N,"<="&Gráficos!$H$7)+SUMIFS('Banco de Dados'!$R:$R,'Banco de Dados'!$K:$K,F$46&" - "&$A51,'Banco de Dados'!$P:$P,">="&Gráficos!$G$7,'Banco de Dados'!$Q:$Q,"<="&Gráficos!$H$7) -> 0 | G51: 0 | H51: 0 | I51: 0
A52: =A49 -> App 3 | B52: =SUMIFS('Banco de Dados'!$O:$O,'Banco de Dados'!$K:$K,B$46&" - "&$A52,'Banco de Dados'!$M:$M,">="&Gráficos!$G$7,'Banco de Dados'!$N:$N,"<="&Gráficos!$H$7)+SUMIFS('Banco de Dados'!$R:$R,'Banco de Dados'!$K:$K,B$46&" - "&$A52,'Banco de Dados'!$P:$P,">="&Gráficos!$G$7,'Banco de Dados'!$Q:$Q,"<="&Gráficos!$H$7) -> 0 | C52: =SUMIFS('Banco de Dados'!$O:$O,'Banco de Dados'!$K:$K,C$46&" - "&$A52,'Banco de Dados'!$M:$M,">="&Gráficos!$G$7,'Banco de Dados'!$N:$N,"<="&Gráficos!$H$7)+SUMIFS('Banco de Dados'!$R:$R,'Banco de Dados'!$K:$K,C$46&" - "&$A52,'Banco de Dados'!$P:$P,">="&Gráficos!$G$7,'Banco de Dados'!$Q:$Q,"<="&Gráficos!$H$7) -> 0 | D52: 0 | E52: =SUMIFS('Banco de Dados'!$O:$O,'Banco de Dados'!$K:$K,E$46&" - "&$A52,'Banco de Dados'!$M:$M,">="&Gráficos!$G$7,'Banco de Dados'!$N:$N,"<="&Gráficos!$H$7)+SUMIFS('Banco de Dados'!$R:$R,'Banco de Dados'!$K:$K,E$46&" - "&$A52,'Banco de Dados'!$P:$P,">="&Gráficos!$G$7,'Banco de Dados'!$Q:$Q,"<="&Gráficos!$H$7) -> 0 | F52: =SUMIFS('Banco de Dados'!$O:$O,'Banco de Dados'!$K:$K,F$46&" - "&$A52,'Banco de Dados'!$M:$M,">="&Gráficos!$G$7,'Banco de Dados'!$N:$N,"<="&Gráficos!$H$7)+SUMIFS('Banco de Dados'!$R:$R,'Banco de Dados'!$K:$K,F$46&" - "&$A52,'Banco de Dados'!$P:$P,">="&Gráficos!$G$7,'Banco de Dados'!$Q:$Q,"<="&Gráficos!$H$7) -> 0 | G52: 0 | H52: 0 | I52: 0

Sheet Log (hidden)
A1: Data Hora | B1: Usuário | C1: Computador | D1: Processador
A2: 2015-02-09T12:32:11 | B2: Rodrigo | C2: DESKTOP-FJUD3LJ | D2: Intel64 Family 6 Model 69 Stepping 1, GenuineIntel
A3: 2015-02-09T12:12:23 | B3: Rodrigo | C3: DESKTOP-FJUD3LJ | D3: Intel64 Family 6 Model 69 Stepping 1, GenuineIntel
A4: 2015-02-09T12:08:01 | B4: Rodrigo | C4: DESKTOP-FJUD3LJ | D4: Intel64 Family 6 Model 69 Stepping 1, GenuineIntel
A5: 2015-01-29T21:34:46 | B5: Rodrigo | C5: DESKTOP-FJUD3LJ | D5: Intel64 Family 6 Model 69 Stepping 1, GenuineIntel
A6: 2015-01-29T21:30:25 | B6: Rodrigo | C6: DESKTOP-FJUD3LJ | D6: Intel64 Family 6 Model 69 Stepping 1, GenuineIntel
A7: 2015-01-20T10:46:28 | B7: Rodrigo | C7: DESKTOP-FJUD3LJ | D7: Intel64 Family 6 Model 69 Stepping 1, GenuineIntel
A8: 2015-01-15T18:47:49 | B8: Rodrigo | C8: DESKTOP-FJUD3LJ | D8: Intel64 Family 6 Model 69 Stepping 1, GenuineIntel
A9: 2015-01-10T20:39:16 | B9: Rodrigo | C9: DESKTOP-FJUD3LJ | D9: Intel64 Family 6 Model 69 Stepping 1, GenuineIntel
A10: 2014-12-27T16:41:56 | B10: Rodrigo | C10: DESKTOP-FJUD3LJ | D10: Intel64 Family 6 Model 69 Stepping 1, GenuineIntel
A11: 2014-12-27T16:32:36 | B11: Rodrigo | C11: DESKTOP-FJUD3LJ | D11: Intel64 Family 6 Model 69 Stepping 1, GenuineIntel
A12: 2014-12-26T14:49:35 | B12: Rodrigo | C12: DESKTOP-FJUD3LJ | D12: Intel64 Family 6 Model 69 Stepping 1, GenuineIntel
A13: 2014-12-26T14:13:28 | B13: Rodrigo | C13: DESKTOP-FJUD3LJ | D13: Intel64 Family 6 Model 69 Stepping 1, GenuineIntel
A14: 2014-12-18T14:27:32 | B14: Rodrigo | C14: DESKTOP-FJUD3LJ | D14: Intel64 Family 6 Model 69 Stepping 1, GenuineIntel
A15: 2014-12-18T13:53:39 | B15: Rodrigo | C15: DESKTOP-FJUD3LJ | D15: Intel64 Family 6 Model 69 Stepping 1, GenuineIntel
A16: 2014-12-18T13:49:52 | B16: Rodrigo | C16: DESKTOP-FJUD3LJ | D16: Intel64 Family 6 Model 69 Stepping 1, GenuineIntel
A17: 2014-12-05T12:15:11 | B17: Rodrigo | C17: DESKTOP-FJUD3LJ | D17: Intel64 Family 6 Model 69 Stepping 1, GenuineIntel
A18: 2014-12-05T11:38:43 | B18: Rodrigo | C18: DESKTOP-FJUD3LJ | D18: Intel64 Family 6 Model 69 Stepping 1, GenuineIntel
A19: 2014-11-20T16:11:06 | B19: Rodrigo | C19: DESKTOP-FJUD3LJ | D19: Intel64 Family 6 Model 69 Stepping 1, GenuineIntel
A20: 2014-11-20T16:06:05 | B20: Rodrigo | C20: DESKTOP-FJUD3LJ | D20: Intel64 Family 6 Model 69 Stepping 1, GenuineIntel
A21: 2014-11-15T17:43:55 | B21: Rodrigo | C21: DESKTOP-FJUD3LJ | D21: Intel64 Family 6 Model 69 Stepping 1, GenuineIntel
A22: 2014-11-15T17:39:49 | B22: Rodrigo | C22: DESKTOP-FJUD3LJ | D22: Intel64 Family 6 Model 69 Stepping 1, GenuineIntel
A23: 2014-11-15T17:33:09 | B23: Rodrigo | C23: DESKTOP-FJUD3LJ | D23: Intel64 Family 6 Model 69 Stepping 1, GenuineIntel
A24: 2014-11-15T17:31:27 | B24: Rodrigo | C24: DESKTOP-FJUD3LJ | D24: Intel64 Family 6 Model 69 Stepping 1, GenuineIntel
A25: 2014-11-15T17:25:57 | B25: Rodrigo | C25: DESKTOP-FJUD3LJ | D25: Intel64 Family 6 Model 69 Stepping 1, GenuineIntel
A26: 2014-11-15T17:23:39 | B26: Rodrigo | C26: DESKTOP-FJUD3LJ | D26: Intel64 Family 6 Model 69 Stepping 1, GenuineIntel
A27: 2014-10-24T20:37:15 | B27: Rodrigo | C27: DESKTOP-FJUD3LJ | D27: Intel64 Family 6 Model 69 Stepping 1, GenuineIntel
A28: 2014-10-18T16:45:37 | B28: Rodrigo | C28: DESKTOP-FJUD3LJ | D28: Intel64 Family 6 Model 69 Stepping 1, GenuineIntel
A29: 2014-10-16T11:16:13 | B29: Rodrigo | C29: DESKTOP-FJUD3LJ | D29: Intel64 Family 6 Model 69 Stepping 1, GenuineIntel
A30: 2014-09-23T15:41:36 | B30: Rodrigo | C30: DESKTOP-FJUD3LJ | D30: Intel64 Family 6 Model 69 Stepping 1, GenuineIntel
A31: 2014-09-23T14:55:50 | B31: Rodrigo | C31: DESKTOP-FJUD3LJ | D31: Intel64 Family 6 Model 69 Stepping 1, GenuineIntel
A32: 2014-09-23T02:13:03 | B32: Rodrigo | C32: DESKTOP-FJUD3LJ | D32: Intel64 Family 6 Model 69 Stepping 1, GenuineIntel
A33: 2014-09-23T01:28:42 | B33: Rodrigo | C33: DESKTOP-FJUD3LJ | D33: Intel64 Family 6 Model 69 Stepping 1, GenuineIntel
A34: 2014-09-22T18:22:04 | B34: Rodrigo | C34: DESKTOP-FJUD3LJ | D34: Intel64 Family 6 Model 69 Stepping 1, GenuineIntel
A35: 2014-09-19T03:18:38 | B35: Rodrigo | C35: DESKTOP-FJUD3LJ | D35: Intel64 Family 6 Model 69 Stepping 1, GenuineIntel
A36: 2014-09-19T03:15:05 | B36: Rodrigo | C36: DESKTOP-FJUD3LJ | D36: Intel64 Family 6 Model 69 Stepping 1, GenuineIntel
A37: 2014-09-19T02:47:23 | B37: Rodrigo | C37: DESKTOP-FJUD3LJ | D37: Intel64 Family 6 Model 69 Stepping 1, GenuineIntel
A38: 2014-09-18T21:27:20 | B38: Rodrigo | C38: DESKTOP-FJUD3LJ | D38: Intel64 Family 6 Model 69 Stepping 1, GenuineIntel
A39: 2014-09-12T00:46:31 | B39: Rodrigo | C39: DESKTOP-FJUD3LJ | D39: Intel64 Family 6 Model 69 Stepping 1, GenuineIntel
A40: 2014-09-10T22:23:24 | B40: Rodrigo | C40: DESKTOP-FJUD3LJ | D40: Intel64 Family 6 Model 69 Stepping 1, GenuineIntel
A41: 2014-09-10T19:24:12 | B41: Rodrigo | C41: DESKTOP-FJUD3LJ | D41: Intel64 Family 6 Model 69 Stepping 1, GenuineIntel
A42: 2014-09-10T19:01:26 | B42: Rodrigo | C42: DESKTOP-FJUD3LJ | D42: Intel64 Family 6 Model 69 Stepping 1, GenuineIntel
A43: 2014-09-10T18:31:58 | B43: Rodrigo | C43: DESKTOP-FJUD3LJ | D43: Intel64 Family 6 Model 69 Stepping 1, GenuineIntel
A44: 2014-09-10T18:26:23 | B44: Rodrigo | C44: DESKTOP-FJUD3LJ | D44: Intel64 Family 6 Model 69 Stepping 1, GenuineIntel
A45: 2014-09-10T17:31:46 | B45: Rodrigo | C45: DESKTOP-FJUD3LJ | D45: Intel64 Family 6 Model 69 Stepping 1, GenuineIntel
A46: 2014-09-10T17:01:35 | B46: Rodrigo | C46: DESKTOP-FJUD3LJ | D46: Intel64 Family 6 Model 69 Stepping 1, GenuineIntel
A47: 2014-09-07T14:55:28 | B47: Rodrigo | C47: DESKTOP-FJUD3LJ | D47: Intel64 Family 6 Model 69 Stepping 1, GenuineIntel
A48: 2014-09-06T01:23:40 | B48: Rodrigo | C48: DESKTOP-FJUD3LJ | D48: Intel64 Family 6 Model 69 Stepping 1, GenuineIntel
A49: 2014-09-05T23:33:53 | B49: Rodrigo | C49: DESKTOP-FJUD3LJ | D49: Intel64 Family 6 Model 69 Stepping 1, GenuineIntel
A50: 2014-09-05T18:34:32 | B50: Rodrigo | C50: DESKTOP-FJUD3LJ | D50: Intel64 Family 6 Model 69 Stepping 1, GenuineIntel
A51: 2014-09-05T18:33:02 | B51: Rodrigo | C51: DESKTOP-FJUD3LJ | D51: Intel64 Family 6 Model 69 Stepping 1, GenuineIntel
A52: 2014-09-05T18:26:59 | B52: Rodrigo | C52: DESKTOP-FJUD3LJ | D52: Intel64 Family 6 Model 69 Stepping 1, GenuineIntel
A53: 2014-09-05T18:18:55 | B53: Rodrigo | C53: DESKTOP-FJUD3LJ | D53: Intel64 Family 6 Model 69 Stepping 1, GenuineIntel
A54: 2014-09-05T18:17:56 | B54: Rodrigo | C54: DESKTOP-FJUD3LJ | D54: Intel64 Family 6 Model 69 Stepping 1, GenuineIntel
A55: 2014-09-05T18:17:03 | B55: Rodrigo | C55: DESKTOP-FJUD3LJ | D55: Intel64 Family 6 Model 69 Stepping 1, GenuineIntel
A56: 2014-09-05T18:16:32 | B56: Rodrigo | C56: DESKTOP-FJUD3LJ | D56: Intel64 Family 6 Model 69 Stepping 1, GenuineIntel
A57: 2014-09-05T14:36:32 | B57: Rodrigo | C57: DESKTOP-FJUD3LJ | D57: Intel64 Family 6 Model 69 Stepping 1, GenuineIntel
A58: 2014-09-05T14:35:31 | B58: Rodrigo | C58: DESKTOP-FJUD3LJ | D58: Intel64 Family 6 Model 69 Stepping 1, GenuineIntel
A59: 2014-09-05T14:31:20 | B59: Rodrigo | C59: DESKTOP-FJUD3LJ | D59: Intel64 Family 6 Model 69 Stepping 1, GenuineIntel
A60: 2014-09-04T15:09:06 | B60: Rodrigo | C60: DESKTOP-FJUD3LJ | D60: Intel64 Family 6 Model 69 Stepping 1, GenuineIntel
A61: 2014-09-04T15:02:29 | B61: Rodrigo | C61: DESKTOP-FJUD3LJ | D61: Intel64 Family 6 Model 69 Stepping 1, GenuineIntel
A62: 2014-09-04T14:51:17 | B62: Rodrigo | C62: DESKTOP-FJUD3LJ | D62: Intel64 Family 6 Model 69 Stepping 1, GenuineIntel
A63: 2014-09-04T14:45:29 | B63: Rodrigo | C63: DESKTOP-FJUD3LJ | D63: Intel64 Family 6 Model 69 Stepping 1, GenuineIntel
A64: 2014-09-04T14:44:51 | B64: Rodrigo | C64: DESKTOP-FJUD3LJ | D64: Intel64 Family 6 Model 69 Stepping 1, GenuineIntel
A65: 2014-09-04T14:44:43 | B65: Rodrigo | C65: DESKTOP-FJUD3LJ | D65: Intel64 Family 6 Model 69 Stepping 1, GenuineIntel
A66: 2014-09-04T14:41:30 | B66: Rodrigo | C66: DESKTOP-FJUD3LJ | D66: Intel64 Family 6 Model 69 Stepping 1, GenuineIntel

Sheet Relatório (hidden)
I5: ='Função Excel'!$C$9 -> Versão 2.1 - DEMO
B6: Relatório de Controle para Motoristas
B8: ="Relatório emitido em: "&RIGHT("0"&DAY($B$39),2)&"/"&RIGHT("0"&MONTH($B$39),2)&"/"&RIGHT("0"&YEAR($B$39),4) -> Relatório emitido em: 10/02/2019
B9: Período de análise | C9: Mês Até Agora | D9: Último Mês | E9: Último 3 Meses | F9: Últimos 6 Meses | G9: Últimos 12 Meses | H9: Acumulado Ano | I9: Todo Período
B10: ="- "&Configurações!E13 -> - Uber | C10: =SUMIFS('Banco de Dados'!$O:$O,'Banco de Dados'!$K:$K,"Ganhos do Dia "&$B10,'Banco de Dados'!$M:$M,">="&Relatório!C$39,'Banco de Dados'!$N:$N,"<="&DATE(YEAR(Relatório!C$39),MONTH(Relatório!C$39)+1,1)-1)+SUMIFS('Banco de Dados'!$O:$O,'Banco de Dados'!$K:$K,"Bônus/Incentivo "&$B10,'Banco de Dados'!$M:$M,">="&Relatório!C$39,'Banco de Dados'!$N:$N,"<="&DATE(YEAR(Relatório!C$39),MONTH(Relatório!C$39)+1,1)-1)+SUMIFS('Banco de Dados'!$R:$R,'Banco de Dados'!$K:$K,"Ganhos do Dia "&$B10,'Banco de Dados'!$P:$P,">="&Relatório!C$39,'Banco de Dados'!$Q:$Q,"<="&DATE(YEAR(Relatório!C$39),MONTH(Relatório!C$39)+1,1)-1)+SUMIFS('Banco de Dados'!$R:$R,'Banco de Dados'!$K:$K,"Bônus/Incentivo "&$B10,'Banco de Dados'!$P:$P,">="&Relatório!C$39,'Banco de Dados'!$Q:$Q,"<="&DATE(YEAR(Relatório!C$39),MONTH(Relatório!C$39)+1,1)-1) -> 0 | D10: =SUMIFS('Banco de Dados'!$O:$O,'Banco de Dados'!$K:$K,"Ganhos do Dia "&$B10,'Banco de Dados'!$M:$M,">="&Relatório!D$39,'Banco de Dados'!$N:$N,"<="&DATE(YEAR(Relatório!D$39),MONTH(Relatório!D$39)+1,1)-1)+SUMIFS('Banco de Dados'!$O:$O,'Banco de Dados'!$K:$K,"Bônus/Incentivo "&$B10,'Banco de Dados'!$M:$M,">="&Relatório!D$39,'Banco de Dados'!$N:$N,"<="&DATE(YEAR(Relatório!D$39),MONTH(Relatório!D$39)+1,1)-1)+SUMIFS('Banco de Dados'!$R:$R,'Banco de Dados'!$K:$K,"Ganhos do Dia "&$B10,'Banco de Dados'!$P:$P,">="&Relatório!D$39,'Banco de Dados'!$Q:$Q,"<="&DATE(YEAR(Relatório!D$39),MONTH(Relatório!D$39)+1,1)-1)+SUMIFS('Banco de Dados'!$R:$R,'Banco de Dados'!$K:$K,"Bônus/Incentivo "&$B10,'Banco de Dados'!$P:$P,">="&Relatório!D$39,'Banco de Dados'!$Q:$Q,"<="&DATE(YEAR(Relatório!D$39),MONTH(Relatório!D$39)+1,1)-1) -> 0 | E10: =SUMIFS('Banco de Dados'!$O:$O,'Banco de Dados'!$K:$K,"Ganhos do Dia "&$B10,'Banco de Dados'!$M:$M,">="&Relatório!E$39,'Banco de Dados'!$N:$N,"<="&DATE(YEAR(Relatório!$D$39),MONTH(Relatório!$D$39)+1,1)-1)+SUMIFS('Banco de Dados'!$O:$O,'Banco de Dados'!$K:$K,"Bônus/Incentivo "&$B10,'Banco de Dados'!$A:$A,">="&Relatório!E$39,'Banco de Dados'!$A:$A,"<="&DATE(YEAR(Relatório!$D$39),MONTH(Relatório!$D$39)+1,1)-1)+SUMIFS('Banco de Dados'!$R:$R,'Banco de Dados'!$K:$K,"Ganhos do Dia "&$B10,'Banco de Dados'!$P:$P,">="&Relatório!E$39,'Banco de Dados'!$Q:$Q,"<="&DATE(YEAR(Relatório!$D$39),MONTH(Relatório!$D$39)+1,1)-1)+SUMIFS('Banco de Dados'!$R:$R,'Banco de Dados'!$K:$K,"Bônus/Incentivo "&$B10,'Banco de Dados'!$A:$A,">="&Relatório!E$39,'Banco de Dados'!$A:$A,"<="&DATE(YEAR(Relatório!$D$39),MONTH(Relatório!$D$39)+1,1)-1) -> 0 | F10: =SUMIFS('Banco de Dados'!$O:$O,'Banco de Dados'!$K:$K,"Ganhos do Dia "&$B10,'Banco de Dados'!$M:$M,">="&Relatório!F$39,'Banco de Dados'!$N:$N,"<="&DATE(YEAR(Relatório!$D$39),MONTH(Relatório!$D$39)+1,1)-1)+SUMIFS('Banco de Dados'!$O:$O,'Banco de Dados'!$K:$K,"Bônus/Incentivo "&$B10,'Banco de Dados'!$A:$A,">="&Relatório!F$39,'Banco de Dados'!$A:$A,"<="&DATE(YEAR(Relatório!$D$39),MONTH(Relatório!$D$39)+1,1)-1)+SUMIFS('Banco de Dados'!$R:$R,'Banco de Dados'!$K:$K,"Ganhos do Dia "&$B10,'Banco de Dados'!$P:$P,">="&Relatório!F$39,'Banco de Dados'!$Q:$Q,"<="&DATE(YEAR(Relatório!$D$39),MONTH(Relatório!$D$39)+1,1)-1)+SUMIFS('Banco de Dados'!$R:$R,'Banco de Dados'!$K:$K,"Bônus/Incentivo "&$B10,'Banco de Dados'!$A:$A,">="&Relatório!F$39,'Banco de Dados'!$A:$A,"<="&DATE(YEAR(Relatório!$D$39),MONTH(Relatório!$D$39)+1,1)-1) -> 0 | G10: =SUMIFS('Banco de Dados'!$O:$O,'Banco de Dados'!$K:$K,"Ganhos do Dia "&$B10,'Banco de Dados'!$M:$M,">="&Relatório!G$39,'Banco de Dados'!$N:$N,"<="&DATE(YEAR(Relatório!$D$39),MONTH(Relatório!$D$39)+1,1)-1)+SUMIFS('Banco de Dados'!$O:$O,'Banco de Dados'!$K:$K,"Bônus/Incentivo "&$B10,'Banco de Dados'!$A:$A,">="&Relatório!G$39,'Banco de Dados'!$A:$A,"<="&DATE(YEAR(Relatório!$D$39),MONTH(Relatório!$D$39)+1,1)-1)+SUMIFS('Banco de Dados'!$R:$R,'Banco de Dados'!$K:$K,"Ganhos do Dia "&$B10,'Banco de Dados'!$P:$P,">="&Relatório!G$39,'Banco de Dados'!$Q:$Q,"<="&DATE(YEAR(Relatório!$D$39),MONTH(Relatório!$D$39)+1,1)-1)+SUMIFS('Banco de Dados'!$R:$R,'Banco de Dados'!$K:$K,"Bônus/Incentivo "&$B10,'Banco de Dados'!$A:$A,">="&Relatório!G$39,'Banco de Dados'!$A:$A,"<="&DATE(YEAR(Relatório!$D$39),MONTH(Relatório!$D$39)+1,1)-1) -> 0 | H10: =SUMIFS('Banco de Dados'!$O:$O,'Banco de Dados'!$K:$K,"Ganhos do Dia "&$B10,'Banco de Dados'!$M:$M,">="&Relatório!H$39,'Banco de Dados'!$N:$N,"<="&DATE(YEAR(Relatório!$B$40),MONTH(Relatório!$B$40)+1,1)-1)+SUMIFS('Banco de Dados'!$O:$O,'Banco de Dados'!$K:$K,"Bônus/Incentivo "&$B10,'Banco de Dados'!$A:$A,">="&Relatório!H$39,'Banco de Dados'!$A:$A,"<="&DATE(YEAR(Relatório!$B$40),MONTH(Relatório!$B$40)+1,1)-1)+SUMIFS('Banco de Dados'!$R:$R,'Banco de Dados'!$K:$K,"Ganhos do Dia "&$B10,'Banco de Dados'!$P:$P,">="&Relatório!H$39,'Banco de Dados'!$Q:$Q,"<="&DATE(YEAR(Relatório!$B$40),MONTH(Relatório!$B$40)+1,1)-1)+SUMIFS('Banco de Dados'!$R:$R,'Banco de Dados'!$K:$K,"Bônus/Incentivo "&$B10,'Banco de Dados'!$A:$A,">="&Relatório!H$39,'Banco de Dados'!$A:$A,"<="&DATE(YEAR(Relatório!$B$40),MONTH(Relatório!$B$40)+1,1)-1) -> 0 | I10: =SUMIFS('Banco de Dados'!J:J,'Banco de Dados'!K:K,"Ganhos do Dia "&$B10)+SUMIFS('Banco de Dados'!J:J,'Banco de Dados'!K:K,"Bônus/Incentivo "&$B10) -> 0
B11: ="- "&Configurações!E14 -> - App 2 | C11: =SUMIFS('Banco de Dados'!$O:$O,'Banco de Dados'!$K:$K,"Ganhos do Dia "&$B11,'Banco de Dados'!$M:$M,">="&Relatório!C$39,'Banco de Dados'!$N:$N,"<="&DATE(YEAR(Relatório!C$39),MONTH(Relatório!C$39)+1,1)-1)+SUMIFS('Banco de Dados'!$O:$O,'Banco de Dados'!$K:$K,"Bônus/Incentivo "&$B11,'Banco de Dados'!$M:$M,">="&Relatório!C$39,'Banco de Dados'!$N:$N,"<="&DATE(YEAR(Relatório!C$39),MONTH(Relatório!C$39)+1,1)-1)+SUMIFS('Banco de Dados'!$R:$R,'Banco de Dados'!$K:$K,"Ganhos do Dia "&$B11,'Banco de Dados'!$P:$P,">="&Relatório!C$39,'Banco de Dados'!$Q:$Q,"<="&DATE(YEAR(Relatório!C$39),MONTH(Relatório!C$39)+1,1)-1)+SUMIFS('Banco de Dados'!$R:$R,'Banco de Dados'!$K:$K,"Bônus/Incentivo "&$B11,'Banco de Dados'!$P:$P,">="&Relatório!C$39,'Banco de Dados'!$Q:$Q,"<="&DATE(YEAR(Relatório!C$39),MONTH(Relatório!C$39)+1,1)-1) -> 0 | D11: =SUMIFS('Banco de Dados'!$O:$O,'Banco de Dados'!$K:$K,"Ganhos do Dia "&$B11,'Banco de Dados'!$M:$M,">="&Relatório!D$39,'Banco de Dados'!$N:$N,"<="&DATE(YEAR(Relatório!D$39),MONTH(Relatório!D$39)+1,1)-1)+SUMIFS('Banco de Dados'!$O:$O,'Banco de Dados'!$K:$K,"Bônus/Incentivo "&$B11,'Banco de Dados'!$M:$M,">="&Relatório!D$39,'Banco de Dados'!$N:$N,"<="&DATE(YEAR(Relatório!D$39),MONTH(Relatório!D$39)+1,1)-1)+SUMIFS('Banco de Dados'!$R:$R,'Banco de Dados'!$K:$K,"Ganhos do Dia "&$B11,'Banco de Dados'!$P:$P,">="&Relatório!D$39,'Banco de Dados'!$Q:$Q,"<="&DATE(YEAR(Relatório!D$39),MONTH(Relatório!D$39)+1,1)-1)+SUMIFS('Banco de Dados'!$R:$R,'Banco de Dados'!$K:$K,"Bônus/Incentivo "&$B11,'Banco de Dados'!$P:$P,">="&Relatório!D$39,'Banco de Dados'!$Q:$Q,"<="&DATE(YEAR(Relatório!D$39),MONTH(Relatório!D$39)+1,1)-1) -> 0 | E11: =SUMIFS('Banco de Dados'!$O:$O,'Banco de Dados'!$K:$K,"Ganhos do Dia "&$B11,'Banco de Dados'!$M:$M,">="&Relatório!E$39,'Banco de Dados'!$N:$N,"<="&DATE(YEAR(Relatório!$D$39),MONTH(Relatório!$D$39)+1,1)-1)+SUMIFS('Banco de Dados'!$O:$O,'Banco de Dados'!$K:$K,"Bônus/Incentivo "&$B11,'Banco de Dados'!$A:$A,">="&Relatório!E$39,'Banco de Dados'!$A:$A,"<="&DATE(YEAR(Relatório!$D$39),MONTH(Relatório!$D$39)+1,1)-1)+SUMIFS('Banco de Dados'!$R:$R,'Banco de Dados'!$K:$K,"Ganhos do Dia "&$B11,'Banco de Dados'!$P:$P,">="&Relatório!E$39,'Banco de Dados'!$Q:$Q,"<="&DATE(YEAR(Relatório!$D$39),MONTH(Relatório!$D$39)+1,1)-1)+SUMIFS('Banco de Dados'!$R:$R,'Banco de Dados'!$K:$K,"Bônus/Incentivo "&$B11,'Banco de Dados'!$A:$A,">="&Relatório!E$39,'Banco de Dados'!$A:$A,"<="&DATE(YEAR(Relatório!$D$39),MONTH(Relatório!$D$39)+1,1)-1) -> 0 | F11: =SUMIFS('Banco de Dados'!$O:$O,'Banco de Dados'!$K:$K,"Ganhos do Dia "&$B11,'Banco de Dados'!$M:$M,">="&Relatório!F$39,'Banco de Dados'!$N:$N,"<="&DATE(YEAR(Relatório!$D$39),MONTH(Relatório!$D$39)+1,1)-1)+SUMIFS('Banco de Dados'!$O:$O,'Banco de Dados'!$K:$K,"Bônus/Incentivo "&$B11,'Banco de Dados'!$A:$A,">="&Relatório!F$39,'Banco de Dados'!$A:$A,"<="&DATE(YEAR(Relatório!$D$39),MONTH(Relatório!$D$39)+1,1)-1)+SUMIFS('Banco de Dados'!$R:$R,'Banco de Dados'!$K:$K,"Ganhos do Dia "&$B11,'Banco de Dados'!$P:$P,">="&Relatório!F$39,'Banco de Dados'!$Q:$Q,"<="&DATE(YEAR(Relatório!$D$39),MONTH(Relatório!$D$39)+1,1)-1)+SUMIFS('Banco de Dados'!$R:$R,'Banco de Dados'!$K:$K,"Bônus/Incentivo "&$B11,'Banco de Dados'!$A:$A,">="&Relatório!F$39,'Banco de Dados'!$A:$A,"<="&DATE(YEAR(Relatório!$D$39),MONTH(Relatório!$D$39)+1,1)-1) -> 0 | G11: =SUMIFS('Banco de Dados'!$O:$O,'Banco de Dados'!$K:$K,"Ganhos do Dia "&$B11,'Banco de Dados'!$M:$M,">="&Relatório!G$39,'Banco de Dados'!$N:$N,"<="&DATE(YEAR(Relatório!$D$39),MONTH(Relatório!$D$39)+1,1)-1)+SUMIFS('Banco de Dados'!$O:$O,'Banco de Dados'!$K:$K,"Bônus/Incentivo "&$B11,'Banco de Dados'!$A:$A,">="&Relatório!G$39,'Banco de Dados'!$A:$A,"<="&DATE(YEAR(Relatório!$D$39),MONTH(Relatório!$D$39)+1,1)-1)+SUMIFS('Banco de Dados'!$R:$R,'Banco de Dados'!$K:$K,"Ganhos do Dia "&$B11,'Banco de Dados'!$P:$P,">="&Relatório!G$39,'Banco de Dados'!$Q:$Q,"<="&DATE(YEAR(Relatório!$D$39),MONTH(Relatório!$D$39)+1,1)-1)+SUMIFS('Banco de Dados'!$R:$R,'Banco de Dados'!$K:$K,"Bônus/Incentivo "&$B11,'Banco de Dados'!$A:$A,">="&Relatório!G$39,'Banco de Dados'!$A:$A,"<="&DATE(YEAR(Relatório!$D$39),MONTH(Relatório!$D$39)+1,1)-1) -> 0 | H11: =SUMIFS('Banco de Dados'!$O:$O,'Banco de Dados'!$K:$K,"Ganhos do Dia "&$B11,'Banco de Dados'!$M:$M,">="&Relatório!H$39,'Banco de Dados'!$N:$N,"<="&DATE(YEAR(Relatório!$B$40),MONTH(Relatório!$B$40)+1,1)-1)+SUMIFS('Banco de Dados'!$O:$O,'Banco de Dados'!$K:$K,"Bônus/Incentivo "&$B11,'Banco de Dados'!$A:$A,">="&Relatório!H$39,'Banco de Dados'!$A:$A,"<="&DATE(YEAR(Relatório!$B$40),MONTH(Relatório!$B$40)+1,1)-1)+SUMIFS('Banco de Dados'!$R:$R,'Banco de Dados'!$K:$K,"Ganhos do Dia "&$B11,'Banco de Dados'!$P:$P,">="&Relatório!H$39,'Banco de Dados'!$Q:$Q,"<="&DATE(YEAR(Relatório!$B$40),MONTH(Relatório!$B$40)+1,1)-1)+SUMIFS('Banco de Dados'!$R:$R,'Banco de Dados'!$K:$K,"Bônus/Incentivo "&$B11,'Banco de Dados'!$A:$A,">="&Relatório!H$39,'Banco de Dados'!$A:$A,"<="&DATE(YEAR(Relatório!$B$40),MONTH(Relatório!$B$40)+1,1)-1) -> 0 | I11: =SUMIFS('Banco de Dados'!J:J,'Banco de Dados'!K:K,"Ganhos do Dia "&$B11)+SUMIFS('Banco de Dados'!J:J,'Banco de Dados'!K:K,"Bônus/Incentivo "&$B11) -> 0
B12: ="- "&Configurações!E15 -> - App 3 | C12: =SUMIFS('Banco de Dados'!$O:$O,'Banco de Dados'!$K:$K,"Ganhos do Dia "&$B12,'Banco de Dados'!$M:$M,">="&Relatório!C$39,'Banco de Dados'!$N:$N,"<="&DATE(YEAR(Relatório!C$39),MONTH(Relatório!C$39)+1,1)-1)+SUMIFS('Banco de Dados'!$O:$O,'Banco de Dados'!$K:$K,"Bônus/Incentivo "&$B12,'Banco de Dados'!$M:$M,">="&Relatório!C$39,'Banco de Dados'!$N:$N,"<="&DATE(YEAR(Relatório!C$39),MONTH(Relatório!C$39)+1,1)-1)+SUMIFS('Banco de Dados'!$R:$R,'Banco de Dados'!$K:$K,"Ganhos do Dia "&$B12,'Banco de Dados'!$P:$P,">="&Relatório!C$39,'Banco de Dados'!$Q:$Q,"<="&DATE(YEAR(Relatório!C$39),MONTH(Relatório!C$39)+1,1)-1)+SUMIFS('Banco de Dados'!$R:$R,'Banco de Dados'!$K:$K,"Bônus/Incentivo "&$B12,'Banco de Dados'!$P:$P,">="&Relatório!C$39,'Banco de Dados'!$Q:$Q,"<="&DATE(YEAR(Relatório!C$39),MONTH(Relatório!C$39)+1,1)-1) -> 0 | D12: =SUMIFS('Banco de Dados'!$O:$O,'Banco de Dados'!$K:$K,"Ganhos do Dia "&$B12,'Banco de Dados'!$M:$M,">="&Relatório!D$39,'Banco de Dados'!$N:$N,"<="&DATE(YEAR(Relatório!D$39),MONTH(Relatório!D$39)+1,1)-1)+SUMIFS('Banco de Dados'!$O:$O,'Banco de Dados'!$K:$K,"Bônus/Incentivo "&$B12,'Banco de Dados'!$M:$M,">="&Relatório!D$39,'Banco de Dados'!$N:$N,"<="&DATE(YEAR(Relatório!D$39),MONTH(Relatório!D$39)+1,1)-1)+SUMIFS('Banco de Dados'!$R:$R,'Banco de Dados'!$K:$K,"Ganhos do Dia "&$B12,'Banco de Dados'!$P:$P,">="&Relatório!D$39,'Banco de Dados'!$Q:$Q,"<="&DATE(YEAR(Relatório!D$39),MONTH(Relatório!D$39)+1,1)-1)+SUMIFS('Banco de Dados'!$R:$R,'Banco de Dados'!$K:$K,"Bônus/Incentivo "&$B12,'Banco de Dados'!$P:$P,">="&Relatório!D$39,'Banco de Dados'!$Q:$Q,"<="&DATE(YEAR(Relatório!D$39),MONTH(Relatório!D$39)+1,1)-1) -> 0 | E12: =SUMIFS('Banco de Dados'!$O:$O,'Banco de Dados'!$K:$K,"Ganhos do Dia "&$B12,'Banco de Dados'!$M:$M,">="&Relatório!E$39,'Banco de Dados'!$N:$N,"<="&DATE(YEAR(Relatório!$D$39),MONTH(Relatório!$D$39)+1,1)-1)+SUMIFS('Banco de Dados'!$O:$O,'Banco de Dados'!$K:$K,"Bônus/Incentivo "&$B12,'Banco de Dados'!$A:$A,">="&Relatório!E$39,'Banco de Dados'!$A:$A,"<="&DATE(YEAR(Relatório!$D$39),MONTH(Relatório!$D$39)+1,1)-1)+SUMIFS('Banco de Dados'!$R:$R,'Banco de Dados'!$K:$K,"Ganhos do Dia "&$B12,'Banco de Dados'!$P:$P,">="&Relatório!E$39,'Banco de Dados'!$Q:$Q,"<="&DATE(YEAR(Relatório!$D$39),MONTH(Relatório!$D$39)+1,1)-1)+SUMIFS('Banco de Dados'!$R:$R,'Banco de Dados'!$K:$K,"Bônus/Incentivo "&$B12,'Banco de Dados'!$A:$A,">="&Relatório!E$39,'Banco de Dados'!$A:$A,"<="&DATE(YEAR(Relatório!$D$39),MONTH(Relatório!$D$39)+1,1)-1) -> 0 | F12: =SUMIFS('Banco de Dados'!$O:$O,'Banco de Dados'!$K:$K,"Ganhos do Dia "&$B12,'Banco de Dados'!$M:$M,">="&Relatório!F$39,'Banco de Dados'!$N:$N,"<="&DATE(YEAR(Relatório!$D$39),MONTH(Relatório!$D$39)+1,1)-1)+SUMIFS('Banco de Dados'!$O:$O,'Banco de Dados'!$K:$K,"Bônus/Incentivo "&$B12,'Banco de Dados'!$A:$A,">="&Relatório!F$39,'Banco de Dados'!$A:$A,"<="&DATE(YEAR(Relatório!$D$39),MONTH(Relatório!$D$39)+1,1)-1)+SUMIFS('Banco de Dados'!$R:$R,'Banco de Dados'!$K:$K,"Ganhos do Dia "&$B12,'Banco de Dados'!$P:$P,">="&Relatório!F$39,'Banco de Dados'!$Q:$Q,"<="&DATE(YEAR(Relatório!$D$39),MONTH(Relatório!$D$39)+1,1)-1)+SUMIFS('Banco de Dados'!$R:$R,'Banco de Dados'!$K:$K,"Bônus/Incentivo "&$B12,'Banco de Dados'!$A:$A,">="&Relatório!F$39,'Banco de Dados'!$A:$A,"<="&DATE(YEAR(Relatório!$D$39),MONTH(Relatório!$D$39)+1,1)-1) -> 0 | G12: =SUMIFS('Banco de Dados'!$O:$O,'Banco de Dados'!$K:$K,"Ganhos do Dia "&$B12,'Banco de Dados'!$M:$M,">="&Relatório!G$39,'Banco de Dados'!$N:$N,"<="&DATE(YEAR(Relatório!$D$39),MONTH(Relatório!$D$39)+1,1)-1)+SUMIFS('Banco de Dados'!$O:$O,'Banco de Dados'!$K:$K,"Bônus/Incentivo "&$B12,'Banco de Dados'!$A:$A,">="&Relatório!G$39,'Banco de Dados'!$A:$A,"<="&DATE(YEAR(Relatório!$D$39),MONTH(Relatório!$D$39)+1,1)-1)+SUMIFS('Banco de Dados'!$R:$R,'Banco de Dados'!$K:$K,"Ganhos do Dia "&$B12,'Banco de Dados'!$P:$P,">="&Relatório!G$39,'Banco de Dados'!$Q:$Q,"<="&DATE(YEAR(Relatório!$D$39),MONTH(Relatório!$D$39)+1,1)-1)+SUMIFS('Banco de Dados'!$R:$R,'Banco de Dados'!$K:$K,"Bônus/Incentivo "&$B12,'Banco de Dados'!$A:$A,">="&Relatório!G$39,'Banco de Dados'!$A:$A,"<="&DATE(YEAR(Relatório!$D$39),MONTH(Relatório!$D$39)+1,1)-1) -> 0 | H12: =SUMIFS('Banco de Dados'!$O:$O,'Banco de Dados'!$K:$K,"Ganhos do Dia "&$B12,'Banco de Dados'!$M:$M,">="&Relatório!H$39,'Banco de Dados'!$N:$N,"<="&DATE(YEAR(Relatório!$B$40),MONTH(Relatório!$B$40)+1,1)-1)+SUMIFS('Banco de Dados'!$O:$O,'Banco de Dados'!$K:$K,"Bônus/Incentivo "&$B12,'Banco de Dados'!$A:$A,">="&Relatório!H$39,'Banco de Dados'!$A:$A,"<="&DATE(YEAR(Relatório!$B$40),MONTH(Relatório!$B$40)+1,1)-1)+SUMIFS('Banco de Dados'!$R:$R,'Banco de Dados'!$K:$K,"Ganhos do Dia "&$B12,'Banco de Dados'!$P:$P,">="&Relatório!H$39,'Banco de Dados'!$Q:$Q,"<="&DATE(YEAR(Relatório!$B$40),MONTH(Relatório!$B$40)+1,1)-1)+SUMIFS('Banco de Dados'!$R:$R,'Banco de Dados'!$K:$K,"Bônus/Incentivo "&$B12,'Banco de Dados'!$A:$A,">="&Relatório!H$39,'Banco de Dados'!$A:$A,"<="&DATE(YEAR(Relatório!$B$40),MONTH(Relatório!$B$40)+1,1)-1) -> 0 | I12: =SUMIFS('Banco de Dados'!J:J,'Banco de Dados'!K:K,"Ganhos do Dia "&$B12)+SUMIFS('Banco de Dados'!J:J,'Banco de Dados'!K:K,"Bônus/Incentivo "&$B12) -> 0
B13: Outros Incentivos | C13: =SUMIFS('Banco de Dados'!$O:$O,'Banco de Dados'!$B:$B,$B13,'Banco de Dados'!$M:$M,">="&Relatório!C$39,'Banco de Dados'!$N:$N,"<="&DATE(YEAR(Relatório!C$39),MONTH(Relatório!C$39)+1,1)-1)+SUMIFS('Banco de Dados'!$R:$R,'Banco de Dados'!$B:$B,$B13,'Banco de Dados'!$P:$P,">="&Relatório!C$39,'Banco de Dados'!$Q:$Q,"<="&DATE(YEAR(Relatório!C$39),MONTH(Relatório!C$39)+1,1)-1) -> 0 | D13: =SUMIFS('Banco de Dados'!$O:$O,'Banco de Dados'!$B:$B,$B13,'Banco de Dados'!$M:$M,">="&Relatório!D$39,'Banco de Dados'!$N:$N,"<="&DATE(YEAR(Relatório!D$39),MONTH(Relatório!D$39)+1,1)-1)+SUMIFS('Banco de Dados'!$R:$R,'Banco de Dados'!$B:$B,$B13,'Banco de Dados'!$P:$P,">="&Relatório!D$39,'Banco de Dados'!$Q:$Q,"<="&DATE(YEAR(Relatório!D$39),MONTH(Relatório!D$39)+1,1)-1) -> 0 | E13: =SUMIFS('Banco de Dados'!$O:$O,'Banco de Dados'!$B:$B,$B13,'Banco de Dados'!$M:$M,">="&Relatório!E$39,'Banco de Dados'!$N:$N,"<="&DATE(YEAR(Relatório!$D$39),MONTH(Relatório!$D$39)+1,1)-1)+SUMIFS('Banco de Dados'!$R:$R,'Banco de Dados'!$B:$B,$B13,'Banco de Dados'!$P:$P,">="&Relatório!E$39,'Banco de Dados'!$Q:$Q,"<="&DATE(YEAR(Relatório!$D$39),MONTH(Relatório!$D$39)+1,1)-1) -> 0 | F13: =SUMIFS('Banco de Dados'!$O:$O,'Banco de Dados'!$B:$B,$B13,'Banco de Dados'!$M:$M,">="&Relatório!F$39,'Banco de Dados'!$N:$N,"<="&DATE(YEAR(Relatório!$D$39),MONTH(Relatório!$D$39)+1,1)-1)+SUMIFS('Banco de Dados'!$R:$R,'Banco de Dados'!$B:$B,$B13,'Banco de Dados'!$P:$P,">="&Relatório!F$39,'Banco de Dados'!$Q:$Q,"<="&DATE(YEAR(Relatório!$D$39),MONTH(Relatório!$D$39)+1,1)-1) -> 0 | G13: =SUMIFS('Banco de Dados'!$O:$O,'Banco de Dados'!$B:$B,$B13,'Banco de Dados'!$M:$M,">="&Relatório!G$39,'Banco de Dados'!$N:$N,"<="&DATE(YEAR(Relatório!$D$39),MONTH(Relatório!$D$39)+1,1)-1)+SUMIFS('Banco de Dados'!$R:$R,'Banco de Dados'!$B:$B,$B13,'Banco de Dados'!$P:$P,">="&Relatório!G$39,'Banco de Dados'!$Q:$Q,"<="&DATE(YEAR(Relatório!$D$39),MONTH(Relatório!$D$39)+1,1)-1) -> 0 | H13: =SUMIFS('Banco de Dados'!$O:$O,'Banco de Dados'!$B:$B,$B13,'Banco de Dados'!$M:$M,">="&Relatório!H$39,'Banco de Dados'!$N:$N,"<="&DATE(YEAR(Relatório!$B$40),MONTH(Relatório!$B$40)+1,1)-1)+SUMIFS('Banco de Dados'!$R:$R,'Banco de Dados'!$B:$B,$B13,'Banco de Dados'!$P:$P,">="&Relatório!H$39,'Banco de Dados'!$Q:$Q,"<="&DATE(YEAR(Relatório!$B$40),MONTH(Relatório!$B$40)+1,1)-1) -> 0 | I13: =SUMIFS('Banco de Dados'!J:J,'Banco de Dados'!B:B,$B13) -> 0
B14: Total de Ganhos | C14: =SUM(C10:C13) -> 0 | D14: =SUM(D10:D13) -> 0 | E14: 0 | F14: 0 | G14: 0 | H14: 0 | I14: 0
B16: Total de Custos | C16: =SUMIFS('Banco de Dados'!$O:$O,'Banco de Dados'!$B:$B,$B16,'Banco de Dados'!$M:$M,">="&Relatório!C$39,'Banco de Dados'!$N:$N,"<="&DATE(YEAR(Relatório!C$39),MONTH(Relatório!C$39)+1,1)-1)+SUMIFS('Banco de Dados'!$R:$R,'Banco de Dados'!$B:$B,$B16,'Banco de Dados'!$P:$P,">="&Relatório!C$39,'Banco de Dados'!$Q:$Q,"<="&DATE(YEAR(Relatório!C$39),MONTH(Relatório!C$39)+1,1)-1) -> 0 | D16: =SUMIFS('Banco de Dados'!$O:$O,'Banco de Dados'!$B:$B,$B16,'Banco de Dados'!$M:$M,">="&Relatório!D$39,'Banco de Dados'!$N:$N,"<="&DATE(YEAR(Relatório!D$39),MONTH(Relatório!D$39)+1,1)-1)+SUMIFS('Banco de Dados'!$R:$R,'Banco de Dados'!$B:$B,$B16,'Banco de Dados'!$P:$P,">="&Relatório!D$39,'Banco de Dados'!$Q:$Q,"<="&DATE(YEAR(Relatório!D$39),MONTH(Relatório!D$39)+1,1)-1) -> 0 | E16: =SUMIFS('Banco de Dados'!$O:$O,'Banco de Dados'!$B:$B,$B16,'Banco de Dados'!$M:$M,">="&Relatório!E$39,'Banco de Dados'!$N:$N,"<="&DATE(YEAR(Relatório!$D$39),MONTH(Relatório!$D$39)+1,1)-1)+SUMIFS('Banco de Dados'!$R:$R,'Banco de Dados'!$B:$B,$B16,'Banco de Dados'!$P:$P,">="&Relatório!E$39,'Banco de Dados'!$Q:$Q,"<="&DATE(YEAR(Relatório!$D$39),MONTH(Relatório!$D$39)+1,1)-1) -> 0 | F16: =SUMIFS('Banco de Dados'!$O:$O,'Banco de Dados'!$B:$B,$B16,'Banco de Dados'!$M:$M,">="&Relatório!F$39,'Banco de Dados'!$N:$N,"<="&DATE(YEAR(Relatório!$D$39),MONTH(Relatório!$D$39)+1,1)-1)+SUMIFS('Banco de Dados'!$R:$R,'Banco de Dados'!$B:$B,$B16,'Banco de Dados'!$P:$P,">="&Relatório!F$39,'Banco de Dados'!$Q:$Q,"<="&DATE(YEAR(Relatório!$D$39),MONTH(Relatório!$D$39)+1,1)-1) -> 0 | G16: =SUMIFS('Banco de Dados'!$O:$O,'Banco de Dados'!$B:$B,$B16,'Banco de Dados'!$M:$M,">="&Relatório!G$39,'Banco de Dados'!$N:$N,"<="&DATE(YEAR(Relatório!$D$39),MONTH(Relatório!$D$39)+1,1)-1)+SUMIFS('Banco de Dados'!$R:$R,'Banco de Dados'!$B:$B,$B16,'Banco de Dados'!$P:$P,">="&Relatório!G$39,'Banco de Dados'!$Q:$Q,"<="&DATE(YEAR(Relatório!$D$39),MONTH(Relatório!$D$39)+1,1)-1) -> 0 | H16: =SUMIFS('Banco de Dados'!$O:$O,'Banco de Dados'!$B:$B,$B16,'Banco de Dados'!$M:$M,">="&Relatório!H$39,'Banco de Dados'!$N:$N,"<="&DATE(YEAR(Relatório!$B$40),MONTH(Relatório!$B$40)+1,1)-1)+SUMIFS('Banco de Dados'!$R:$R,'Banco de Dados'!$B:$B,$B16,'Banco de Dados'!$P:$P,">="&Relatório!H$39,'Banco de Dados'!$Q:$Q,"<="&DATE(YEAR(Relatório!$B$40),MONTH(Relatório!$B$40)+1,1)-1) -> 0 | I16: =SUMIFS('Banco de Dados'!J:J,'Banco de Dados'!B:B,$B16) -> 0
B17: Total de Despesas | C17: =SUMIFS('Banco de Dados'!$O:$O,'Banco de Dados'!$B:$B,$B17,'Banco de Dados'!$M:$M,">="&Relatório!C$39,'Banco de Dados'!$N:$N,"<="&DATE(YEAR(Relatório!C$39),MONTH(Relatório!C$39)+1,1)-1)+SUMIFS('Banco de Dados'!$R:$R,'Banco de Dados'!$B:$B,$B17,'Banco de Dados'!$P:$P,">="&Relatório!C$39,'Banco de Dados'!$Q:$Q,"<="&DATE(YEAR(Relatório!C$39),MONTH(Relatório!C$39)+1,1)-1) -> 0 | D17: =SUMIFS('Banco de Dados'!$O:$O,'Banco de Dados'!$B:$B,$B17,'Banco de Dados'!$M:$M,">="&Relatório!D$39,'Banco de Dados'!$N:$N,"<="&DATE(YEAR(Relatório!D$39),MONTH(Relatório!D$39)+1,1)-1)+SUMIFS('Banco de Dados'!$R:$R,'Banco de Dados'!$B:$B,$B17,'Banco de Dados'!$P:$P,">="&Relatório!D$39,'Banco de Dados'!$Q:$Q,"<="&DATE(YEAR(Relatório!D$39),MONTH(Relatório!D$39)+1,1)-1) -> 0 | E17: =SUMIFS('Banco de Dados'!$O:$O,'Banco de Dados'!$B:$B,$B17,'Banco de Dados'!$M:$M,">="&Relatório!E$39,'Banco de Dados'!$N:$N,"<="&DATE(YEAR(Relatório!$D$39),MONTH(Relatório!$D$39)+1,1)-1)+SUMIFS('Banco de Dados'!$R:$R,'Banco de Dados'!$B:$B,$B17,'Banco de Dados'!$P:$P,">="&Relatório!E$39,'Banco de Dados'!$Q:$Q,"<="&DATE(YEAR(Relatório!$D$39),MONTH(Relatório!$D$39)+1,1)-1) -> 0 | F17: =SUMIFS('Banco de Dados'!$O:$O,'Banco de Dados'!$B:$B,$B17,'Banco de Dados'!$M:$M,">="&Relatório!F$39,'Banco de Dados'!$N:$N,"<="&DATE(YEAR(Relatório!$D$39),MONTH(Relatório!$D$39)+1,1)-1)+SUMIFS('Banco de Dados'!$R:$R,'Banco de Dados'!$B:$B,$B17,'Banco de Dados'!$P:$P,">="&Relatório!F$39,'Banco de Dados'!$Q:$Q,"<="&DATE(YEAR(Relatório!$D$39),MONTH(Relatório!$D$39)+1,1)-1) -> 0 | G17: =SUMIFS('Banco de Dados'!$O:$O,'Banco de Dados'!$B:$B,$B17,'Banco de Dados'!$M:$M,">="&Relatório!G$39,'Banco de Dados'!$N:$N,"<="&DATE(YEAR(Relatório!$D$39),MONTH(Relatório!$D$39)+1,1)-1)+SUMIFS('Banco de Dados'!$R:$R,'Banco de Dados'!$B:$B,$B17,'Banco de Dados'!$P:$P,">="&Relatório!G$39,'Banco de Dados'!$Q:$Q,"<="&DATE(YEAR(Relatório!$D$39),MONTH(Relatório!$D$39)+1,1)-1) -> 0 | H17: =SUMIFS('Banco de Dados'!$O:$O,'Banco de Dados'!$B:$B,$B17,'Banco de Dados'!$M:$M,">="&Relatório!H$39,'Banco de Dados'!$N:$N,"<="&DATE(YEAR(Relatório!$B$40),MONTH(Relatório!$B$40)+1,1)-1)+SUMIFS('Banco de Dados'!$R:$R,'Banco de Dados'!$B:$B,$B17,'Banco de Dados'!$P:$P,">="&Relatório!H$39,'Banco de Dados'!$Q:$Q,"<="&DATE(YEAR(Relatório!$B$40),MONTH(Relatório!$B$40)+1,1)-1) -> 0 | I17: =SUMIFS('Banco de Dados'!J:J,'Banco de Dados'!B:B,$B17) -> 0
B18: Total de Gastos | C18: =SUM(C16:C17) -> 0 | D18: 0 | E18: 0 | F18: 0 | G18: 0 | H18: 0 | I18: 0
B20: Resultado Bruto | C20: =C14-C18 -> 0 | D20: 0 | E20: 0 | F20: 0 | G20: 0 | H20: 0 | I20: 0
B21: Custo com provisões | C21: =SUMIFS('Banco de Dados'!$O:$O,'Banco de Dados'!$B:$B,$B21,'Banco de Dados'!$M:$M,">="&Relatório!C$39,'Banco de Dados'!$N:$N,"<="&DATE(YEAR(Relatório!C$39),MONTH(Relatório!C$39)+1,1)-1)+SUMIFS('Banco de Dados'!$R:$R,'Banco de Dados'!$B:$B,$B21,'Banco de Dados'!$P:$P,">="&Relatório!C$39,'Banco de Dados'!$Q:$Q,"<="&DATE(YEAR(Relatório!C$39),MONTH(Relatório!C$39)+1,1)-1) -> 0 | D21: =SUMIFS('Banco de Dados'!$O:$O,'Banco de Dados'!$B:$B,$B21,'Banco de Dados'!$M:$M,">="&Relatório!D$39,'Banco de Dados'!$N:$N,"<="&DATE(YEAR(Relatório!D$39),MONTH(Relatório!D$39)+1,1)-1)+SUMIFS('Banco de Dados'!$R:$R,'Banco de Dados'!$B:$B,$B21,'Banco de Dados'!$P:$P,">="&Relatório!D$39,'Banco de Dados'!$Q:$Q,"<="&DATE(YEAR(Relatório!D$39),MONTH(Relatório!D$39)+1,1)-1) -> 0 | E21: =SUMIFS('Banco de Dados'!$O:$O,'Banco de Dados'!$B:$B,$B21,'Banco de Dados'!$M:$M,">="&Relatório!E$39,'Banco de Dados'!$N:$N,"<="&DATE(YEAR(Relatório!$D$39),MONTH(Relatório!$D$39)+1,1)-1)+SUMIFS('Banco de Dados'!$R:$R,'Banco de Dados'!$B:$B,$B21,'Banco de Dados'!$P:$P,">="&Relatório!E$39,'Banco de Dados'!$Q:$Q,"<="&DATE(YEAR(Relatório!$D$39),MONTH(Relatório!$D$39)+1,1)-1) -> 0 | F21: =SUMIFS('Banco de Dados'!$O:$O,'Banco de Dados'!$B:$B,$B21,'Banco de Dados'!$M:$M,">="&Relatório!F$39,'Banco de Dados'!$N:$N,"<="&DATE(YEAR(Relatório!$D$39),MONTH(Relatório!$D$39)+1,1)-1)+SUMIFS('Banco de Dados'!$R:$R,'Banco de Dados'!$B:$B,$B21,'Banco de Dados'!$P:$P,">="&Relatório!F$39,'Banco de Dados'!$Q:$Q,"<="&DATE(YEAR(Relatório!$D$39),MONTH(Relatório!$D$39)+1,1)-1) -> 0 | G21: =SUMIFS('Banco de Dados'!$O:$O,'Banco de Dados'!$B:$B,$B21,'Banco de Dados'!$M:$M,">="&Relatório!G$39,'Banco de Dados'!$N:$N,"<="&DATE(YEAR(Relatório!$D$39),MONTH(Relatório!$D$39)+1,1)-1)+SUMIFS('Banco de Dados'!$R:$R,'Banco de Dados'!$B:$B,$B21,'Banco de Dados'!$P:$P,">="&Relatório!G$39,'Banco de Dados'!$Q:$Q,"<="&DATE(YEAR(Relatório!$D$39),MONTH(Relatório!$D$39)+1,1)-1) -> 0 | H21: =SUMIFS('Banco de Dados'!$O:$O,'Banco de Dados'!$B:$B,$B21,'Banco de Dados'!$M:$M,">="&Relatório!H$39,'Banco de Dados'!$N:$N,"<="&DATE(YEAR(Relatório!$B$40),MONTH(Relatório!$B$40)+1,1)-1)+SUMIFS('Banco de Dados'!$R:$R,'Banco de Dados'!$B:$B,$B21,'Banco de Dados'!$P:$P,">="&Relatório!H$39,'Banco de Dados'!$Q:$Q,"<="&DATE(YEAR(Relatório!$B$40),MONTH(Relatório!$B$40)+1,1)-1) -> 0 | I21: =SUMIFS('Banco de Dados'!J:J,'Banco de Dados'!B:B,$B21) -> 0
B22: Resultado Líquido | C22: =C20-C21 -> 0 | D22: 0 | E22: 0 | F22: 0 | G22: 0 | H22: 0 | I22: 0
B23: Média diária comparativa
B25: Período de análise | C25: Mês Até Agora | D25: Último Mês | E25: Último 3 Meses | F25: Últimos 6 Meses | G25: Últimos 12 Meses | H25: Acumulado Ano | I25: Todo Período
B26: Resultado Bruto | C26: =C20/C$40 -> 0 | D26: 0 | E26: 0 | F26: 0 | G26: 0 | H26: 0
B27: Custo com provisões | C27: 0 | D27: 0 | E27: 0 | F27: 0 | G27: 0 | H27: 0
B28: Resultado Líquido | C28: 0 | D28: 0 | E28: 0 | F28: 0 | G28: 0 | H28: 0
B39: =TODAY() -> 2015-02-09 | C39: =DATE(YEAR($B$39),MONTH($B$39),1) -> 2015-01-31 | D39: =DATE(YEAR($B$39),MONTH($B$39)-1,1) -> 2014-12-31 | E39: =DATE(YEAR($B$39),MONTH($B$39)-3,1) -> 2014-10-31 | F39: =DATE(YEAR($B$39),MONTH($B$39)-6,1) -> 2014-07-31 | G39: =DATE(YEAR($B$39),MONTH($B$39)-12,1) -> 2014-01-31 | H39: =DATE(YEAR($B$39),1,1) -> 2014-12-31 | I39: ="Relatório "&RIGHT("0"&DAY($B$39),2)&"-"&RIGHT("0"&MONTH($B$39),2)&"-"&RIGHT("0"&YEAR($B$39),4) -> Relatório 10-02-2019
B40: =DATE(YEAR($B$39),MONTH($B$39)+1,1)-1 -> 2015-02-27 | C40: =B40-C39 -> 27 | D40: =$C$39-D39 -> 31 | E40: =$C$39-E39 -> 92 | F40: =$C$39-F39 -> 184 | G40: =$C$39-G39 -> 365 | H40: =$B$39-H39 -> 40 | I40: =MAX('Banco de Dados'!$Q:$Q)-MIN('Banco de Dados'!$M:$M) -> 0

Sheet Banco de Dados (hidden)
A1: AAA | B1: AAA | C1: AAA
A2: AAA | B2: AAA | C2: AAA | J2: =MATCH(Ajuste!C7,'Banco de Dados'!A:A,0) -> 
A3: AAA | B3: AAA | C3: AAA | J3: 2013-12-31
A4: AAA | B4: AAA | C4: AAA | J4: =MATCH(J3,A:A,0) -> 
A5: AAA | B5: AAA | C5: AAA | H5: ='Função Excel'!$C$9 -> Versão 2.1 - DEMO | J5: =MATCH('Semana Atual'!C7,'Banco de Dados'!A:A,0) -> 
A6: Semana do dia | B6: =COUNTIF(A:A,Auxiliar!$A$7) -> 0 | C6: Seg | D6: Ter | E6: Qua | F6: Qui | G6: Sex | H6: Sáb | I6: Dom | J6: Total | L6: Linha | M6: De | N6: Até | O6: Total | P6: De | Q6: Até | R6: Total

Sheet Função Excel (hidden)
C8: Planilha de Controle Uber, Cabify & 99 Pop
C9: Versão 2.1 - DEMO
C11: O que é o Função Excel?
C12: O Função Excel é um site de conteúdo gratuíto sobre a mais utilizada ferramenta de análise e controle de dados do mundo, o Microsoft Excel.
C14: O que o Função Excel tem a oferecer?
C15: Além do conteúdo disponibilizado no site www.funcaoexcel.com.br e nas redes sociais, o Função Excel também elabora planilhas e sistemas em Excel sob encomenda para os mais variados fins. Entre alguns deles estão: controle de fluxo para empresas, controle de estoque, controle gerencial de tomada de decisão, sistema analítico para escritórios de contabilidade, ou qualquer outra ferramenta em Excel.
C19: Como posso entrar em contato?
C20: Você pode entrar em contato direto com o Função Excel através do e-mail funcaoexcel@gmail.com ou pelos links à esquerda.
